{"text_format":"3","workbook":"xlsx","n_sheets":2,"sheets":["Paskaitų tvarkaraštis","Paskaitų sąrašas"],"not_rendered":{"defined_names":17},"read":"whole","date_system":"1900"}

{"sheet":"Paskaitų tvarkaraštis","index":0,"n_rows":56,"n_cols":9,"rows_kept":56,"merged":[[0,1,1,5],[0,8,1,8]]}
[null,"PASKAITŲ TVARKARAŠTIS",{"$nulls":4},"TVARKARAŠČIO PRADŽIA","LAIKO INTERVALAS","Paskaitų sąrašas"]
[{"$nulls":6},"08:00:00","15 MIN."]
[null,"LAIKAS","SEKMADIENIS","PIRMADIENIS","ANTRADIENIS","TREČIADIENIS","KETVIRTADIENIS","PENKTADIENIS","ŠEŠTADIENIS"]
[null,{"$f":"TvarkaraščioPradžia","v":"08:00:00"},{"$f":"IFERROR(INDEX(Paskaitų_Sąrašas[],MATCH(SUMPRODUCT((Paskaitų_Sąrašas[DIENA]=MokymųTvarkaraštis[[#Headers],[SEKMADIENIS]])*(ROUNDDOWN($B4,10)>=ROUNDDOWN(Paskaitų_Sąrašas[PRADŽIOS LAIKAS],10))*($B4<=Paskaitų_Sąrašas[PABAIGOS LAIKAS]),Paskaitų_Sąrašas[UNIKALUS]),Paskaitų_Sąrašas[UNIKALUS],0),2),0)","v":0},{"$f":"IFERROR(INDEX(Paskaitų_Sąrašas[],MATCH(SUMPRODUCT((Paskaitų_Sąrašas[DIENA]=MokymųTvarkaraštis[[#Headers],[PIRMADIENIS]])*(ROUNDDOWN($B4,10)>=ROUNDDOWN(Paskaitų_Sąrašas[PRADŽIOS LAIKAS],10))*($B4<=Paskaitų_Sąrašas[PABAIGOS LAIKAS]),Paskaitų_Sąrašas[UNIKALUS]),Paskaitų_Sąrašas[UNIKALUS],0),2),0)","v":0},{"$f":"IFERROR(INDEX(Paskaitų_Sąrašas[],MATCH(SUMPRODUCT((Paskaitų_Sąrašas[DIENA]=MokymųTvarkaraštis[[#Headers],[ANTRADIENIS]])*(ROUNDDOWN($B4,10)>=ROUNDDOWN(Paskaitų_Sąrašas[PRADŽIOS LAIKAS],10))*($B4<=Paskaitų_Sąrašas[PABAIGOS LAIKAS]),Paskaitų_Sąrašas[UNIKALUS]),Paskaitų_Sąrašas[UNIKALUS],0),2),0)","v":0},{"$f":"IFERROR(INDEX(Paskaitų_Sąrašas[],MATCH(SUMPRODUCT((Paskaitų_Sąrašas[DIENA]=MokymųTvarkaraštis[[#Headers],[TREČIADIENIS]])*(ROUNDDOWN($B4,10)>=ROUNDDOWN(Paskaitų_Sąrašas[PRADŽIOS LAIKAS],10))*($B4<=Paskaitų_Sąrašas[PABAIGOS LAIKAS]),Paskaitų_Sąrašas[UNIKALUS]),Paskaitų_Sąrašas[UNIKALUS],0),2),0)","v":0},{"$f":"IFERROR(INDEX(Paskaitų_Sąrašas[],MATCH(SUMPRODUCT((Paskaitų_Sąrašas[DIENA]=MokymųTvarkaraštis[[#Headers],[KETVIRTADIENIS]])*(ROUNDDOWN($B4,10)>=ROUNDDOWN(Paskaitų_Sąrašas[PRADŽIOS LAIKAS],10))*($B4<=Paskaitų_Sąrašas[PABAIGOS LAIKAS]),Paskaitų_Sąrašas[UNIKALUS]),Paskaitų_Sąrašas[UNIKALUS],0),2),0)","v":0},{"$f":"IFERROR(INDEX(Paskaitų_Sąrašas[],MATCH(SUMPRODUCT((Paskaitų_Sąrašas[DIENA]=MokymųTvarkaraštis[[#Headers],[PENKTADIENIS]])*(ROUNDDOWN($B4,10)>=ROUNDDOWN(Paskaitų_Sąrašas[PRADŽIOS LAIKAS],10))*($B4<=Paskaitų_Sąrašas[PABAIGOS LAIKAS]),Paskaitų_Sąrašas[UNIKALUS]),Paskaitų_Sąrašas[UNIKALUS],0),2),0)","v":0},{"$f":"IFERROR(INDEX(Paskaitų_Sąrašas[],MATCH(SUMPRODUCT((Paskaitų_Sąrašas[DIENA]=MokymųTvarkaraštis[[#Headers],[ŠEŠTADIENIS]])*(ROUNDDOWN($B4,10)>=ROUNDDOWN(Paskaitų_Sąrašas[PRADŽIOS LAIKAS],10))*($B4<=Paskaitų_Sąrašas[PABAIGOS LAIKAS]),Paskaitų_Sąrašas[UNIKALUS]),Paskaitų_Sąrašas[UNIKALUS],0),2),0)","v":0}]
[null,{"$f":"B4+Pokytis","v":"08:15:00"},{"$f":"IFERROR(INDEX(Paskaitų_Sąrašas[],MATCH(SUMPRODUCT((Paskaitų_Sąrašas[DIENA]=MokymųTvarkaraštis[[#Headers],[SEKMADIENIS]])*(ROUNDDOWN($B5,10)>=ROUNDDOWN(Paskaitų_Sąrašas[PRADŽIOS LAIKAS],10))*($B5<=Paskaitų_Sąrašas[PABAIGOS LAIKAS]),Paskaitų_Sąrašas[UNIKALUS]),Paskaitų_Sąrašas[UNIKALUS],0),2),0)","v":0},{"$f":"IFERROR(INDEX(Paskaitų_Sąrašas[],MATCH(SUMPRODUCT((Paskaitų_Sąrašas[DIENA]=MokymųTvarkaraštis[[#Headers],[PIRMADIENIS]])*(ROUNDDOWN($B5,10)>=ROUNDDOWN(Paskaitų_Sąrašas[PRADŽIOS LAIKAS],10))*($B5<=Paskaitų_Sąrašas[PABAIGOS LAIKAS]),Paskaitų_Sąrašas[UNIKALUS]),Paskaitų_Sąrašas[UNIKALUS],0),2),0)","v":"MTH-113"},{"$f":"IFERROR(INDEX(Paskaitų_Sąrašas[],MATCH(SUMPRODUCT((Paskaitų_Sąrašas[DIENA]=MokymųTvarkaraštis[[#Headers],[ANTRADIENIS]])*(ROUNDDOWN($B5,10)>=ROUNDDOWN(Paskaitų_Sąrašas[PRADŽIOS LAIKAS],10))*($B5<=Paskaitų_Sąrašas[PABAIGOS LAIKAS]),Paskaitų_Sąrašas[UNIKALUS]),Paskaitų_Sąrašas[UNIKALUS],0),2),0)","v":0},{"$f":"IFERROR(INDEX(Paskaitų_Sąrašas[],MATCH(SUMPRODUCT((Paskaitų_Sąrašas[DIENA]=MokymųTvarkaraštis[[#Headers],[TREČIADIENIS]])*(ROUNDDOWN($B5,10)>=ROUNDDOWN(Paskaitų_Sąrašas[PRADŽIOS LAIKAS],10))*($B5<=Paskaitų_Sąrašas[PABAIGOS LAIKAS]),Paskaitų_Sąrašas[UNIKALUS]),Paskaitų_Sąrašas[UNIKALUS],0),2),0)","v":"MTH-113"},{"$f":"IFERROR(INDEX(Paskaitų_Sąrašas[],MATCH(SUMPRODUCT((Paskaitų_Sąrašas[DIENA]=MokymųTvarkaraštis[[#Headers],[KETVIRTADIENIS]])*(ROUNDDOWN($B5,10)>=ROUNDDOWN(Paskaitų_Sąrašas[PRADŽIOS LAIKAS],10))*($B5<=Paskaitų_Sąrašas[PABAIGOS LAIKAS]),Paskaitų_Sąrašas[UNIKALUS]),Paskaitų_Sąrašas[UNIKALUS],0),2),0)","v":0},{"$f":"IFERROR(INDEX(Paskaitų_Sąrašas[],MATCH(SUMPRODUCT((Paskaitų_Sąrašas[DIENA]=MokymųTvarkaraštis[[#Headers],[PENKTADIENIS]])*(ROUNDDOWN($B5,10)>=ROUNDDOWN(Paskaitų_Sąrašas[PRADŽIOS LAIKAS],10))*($B5<=Paskaitų_Sąrašas[PABAIGOS LAIKAS]),Paskaitų_Sąrašas[UNIKALUS]),Paskaitų_Sąrašas[UNIKALUS],0),2),0)","v":"MTH-113"},{"$f":"IFERROR(INDEX(Paskaitų_Sąrašas[],MATCH(SUMPRODUCT((Paskaitų_Sąrašas[DIENA]=MokymųTvarkaraštis[[#Headers],[ŠEŠTADIENIS]])*(ROUNDDOWN($B5,10)>=ROUNDDOWN(Paskaitų_Sąrašas[PRADŽIOS LAIKAS],10))*($B5<=Paskaitų_Sąrašas[PABAIGOS LAIKAS]),Paskaitų_Sąrašas[UNIKALUS]),Paskaitų_Sąrašas[UNIKALUS],0),2),0)","v":0}]
[null,"08:30:00",{"$f":"IFERROR(INDEX(Paskaitų_Sąrašas[],MATCH(SUMPRODUCT((Paskaitų_Sąrašas[DIENA]=MokymųTvarkaraštis[[#Headers],[SEKMADIENIS]])*(ROUNDDOWN($B6,10)>=ROUNDDOWN(Paskaitų_Sąrašas[PRADŽIOS LAIKAS],10))*($B6<=Paskaitų_Sąrašas[PABAIGOS LAIKAS]),Paskaitų_Sąrašas[UNIKALUS]),Paskaitų_Sąrašas[UNIKALUS],0),2),0)","v":0},{"$f":"IFERROR(INDEX(Paskaitų_Sąrašas[],MATCH(SUMPRODUCT((Paskaitų_Sąrašas[DIENA]=MokymųTvarkaraštis[[#Headers],[PIRMADIENIS]])*(ROUNDDOWN($B6,10)>=ROUNDDOWN(Paskaitų_Sąrašas[PRADŽIOS LAIKAS],10))*($B6<=Paskaitų_Sąrašas[PABAIGOS LAIKAS]),Paskaitų_Sąrašas[UNIKALUS]),Paskaitų_Sąrašas[UNIKALUS],0),2),0)","v":"MTH-113"},{"$f":"IFERROR(INDEX(Paskaitų_Sąrašas[],MATCH(SUMPRODUCT((Paskaitų_Sąrašas[DIENA]=MokymųTvarkaraštis[[#Headers],[ANTRADIENIS]])*(ROUNDDOWN($B6,10)>=ROUNDDOWN(Paskaitų_Sąrašas[PRADŽIOS LAIKAS],10))*($B6<=Paskaitų_Sąrašas[PABAIGOS LAIKAS]),Paskaitų_Sąrašas[UNIKALUS]),Paskaitų_Sąrašas[UNIKALUS],0),2),0)","v":0},{"$f":"IFERROR(INDEX(Paskaitų_Sąrašas[],MATCH(SUMPRODUCT((Paskaitų_Sąrašas[DIENA]=MokymųTvarkaraštis[[#Headers],[TREČIADIENIS]])*(ROUNDDOWN($B6,10)>=ROUNDDOWN(Paskaitų_Sąrašas[PRADŽIOS LAIKAS],10))*($B6<=Paskaitų_Sąrašas[PABAIGOS LAIKAS]),Paskaitų_Sąrašas[UNIKALUS]),Paskaitų_Sąrašas[UNIKALUS],0),2),0)","v":"MTH-113"},{"$f":"IFERROR(INDEX(Paskaitų_Sąrašas[],MATCH(SUMPRODUCT((Paskaitų_Sąrašas[DIENA]=MokymųTvarkaraštis[[#Headers],[KETVIRTADIENIS]])*(ROUNDDOWN($B6,10)>=ROUNDDOWN(Paskaitų_Sąrašas[PRADŽIOS LAIKAS],10))*($B6<=Paskaitų_Sąrašas[PABAIGOS LAIKAS]),Paskaitų_Sąrašas[UNIKALUS]),Paskaitų_Sąrašas[UNIKALUS],0),2),0)","v":0},{"$f":"IFERROR(INDEX(Paskaitų_Sąrašas[],MATCH(SUMPRODUCT((Paskaitų_Sąrašas[DIENA]=MokymųTvarkaraštis[[#Headers],[PENKTADIENIS]])*(ROUNDDOWN($B6,10)>=ROUNDDOWN(Paskaitų_Sąrašas[PRADŽIOS LAIKAS],10))*($B6<=Paskaitų_Sąrašas[PABAIGOS LAIKAS]),Paskaitų_Sąrašas[UNIKALUS]),Paskaitų_Sąrašas[UNIKALUS],0),2),0)","v":"MTH-113"},{"$f":"IFERROR(INDEX(Paskaitų_Sąrašas[],MATCH(SUMPRODUCT((Paskaitų_Sąrašas[DIENA]=MokymųTvarkaraštis[[#Headers],[ŠEŠTADIENIS]])*(ROUNDDOWN($B6,10)>=ROUNDDOWN(Paskaitų_Sąrašas[PRADŽIOS LAIKAS],10))*($B6<=Paskaitų_Sąrašas[PABAIGOS LAIKAS]),Paskaitų_Sąrašas[UNIKALUS]),Paskaitų_Sąrašas[UNIKALUS],0),2),0)","v":0}]
[null,"08:45:00",{"$f":"IFERROR(INDEX(Paskaitų_Sąrašas[],MATCH(SUMPRODUCT((Paskaitų_Sąrašas[DIENA]=MokymųTvarkaraštis[[#Headers],[SEKMADIENIS]])*(ROUNDDOWN($B7,10)>=ROUNDDOWN(Paskaitų_Sąrašas[PRADŽIOS LAIKAS],10))*($B7<=Paskaitų_Sąrašas[PABAIGOS LAIKAS]),Paskaitų_Sąrašas[UNIKALUS]),Paskaitų_Sąrašas[UNIKALUS],0),2),0)","v":0},{"$f":"IFERROR(INDEX(Paskaitų_Sąrašas[],MATCH(SUMPRODUCT((Paskaitų_Sąrašas[DIENA]=MokymųTvarkaraštis[[#Headers],[PIRMADIENIS]])*(ROUNDDOWN($B7,10)>=ROUNDDOWN(Paskaitų_Sąrašas[PRADŽIOS LAIKAS],10))*($B7<=Paskaitų_Sąrašas[PABAIGOS LAIKAS]),Paskaitų_Sąrašas[UNIKALUS]),Paskaitų_Sąrašas[UNIKALUS],0),2),0)","v":"MTH-113"},{"$f":"IFERROR(INDEX(Paskaitų_Sąrašas[],MATCH(SUMPRODUCT((Paskaitų_Sąrašas[DIENA]=MokymųTvarkaraštis[[#Headers],[ANTRADIENIS]])*(ROUNDDOWN($B7,10)>=ROUNDDOWN(Paskaitų_Sąrašas[PRADŽIOS LAIKAS],10))*($B7<=Paskaitų_Sąrašas[PABAIGOS LAIKAS]),Paskaitų_Sąrašas[UNIKALUS]),Paskaitų_Sąrašas[UNIKALUS],0),2),0)","v":0},{"$f":"IFERROR(INDEX(Paskaitų_Sąrašas[],MATCH(SUMPRODUCT((Paskaitų_Sąrašas[DIENA]=MokymųTvarkaraštis[[#Headers],[TREČIADIENIS]])*(ROUNDDOWN($B7,10)>=ROUNDDOWN(Paskaitų_Sąrašas[PRADŽIOS LAIKAS],10))*($B7<=Paskaitų_Sąrašas[PABAIGOS LAIKAS]),Paskaitų_Sąrašas[UNIKALUS]),Paskaitų_Sąrašas[UNIKALUS],0),2),0)","v":"MTH-113"},{"$f":"IFERROR(INDEX(Paskaitų_Sąrašas[],MATCH(SUMPRODUCT((Paskaitų_Sąrašas[DIENA]=MokymųTvarkaraštis[[#Headers],[KETVIRTADIENIS]])*(ROUNDDOWN($B7,10)>=ROUNDDOWN(Paskaitų_Sąrašas[PRADŽIOS LAIKAS],10))*($B7<=Paskaitų_Sąrašas[PABAIGOS LAIKAS]),Paskaitų_Sąrašas[UNIKALUS]),Paskaitų_Sąrašas[UNIKALUS],0),2),0)","v":0},{"$f":"IFERROR(INDEX(Paskaitų_Sąrašas[],MATCH(SUMPRODUCT((Paskaitų_Sąrašas[DIENA]=MokymųTvarkaraštis[[#Headers],[PENKTADIENIS]])*(ROUNDDOWN($B7,10)>=ROUNDDOWN(Paskaitų_Sąrašas[PRADŽIOS LAIKAS],10))*($B7<=Paskaitų_Sąrašas[PABAIGOS LAIKAS]),Paskaitų_Sąrašas[UNIKALUS]),Paskaitų_Sąrašas[UNIKALUS],0),2),0)","v":"MTH-113"},{"$f":"IFERROR(INDEX(Paskaitų_Sąrašas[],MATCH(SUMPRODUCT((Paskaitų_Sąrašas[DIENA]=MokymųTvarkaraštis[[#Headers],[ŠEŠTADIENIS]])*(ROUNDDOWN($B7,10)>=ROUNDDOWN(Paskaitų_Sąrašas[PRADŽIOS LAIKAS],10))*($B7<=Paskaitų_Sąrašas[PABAIGOS LAIKAS]),Paskaitų_Sąrašas[UNIKALUS]),Paskaitų_Sąrašas[UNIKALUS],0),2),0)","v":0}]
[null,"09:00:00",{"$f":"IFERROR(INDEX(Paskaitų_Sąrašas[],MATCH(SUMPRODUCT((Paskaitų_Sąrašas[DIENA]=MokymųTvarkaraštis[[#Headers],[SEKMADIENIS]])*(ROUNDDOWN($B8,10)>=ROUNDDOWN(Paskaitų_Sąrašas[PRADŽIOS LAIKAS],10))*($B8<=Paskaitų_Sąrašas[PABAIGOS LAIKAS]),Paskaitų_Sąrašas[UNIKALUS]),Paskaitų_Sąrašas[UNIKALUS],0),2),0)","v":0},{"$f":"IFERROR(INDEX(Paskaitų_Sąrašas[],MATCH(SUMPRODUCT((Paskaitų_Sąrašas[DIENA]=MokymųTvarkaraštis[[#Headers],[PIRMADIENIS]])*(ROUNDDOWN($B8,10)>=ROUNDDOWN(Paskaitų_Sąrašas[PRADŽIOS LAIKAS],10))*($B8<=Paskaitų_Sąrašas[PABAIGOS LAIKAS]),Paskaitų_Sąrašas[UNIKALUS]),Paskaitų_Sąrašas[UNIKALUS],0),2),0)","v":"MTH-113"},{"$f":"IFERROR(INDEX(Paskaitų_Sąrašas[],MATCH(SUMPRODUCT((Paskaitų_Sąrašas[DIENA]=MokymųTvarkaraštis[[#Headers],[ANTRADIENIS]])*(ROUNDDOWN($B8,10)>=ROUNDDOWN(Paskaitų_Sąrašas[PRADŽIOS LAIKAS],10))*($B8<=Paskaitų_Sąrašas[PABAIGOS LAIKAS]),Paskaitų_Sąrašas[UNIKALUS]),Paskaitų_Sąrašas[UNIKALUS],0),2),0)","v":0},{"$f":"IFERROR(INDEX(Paskaitų_Sąrašas[],MATCH(SUMPRODUCT((Paskaitų_Sąrašas[DIENA]=MokymųTvarkaraštis[[#Headers],[TREČIADIENIS]])*(ROUNDDOWN($B8,10)>=ROUNDDOWN(Paskaitų_Sąrašas[PRADŽIOS LAIKAS],10))*($B8<=Paskaitų_Sąrašas[PABAIGOS LAIKAS]),Paskaitų_Sąrašas[UNIKALUS]),Paskaitų_Sąrašas[UNIKALUS],0),2),0)","v":"MTH-113"},{"$f":"IFERROR(INDEX(Paskaitų_Sąrašas[],MATCH(SUMPRODUCT((Paskaitų_Sąrašas[DIENA]=MokymųTvarkaraštis[[#Headers],[KETVIRTADIENIS]])*(ROUNDDOWN($B8,10)>=ROUNDDOWN(Paskaitų_Sąrašas[PRADŽIOS LAIKAS],10))*($B8<=Paskaitų_Sąrašas[PABAIGOS LAIKAS]),Paskaitų_Sąrašas[UNIKALUS]),Paskaitų_Sąrašas[UNIKALUS],0),2),0)","v":0},{"$f":"IFERROR(INDEX(Paskaitų_Sąrašas[],MATCH(SUMPRODUCT((Paskaitų_Sąrašas[DIENA]=MokymųTvarkaraštis[[#Headers],[PENKTADIENIS]])*(ROUNDDOWN($B8,10)>=ROUNDDOWN(Paskaitų_Sąrašas[PRADŽIOS LAIKAS],10))*($B8<=Paskaitų_Sąrašas[PABAIGOS LAIKAS]),Paskaitų_Sąrašas[UNIKALUS]),Paskaitų_Sąrašas[UNIKALUS],0),2),0)","v":"MTH-113"},{"$f":"IFERROR(INDEX(Paskaitų_Sąrašas[],MATCH(SUMPRODUCT((Paskaitų_Sąrašas[DIENA]=MokymųTvarkaraštis[[#Headers],[ŠEŠTADIENIS]])*(ROUNDDOWN($B8,10)>=ROUNDDOWN(Paskaitų_Sąrašas[PRADŽIOS LAIKAS],10))*($B8<=Paskaitų_Sąrašas[PABAIGOS LAIKAS]),Paskaitų_Sąrašas[UNIKALUS]),Paskaitų_Sąrašas[UNIKALUS],0),2),0)","v":0}]
[null,"09:15:00",{"$f":"IFERROR(INDEX(Paskaitų_Sąrašas[],MATCH(SUMPRODUCT((Paskaitų_Sąrašas[DIENA]=MokymųTvarkaraštis[[#Headers],[SEKMADIENIS]])*(ROUNDDOWN($B9,10)>=ROUNDDOWN(Paskaitų_Sąrašas[PRADŽIOS LAIKAS],10))*($B9<=Paskaitų_Sąrašas[PABAIGOS LAIKAS]),Paskaitų_Sąrašas[UNIKALUS]),Paskaitų_Sąrašas[UNIKALUS],0),2),0)","v":0},{"$f":"IFERROR(INDEX(Paskaitų_Sąrašas[],MATCH(SUMPRODUCT((Paskaitų_Sąrašas[DIENA]=MokymųTvarkaraštis[[#Headers],[PIRMADIENIS]])*(ROUNDDOWN($B9,10)>=ROUNDDOWN(Paskaitų_Sąrašas[PRADŽIOS LAIKAS],10))*($B9<=Paskaitų_Sąrašas[PABAIGOS LAIKAS]),Paskaitų_Sąrašas[UNIKALUS]),Paskaitų_Sąrašas[UNIKALUS],0),2),0)","v":"MTH-113"},{"$f":"IFERROR(INDEX(Paskaitų_Sąrašas[],MATCH(SUMPRODUCT((Paskaitų_Sąrašas[DIENA]=MokymųTvarkaraštis[[#Headers],[ANTRADIENIS]])*(ROUNDDOWN($B9,10)>=ROUNDDOWN(Paskaitų_Sąrašas[PRADŽIOS LAIKAS],10))*($B9<=Paskaitų_Sąrašas[PABAIGOS LAIKAS]),Paskaitų_Sąrašas[UNIKALUS]),Paskaitų_Sąrašas[UNIKALUS],0),2),0)","v":0},{"$f":"IFERROR(INDEX(Paskaitų_Sąrašas[],MATCH(SUMPRODUCT((Paskaitų_Sąrašas[DIENA]=MokymųTvarkaraštis[[#Headers],[TREČIADIENIS]])*(ROUNDDOWN($B9,10)>=ROUNDDOWN(Paskaitų_Sąrašas[PRADŽIOS LAIKAS],10))*($B9<=Paskaitų_Sąrašas[PABAIGOS LAIKAS]),Paskaitų_Sąrašas[UNIKALUS]),Paskaitų_Sąrašas[UNIKALUS],0),2),0)","v":"MTH-113"},{"$f":"IFERROR(INDEX(Paskaitų_Sąrašas[],MATCH(SUMPRODUCT((Paskaitų_Sąrašas[DIENA]=MokymųTvarkaraštis[[#Headers],[KETVIRTADIENIS]])*(ROUNDDOWN($B9,10)>=ROUNDDOWN(Paskaitų_Sąrašas[PRADŽIOS LAIKAS],10))*($B9<=Paskaitų_Sąrašas[PABAIGOS LAIKAS]),Paskaitų_Sąrašas[UNIKALUS]),Paskaitų_Sąrašas[UNIKALUS],0),2),0)","v":0},{"$f":"IFERROR(INDEX(Paskaitų_Sąrašas[],MATCH(SUMPRODUCT((Paskaitų_Sąrašas[DIENA]=MokymųTvarkaraštis[[#Headers],[PENKTADIENIS]])*(ROUNDDOWN($B9,10)>=ROUNDDOWN(Paskaitų_Sąrašas[PRADŽIOS LAIKAS],10))*($B9<=Paskaitų_Sąrašas[PABAIGOS LAIKAS]),Paskaitų_Sąrašas[UNIKALUS]),Paskaitų_Sąrašas[UNIKALUS],0),2),0)","v":"MTH-113"},{"$f":"IFERROR(INDEX(Paskaitų_Sąrašas[],MATCH(SUMPRODUCT((Paskaitų_Sąrašas[DIENA]=MokymųTvarkaraštis[[#Headers],[ŠEŠTADIENIS]])*(ROUNDDOWN($B9,10)>=ROUNDDOWN(Paskaitų_Sąrašas[PRADŽIOS LAIKAS],10))*($B9<=Paskaitų_Sąrašas[PABAIGOS LAIKAS]),Paskaitų_Sąrašas[UNIKALUS]),Paskaitų_Sąrašas[UNIKALUS],0),2),0)","v":0}]
[null,"09:30:00",{"$f":"IFERROR(INDEX(Paskaitų_Sąrašas[],MATCH(SUMPRODUCT((Paskaitų_Sąrašas[DIENA]=MokymųTvarkaraštis[[#Headers],[SEKMADIENIS]])*(ROUNDDOWN($B10,10)>=ROUNDDOWN(Paskaitų_Sąrašas[PRADŽIOS LAIKAS],10))*($B10<=Paskaitų_Sąrašas[PABAIGOS LAIKAS]),Paskaitų_Sąrašas[UNIKALUS]),Paskaitų_Sąrašas[UNIKALUS],0),2),0)","v":0},{"$f":"IFERROR(INDEX(Paskaitų_Sąrašas[],MATCH(SUMPRODUCT((Paskaitų_Sąrašas[DIENA]=MokymųTvarkaraštis[[#Headers],[PIRMADIENIS]])*(ROUNDDOWN($B10,10)>=ROUNDDOWN(Paskaitų_Sąrašas[PRADŽIOS LAIKAS],10))*($B10<=Paskaitų_Sąrašas[PABAIGOS LAIKAS]),Paskaitų_Sąrašas[UNIKALUS]),Paskaitų_Sąrašas[UNIKALUS],0),2),0)","v":0},{"$f":"IFERROR(INDEX(Paskaitų_Sąrašas[],MATCH(SUMPRODUCT((Paskaitų_Sąrašas[DIENA]=MokymųTvarkaraštis[[#Headers],[ANTRADIENIS]])*(ROUNDDOWN($B10,10)>=ROUNDDOWN(Paskaitų_Sąrašas[PRADŽIOS LAIKAS],10))*($B10<=Paskaitų_Sąrašas[PABAIGOS LAIKAS]),Paskaitų_Sąrašas[UNIKALUS]),Paskaitų_Sąrašas[UNIKALUS],0),2),0)","v":0},{"$f":"IFERROR(INDEX(Paskaitų_Sąrašas[],MATCH(SUMPRODUCT((Paskaitų_Sąrašas[DIENA]=MokymųTvarkaraštis[[#Headers],[TREČIADIENIS]])*(ROUNDDOWN($B10,10)>=ROUNDDOWN(Paskaitų_Sąrašas[PRADŽIOS LAIKAS],10))*($B10<=Paskaitų_Sąrašas[PABAIGOS LAIKAS]),Paskaitų_Sąrašas[UNIKALUS]),Paskaitų_Sąrašas[UNIKALUS],0),2),0)","v":0},{"$f":"IFERROR(INDEX(Paskaitų_Sąrašas[],MATCH(SUMPRODUCT((Paskaitų_Sąrašas[DIENA]=MokymųTvarkaraštis[[#Headers],[KETVIRTADIENIS]])*(ROUNDDOWN($B10,10)>=ROUNDDOWN(Paskaitų_Sąrašas[PRADŽIOS LAIKAS],10))*($B10<=Paskaitų_Sąrašas[PABAIGOS LAIKAS]),Paskaitų_Sąrašas[UNIKALUS]),Paskaitų_Sąrašas[UNIKALUS],0),2),0)","v":0},{"$f":"IFERROR(INDEX(Paskaitų_Sąrašas[],MATCH(SUMPRODUCT((Paskaitų_Sąrašas[DIENA]=MokymųTvarkaraštis[[#Headers],[PENKTADIENIS]])*(ROUNDDOWN($B10,10)>=ROUNDDOWN(Paskaitų_Sąrašas[PRADŽIOS LAIKAS],10))*($B10<=Paskaitų_Sąrašas[PABAIGOS LAIKAS]),Paskaitų_Sąrašas[UNIKALUS]),Paskaitų_Sąrašas[UNIKALUS],0),2),0)","v":0},{"$f":"IFERROR(INDEX(Paskaitų_Sąrašas[],MATCH(SUMPRODUCT((Paskaitų_Sąrašas[DIENA]=MokymųTvarkaraštis[[#Headers],[ŠEŠTADIENIS]])*(ROUNDDOWN($B10,10)>=ROUNDDOWN(Paskaitų_Sąrašas[PRADŽIOS LAIKAS],10))*($B10<=Paskaitų_Sąrašas[PABAIGOS LAIKAS]),Paskaitų_Sąrašas[UNIKALUS]),Paskaitų_Sąrašas[UNIKALUS],0),2),0)","v":0}]
[null,"09:45:00",{"$f":"IFERROR(INDEX(Paskaitų_Sąrašas[],MATCH(SUMPRODUCT((Paskaitų_Sąrašas[DIENA]=MokymųTvarkaraštis[[#Headers],[SEKMADIENIS]])*(ROUNDDOWN($B11,10)>=ROUNDDOWN(Paskaitų_Sąrašas[PRADŽIOS LAIKAS],10))*($B11<=Paskaitų_Sąrašas[PABAIGOS LAIKAS]),Paskaitų_Sąrašas[UNIKALUS]),Paskaitų_Sąrašas[UNIKALUS],0),2),0)","v":0},{"$f":"IFERROR(INDEX(Paskaitų_Sąrašas[],MATCH(SUMPRODUCT((Paskaitų_Sąrašas[DIENA]=MokymųTvarkaraštis[[#Headers],[PIRMADIENIS]])*(ROUNDDOWN($B11,10)>=ROUNDDOWN(Paskaitų_Sąrašas[PRADŽIOS LAIKAS],10))*($B11<=Paskaitų_Sąrašas[PABAIGOS LAIKAS]),Paskaitų_Sąrašas[UNIKALUS]),Paskaitų_Sąrašas[UNIKALUS],0),2),0)","v":0},{"$f":"IFERROR(INDEX(Paskaitų_Sąrašas[],MATCH(SUMPRODUCT((Paskaitų_Sąrašas[DIENA]=MokymųTvarkaraštis[[#Headers],[ANTRADIENIS]])*(ROUNDDOWN($B11,10)>=ROUNDDOWN(Paskaitų_Sąrašas[PRADŽIOS LAIKAS],10))*($B11<=Paskaitų_Sąrašas[PABAIGOS LAIKAS]),Paskaitų_Sąrašas[UNIKALUS]),Paskaitų_Sąrašas[UNIKALUS],0),2),0)","v":0},{"$f":"IFERROR(INDEX(Paskaitų_Sąrašas[],MATCH(SUMPRODUCT((Paskaitų_Sąrašas[DIENA]=MokymųTvarkaraštis[[#Headers],[TREČIADIENIS]])*(ROUNDDOWN($B11,10)>=ROUNDDOWN(Paskaitų_Sąrašas[PRADŽIOS LAIKAS],10))*($B11<=Paskaitų_Sąrašas[PABAIGOS LAIKAS]),Paskaitų_Sąrašas[UNIKALUS]),Paskaitų_Sąrašas[UNIKALUS],0),2),0)","v":0},{"$f":"IFERROR(INDEX(Paskaitų_Sąrašas[],MATCH(SUMPRODUCT((Paskaitų_Sąrašas[DIENA]=MokymųTvarkaraštis[[#Headers],[KETVIRTADIENIS]])*(ROUNDDOWN($B11,10)>=ROUNDDOWN(Paskaitų_Sąrašas[PRADŽIOS LAIKAS],10))*($B11<=Paskaitų_Sąrašas[PABAIGOS LAIKAS]),Paskaitų_Sąrašas[UNIKALUS]),Paskaitų_Sąrašas[UNIKALUS],0),2),0)","v":0},{"$f":"IFERROR(INDEX(Paskaitų_Sąrašas[],MATCH(SUMPRODUCT((Paskaitų_Sąrašas[DIENA]=MokymųTvarkaraštis[[#Headers],[PENKTADIENIS]])*(ROUNDDOWN($B11,10)>=ROUNDDOWN(Paskaitų_Sąrašas[PRADŽIOS LAIKAS],10))*($B11<=Paskaitų_Sąrašas[PABAIGOS LAIKAS]),Paskaitų_Sąrašas[UNIKALUS]),Paskaitų_Sąrašas[UNIKALUS],0),2),0)","v":0},{"$f":"IFERROR(INDEX(Paskaitų_Sąrašas[],MATCH(SUMPRODUCT((Paskaitų_Sąrašas[DIENA]=MokymųTvarkaraštis[[#Headers],[ŠEŠTADIENIS]])*(ROUNDDOWN($B11,10)>=ROUNDDOWN(Paskaitų_Sąrašas[PRADŽIOS LAIKAS],10))*($B11<=Paskaitų_Sąrašas[PABAIGOS LAIKAS]),Paskaitų_Sąrašas[UNIKALUS]),Paskaitų_Sąrašas[UNIKALUS],0),2),0)","v":0}]
[null,"10:00:00",{"$f":"IFERROR(INDEX(Paskaitų_Sąrašas[],MATCH(SUMPRODUCT((Paskaitų_Sąrašas[DIENA]=MokymųTvarkaraštis[[#Headers],[SEKMADIENIS]])*(ROUNDDOWN($B12,10)>=ROUNDDOWN(Paskaitų_Sąrašas[PRADŽIOS LAIKAS],10))*($B12<=Paskaitų_Sąrašas[PABAIGOS LAIKAS]),Paskaitų_Sąrašas[UNIKALUS]),Paskaitų_Sąrašas[UNIKALUS],0),2),0)","v":0},{"$f":"IFERROR(INDEX(Paskaitų_Sąrašas[],MATCH(SUMPRODUCT((Paskaitų_Sąrašas[DIENA]=MokymųTvarkaraštis[[#Headers],[PIRMADIENIS]])*(ROUNDDOWN($B12,10)>=ROUNDDOWN(Paskaitų_Sąrašas[PRADŽIOS LAIKAS],10))*($B12<=Paskaitų_Sąrašas[PABAIGOS LAIKAS]),Paskaitų_Sąrašas[UNIKALUS]),Paskaitų_Sąrašas[UNIKALUS],0),2),0)","v":0},{"$f":"IFERROR(INDEX(Paskaitų_Sąrašas[],MATCH(SUMPRODUCT((Paskaitų_Sąrašas[DIENA]=MokymųTvarkaraštis[[#Headers],[ANTRADIENIS]])*(ROUNDDOWN($B12,10)>=ROUNDDOWN(Paskaitų_Sąrašas[PRADŽIOS LAIKAS],10))*($B12<=Paskaitų_Sąrašas[PABAIGOS LAIKAS]),Paskaitų_Sąrašas[UNIKALUS]),Paskaitų_Sąrašas[UNIKALUS],0),2),0)","v":0},{"$f":"IFERROR(INDEX(Paskaitų_Sąrašas[],MATCH(SUMPRODUCT((Paskaitų_Sąrašas[DIENA]=MokymųTvarkaraštis[[#Headers],[TREČIADIENIS]])*(ROUNDDOWN($B12,10)>=ROUNDDOWN(Paskaitų_Sąrašas[PRADŽIOS LAIKAS],10))*($B12<=Paskaitų_Sąrašas[PABAIGOS LAIKAS]),Paskaitų_Sąrašas[UNIKALUS]),Paskaitų_Sąrašas[UNIKALUS],0),2),0)","v":0},{"$f":"IFERROR(INDEX(Paskaitų_Sąrašas[],MATCH(SUMPRODUCT((Paskaitų_Sąrašas[DIENA]=MokymųTvarkaraštis[[#Headers],[KETVIRTADIENIS]])*(ROUNDDOWN($B12,10)>=ROUNDDOWN(Paskaitų_Sąrašas[PRADŽIOS LAIKAS],10))*($B12<=Paskaitų_Sąrašas[PABAIGOS LAIKAS]),Paskaitų_Sąrašas[UNIKALUS]),Paskaitų_Sąrašas[UNIKALUS],0),2),0)","v":0},{"$f":"IFERROR(INDEX(Paskaitų_Sąrašas[],MATCH(SUMPRODUCT((Paskaitų_Sąrašas[DIENA]=MokymųTvarkaraštis[[#Headers],[PENKTADIENIS]])*(ROUNDDOWN($B12,10)>=ROUNDDOWN(Paskaitų_Sąrašas[PRADŽIOS LAIKAS],10))*($B12<=Paskaitų_Sąrašas[PABAIGOS LAIKAS]),Paskaitų_Sąrašas[UNIKALUS]),Paskaitų_Sąrašas[UNIKALUS],0),2),0)","v":0},{"$f":"IFERROR(INDEX(Paskaitų_Sąrašas[],MATCH(SUMPRODUCT((Paskaitų_Sąrašas[DIENA]=MokymųTvarkaraštis[[#Headers],[ŠEŠTADIENIS]])*(ROUNDDOWN($B12,10)>=ROUNDDOWN(Paskaitų_Sąrašas[PRADŽIOS LAIKAS],10))*($B12<=Paskaitų_Sąrašas[PABAIGOS LAIKAS]),Paskaitų_Sąrašas[UNIKALUS]),Paskaitų_Sąrašas[UNIKALUS],0),2),0)","v":0}]
[null,"10:15:00",{"$f":"IFERROR(INDEX(Paskaitų_Sąrašas[],MATCH(SUMPRODUCT((Paskaitų_Sąrašas[DIENA]=MokymųTvarkaraštis[[#Headers],[SEKMADIENIS]])*(ROUNDDOWN($B13,10)>=ROUNDDOWN(Paskaitų_Sąrašas[PRADŽIOS LAIKAS],10))*($B13<=Paskaitų_Sąrašas[PABAIGOS LAIKAS]),Paskaitų_Sąrašas[UNIKALUS]),Paskaitų_Sąrašas[UNIKALUS],0),2),0)","v":0},{"$f":"IFERROR(INDEX(Paskaitų_Sąrašas[],MATCH(SUMPRODUCT((Paskaitų_Sąrašas[DIENA]=MokymųTvarkaraštis[[#Headers],[PIRMADIENIS]])*(ROUNDDOWN($B13,10)>=ROUNDDOWN(Paskaitų_Sąrašas[PRADŽIOS LAIKAS],10))*($B13<=Paskaitų_Sąrašas[PABAIGOS LAIKAS]),Paskaitų_Sąrašas[UNIKALUS]),Paskaitų_Sąrašas[UNIKALUS],0),2),0)","v":0},{"$f":"IFERROR(INDEX(Paskaitų_Sąrašas[],MATCH(SUMPRODUCT((Paskaitų_Sąrašas[DIENA]=MokymųTvarkaraštis[[#Headers],[ANTRADIENIS]])*(ROUNDDOWN($B13,10)>=ROUNDDOWN(Paskaitų_Sąrašas[PRADŽIOS LAIKAS],10))*($B13<=Paskaitų_Sąrašas[PABAIGOS LAIKAS]),Paskaitų_Sąrašas[UNIKALUS]),Paskaitų_Sąrašas[UNIKALUS],0),2),0)","v":0},{"$f":"IFERROR(INDEX(Paskaitų_Sąrašas[],MATCH(SUMPRODUCT((Paskaitų_Sąrašas[DIENA]=MokymųTvarkaraštis[[#Headers],[TREČIADIENIS]])*(ROUNDDOWN($B13,10)>=ROUNDDOWN(Paskaitų_Sąrašas[PRADŽIOS LAIKAS],10))*($B13<=Paskaitų_Sąrašas[PABAIGOS LAIKAS]),Paskaitų_Sąrašas[UNIKALUS]),Paskaitų_Sąrašas[UNIKALUS],0),2),0)","v":0},{"$f":"IFERROR(INDEX(Paskaitų_Sąrašas[],MATCH(SUMPRODUCT((Paskaitų_Sąrašas[DIENA]=MokymųTvarkaraštis[[#Headers],[KETVIRTADIENIS]])*(ROUNDDOWN($B13,10)>=ROUNDDOWN(Paskaitų_Sąrašas[PRADŽIOS LAIKAS],10))*($B13<=Paskaitų_Sąrašas[PABAIGOS LAIKAS]),Paskaitų_Sąrašas[UNIKALUS]),Paskaitų_Sąrašas[UNIKALUS],0),2),0)","v":0},{"$f":"IFERROR(INDEX(Paskaitų_Sąrašas[],MATCH(SUMPRODUCT((Paskaitų_Sąrašas[DIENA]=MokymųTvarkaraštis[[#Headers],[PENKTADIENIS]])*(ROUNDDOWN($B13,10)>=ROUNDDOWN(Paskaitų_Sąrašas[PRADŽIOS LAIKAS],10))*($B13<=Paskaitų_Sąrašas[PABAIGOS LAIKAS]),Paskaitų_Sąrašas[UNIKALUS]),Paskaitų_Sąrašas[UNIKALUS],0),2),0)","v":0},{"$f":"IFERROR(INDEX(Paskaitų_Sąrašas[],MATCH(SUMPRODUCT((Paskaitų_Sąrašas[DIENA]=MokymųTvarkaraštis[[#Headers],[ŠEŠTADIENIS]])*(ROUNDDOWN($B13,10)>=ROUNDDOWN(Paskaitų_Sąrašas[PRADŽIOS LAIKAS],10))*($B13<=Paskaitų_Sąrašas[PABAIGOS LAIKAS]),Paskaitų_Sąrašas[UNIKALUS]),Paskaitų_Sąrašas[UNIKALUS],0),2),0)","v":0}]
[null,"10:30:00",{"$f":"IFERROR(INDEX(Paskaitų_Sąrašas[],MATCH(SUMPRODUCT((Paskaitų_Sąrašas[DIENA]=MokymųTvarkaraštis[[#Headers],[SEKMADIENIS]])*(ROUNDDOWN($B14,10)>=ROUNDDOWN(Paskaitų_Sąrašas[PRADŽIOS LAIKAS],10))*($B14<=Paskaitų_Sąrašas[PABAIGOS LAIKAS]),Paskaitų_Sąrašas[UNIKALUS]),Paskaitų_Sąrašas[UNIKALUS],0),2),0)","v":0},{"$f":"IFERROR(INDEX(Paskaitų_Sąrašas[],MATCH(SUMPRODUCT((Paskaitų_Sąrašas[DIENA]=MokymųTvarkaraštis[[#Headers],[PIRMADIENIS]])*(ROUNDDOWN($B14,10)>=ROUNDDOWN(Paskaitų_Sąrašas[PRADŽIOS LAIKAS],10))*($B14<=Paskaitų_Sąrašas[PABAIGOS LAIKAS]),Paskaitų_Sąrašas[UNIKALUS]),Paskaitų_Sąrašas[UNIKALUS],0),2),0)","v":0},{"$f":"IFERROR(INDEX(Paskaitų_Sąrašas[],MATCH(SUMPRODUCT((Paskaitų_Sąrašas[DIENA]=MokymųTvarkaraštis[[#Headers],[ANTRADIENIS]])*(ROUNDDOWN($B14,10)>=ROUNDDOWN(Paskaitų_Sąrašas[PRADŽIOS LAIKAS],10))*($B14<=Paskaitų_Sąrašas[PABAIGOS LAIKAS]),Paskaitų_Sąrašas[UNIKALUS]),Paskaitų_Sąrašas[UNIKALUS],0),2),0)","v":0},{"$f":"IFERROR(INDEX(Paskaitų_Sąrašas[],MATCH(SUMPRODUCT((Paskaitų_Sąrašas[DIENA]=MokymųTvarkaraštis[[#Headers],[TREČIADIENIS]])*(ROUNDDOWN($B14,10)>=ROUNDDOWN(Paskaitų_Sąrašas[PRADŽIOS LAIKAS],10))*($B14<=Paskaitų_Sąrašas[PABAIGOS LAIKAS]),Paskaitų_Sąrašas[UNIKALUS]),Paskaitų_Sąrašas[UNIKALUS],0),2),0)","v":0},{"$f":"IFERROR(INDEX(Paskaitų_Sąrašas[],MATCH(SUMPRODUCT((Paskaitų_Sąrašas[DIENA]=MokymųTvarkaraštis[[#Headers],[KETVIRTADIENIS]])*(ROUNDDOWN($B14,10)>=ROUNDDOWN(Paskaitų_Sąrašas[PRADŽIOS LAIKAS],10))*($B14<=Paskaitų_Sąrašas[PABAIGOS LAIKAS]),Paskaitų_Sąrašas[UNIKALUS]),Paskaitų_Sąrašas[UNIKALUS],0),2),0)","v":0},{"$f":"IFERROR(INDEX(Paskaitų_Sąrašas[],MATCH(SUMPRODUCT((Paskaitų_Sąrašas[DIENA]=MokymųTvarkaraštis[[#Headers],[PENKTADIENIS]])*(ROUNDDOWN($B14,10)>=ROUNDDOWN(Paskaitų_Sąrašas[PRADŽIOS LAIKAS],10))*($B14<=Paskaitų_Sąrašas[PABAIGOS LAIKAS]),Paskaitų_Sąrašas[UNIKALUS]),Paskaitų_Sąrašas[UNIKALUS],0),2),0)","v":0},{"$f":"IFERROR(INDEX(Paskaitų_Sąrašas[],MATCH(SUMPRODUCT((Paskaitų_Sąrašas[DIENA]=MokymųTvarkaraštis[[#Headers],[ŠEŠTADIENIS]])*(ROUNDDOWN($B14,10)>=ROUNDDOWN(Paskaitų_Sąrašas[PRADŽIOS LAIKAS],10))*($B14<=Paskaitų_Sąrašas[PABAIGOS LAIKAS]),Paskaitų_Sąrašas[UNIKALUS]),Paskaitų_Sąrašas[UNIKALUS],0),2),0)","v":0}]
[null,"10:45:00",{"$f":"IFERROR(INDEX(Paskaitų_Sąrašas[],MATCH(SUMPRODUCT((Paskaitų_Sąrašas[DIENA]=MokymųTvarkaraštis[[#Headers],[SEKMADIENIS]])*(ROUNDDOWN($B15,10)>=ROUNDDOWN(Paskaitų_Sąrašas[PRADŽIOS LAIKAS],10))*($B15<=Paskaitų_Sąrašas[PABAIGOS LAIKAS]),Paskaitų_Sąrašas[UNIKALUS]),Paskaitų_Sąrašas[UNIKALUS],0),2),0)","v":0},{"$f":"IFERROR(INDEX(Paskaitų_Sąrašas[],MATCH(SUMPRODUCT((Paskaitų_Sąrašas[DIENA]=MokymųTvarkaraštis[[#Headers],[PIRMADIENIS]])*(ROUNDDOWN($B15,10)>=ROUNDDOWN(Paskaitų_Sąrašas[PRADŽIOS LAIKAS],10))*($B15<=Paskaitų_Sąrašas[PABAIGOS LAIKAS]),Paskaitų_Sąrašas[UNIKALUS]),Paskaitų_Sąrašas[UNIKALUS],0),2),0)","v":0},{"$f":"IFERROR(INDEX(Paskaitų_Sąrašas[],MATCH(SUMPRODUCT((Paskaitų_Sąrašas[DIENA]=MokymųTvarkaraštis[[#Headers],[ANTRADIENIS]])*(ROUNDDOWN($B15,10)>=ROUNDDOWN(Paskaitų_Sąrašas[PRADŽIOS LAIKAS],10))*($B15<=Paskaitų_Sąrašas[PABAIGOS LAIKAS]),Paskaitų_Sąrašas[UNIKALUS]),Paskaitų_Sąrašas[UNIKALUS],0),2),0)","v":0},{"$f":"IFERROR(INDEX(Paskaitų_Sąrašas[],MATCH(SUMPRODUCT((Paskaitų_Sąrašas[DIENA]=MokymųTvarkaraštis[[#Headers],[TREČIADIENIS]])*(ROUNDDOWN($B15,10)>=ROUNDDOWN(Paskaitų_Sąrašas[PRADŽIOS LAIKAS],10))*($B15<=Paskaitų_Sąrašas[PABAIGOS LAIKAS]),Paskaitų_Sąrašas[UNIKALUS]),Paskaitų_Sąrašas[UNIKALUS],0),2),0)","v":0},{"$f":"IFERROR(INDEX(Paskaitų_Sąrašas[],MATCH(SUMPRODUCT((Paskaitų_Sąrašas[DIENA]=MokymųTvarkaraštis[[#Headers],[KETVIRTADIENIS]])*(ROUNDDOWN($B15,10)>=ROUNDDOWN(Paskaitų_Sąrašas[PRADŽIOS LAIKAS],10))*($B15<=Paskaitų_Sąrašas[PABAIGOS LAIKAS]),Paskaitų_Sąrašas[UNIKALUS]),Paskaitų_Sąrašas[UNIKALUS],0),2),0)","v":0},{"$f":"IFERROR(INDEX(Paskaitų_Sąrašas[],MATCH(SUMPRODUCT((Paskaitų_Sąrašas[DIENA]=MokymųTvarkaraštis[[#Headers],[PENKTADIENIS]])*(ROUNDDOWN($B15,10)>=ROUNDDOWN(Paskaitų_Sąrašas[PRADŽIOS LAIKAS],10))*($B15<=Paskaitų_Sąrašas[PABAIGOS LAIKAS]),Paskaitų_Sąrašas[UNIKALUS]),Paskaitų_Sąrašas[UNIKALUS],0),2),0)","v":0},{"$f":"IFERROR(INDEX(Paskaitų_Sąrašas[],MATCH(SUMPRODUCT((Paskaitų_Sąrašas[DIENA]=MokymųTvarkaraštis[[#Headers],[ŠEŠTADIENIS]])*(ROUNDDOWN($B15,10)>=ROUNDDOWN(Paskaitų_Sąrašas[PRADŽIOS LAIKAS],10))*($B15<=Paskaitų_Sąrašas[PABAIGOS LAIKAS]),Paskaitų_Sąrašas[UNIKALUS]),Paskaitų_Sąrašas[UNIKALUS],0),2),0)","v":0}]
[null,"11:00:00",{"$f":"IFERROR(INDEX(Paskaitų_Sąrašas[],MATCH(SUMPRODUCT((Paskaitų_Sąrašas[DIENA]=MokymųTvarkaraštis[[#Headers],[SEKMADIENIS]])*(ROUNDDOWN($B16,10)>=ROUNDDOWN(Paskaitų_Sąrašas[PRADŽIOS LAIKAS],10))*($B16<=Paskaitų_Sąrašas[PABAIGOS LAIKAS]),Paskaitų_Sąrašas[UNIKALUS]),Paskaitų_Sąrašas[UNIKALUS],0),2),0)","v":0},{"$f":"IFERROR(INDEX(Paskaitų_Sąrašas[],MATCH(SUMPRODUCT((Paskaitų_Sąrašas[DIENA]=MokymųTvarkaraštis[[#Headers],[PIRMADIENIS]])*(ROUNDDOWN($B16,10)>=ROUNDDOWN(Paskaitų_Sąrašas[PRADŽIOS LAIKAS],10))*($B16<=Paskaitų_Sąrašas[PABAIGOS LAIKAS]),Paskaitų_Sąrašas[UNIKALUS]),Paskaitų_Sąrašas[UNIKALUS],0),2),0)","v":0},{"$f":"IFERROR(INDEX(Paskaitų_Sąrašas[],MATCH(SUMPRODUCT((Paskaitų_Sąrašas[DIENA]=MokymųTvarkaraštis[[#Headers],[ANTRADIENIS]])*(ROUNDDOWN($B16,10)>=ROUNDDOWN(Paskaitų_Sąrašas[PRADŽIOS LAIKAS],10))*($B16<=Paskaitų_Sąrašas[PABAIGOS LAIKAS]),Paskaitų_Sąrašas[UNIKALUS]),Paskaitų_Sąrašas[UNIKALUS],0),2),0)","v":"HPE-295"},{"$f":"IFERROR(INDEX(Paskaitų_Sąrašas[],MATCH(SUMPRODUCT((Paskaitų_Sąrašas[DIENA]=MokymųTvarkaraštis[[#Headers],[TREČIADIENIS]])*(ROUNDDOWN($B16,10)>=ROUNDDOWN(Paskaitų_Sąrašas[PRADŽIOS LAIKAS],10))*($B16<=Paskaitų_Sąrašas[PABAIGOS LAIKAS]),Paskaitų_Sąrašas[UNIKALUS]),Paskaitų_Sąrašas[UNIKALUS],0),2),0)","v":0},{"$f":"IFERROR(INDEX(Paskaitų_Sąrašas[],MATCH(SUMPRODUCT((Paskaitų_Sąrašas[DIENA]=MokymųTvarkaraštis[[#Headers],[KETVIRTADIENIS]])*(ROUNDDOWN($B16,10)>=ROUNDDOWN(Paskaitų_Sąrašas[PRADŽIOS LAIKAS],10))*($B16<=Paskaitų_Sąrašas[PABAIGOS LAIKAS]),Paskaitų_Sąrašas[UNIKALUS]),Paskaitų_Sąrašas[UNIKALUS],0),2),0)","v":"HPE-295"},{"$f":"IFERROR(INDEX(Paskaitų_Sąrašas[],MATCH(SUMPRODUCT((Paskaitų_Sąrašas[DIENA]=MokymųTvarkaraštis[[#Headers],[PENKTADIENIS]])*(ROUNDDOWN($B16,10)>=ROUNDDOWN(Paskaitų_Sąrašas[PRADŽIOS LAIKAS],10))*($B16<=Paskaitų_Sąrašas[PABAIGOS LAIKAS]),Paskaitų_Sąrašas[UNIKALUS]),Paskaitų_Sąrašas[UNIKALUS],0),2),0)","v":0},{"$f":"IFERROR(INDEX(Paskaitų_Sąrašas[],MATCH(SUMPRODUCT((Paskaitų_Sąrašas[DIENA]=MokymųTvarkaraštis[[#Headers],[ŠEŠTADIENIS]])*(ROUNDDOWN($B16,10)>=ROUNDDOWN(Paskaitų_Sąrašas[PRADŽIOS LAIKAS],10))*($B16<=Paskaitų_Sąrašas[PABAIGOS LAIKAS]),Paskaitų_Sąrašas[UNIKALUS]),Paskaitų_Sąrašas[UNIKALUS],0),2),0)","v":0}]
[null,"11:15:00",{"$f":"IFERROR(INDEX(Paskaitų_Sąrašas[],MATCH(SUMPRODUCT((Paskaitų_Sąrašas[DIENA]=MokymųTvarkaraštis[[#Headers],[SEKMADIENIS]])*(ROUNDDOWN($B17,10)>=ROUNDDOWN(Paskaitų_Sąrašas[PRADŽIOS LAIKAS],10))*($B17<=Paskaitų_Sąrašas[PABAIGOS LAIKAS]),Paskaitų_Sąrašas[UNIKALUS]),Paskaitų_Sąrašas[UNIKALUS],0),2),0)","v":0},{"$f":"IFERROR(INDEX(Paskaitų_Sąrašas[],MATCH(SUMPRODUCT((Paskaitų_Sąrašas[DIENA]=MokymųTvarkaraštis[[#Headers],[PIRMADIENIS]])*(ROUNDDOWN($B17,10)>=ROUNDDOWN(Paskaitų_Sąrašas[PRADŽIOS LAIKAS],10))*($B17<=Paskaitų_Sąrašas[PABAIGOS LAIKAS]),Paskaitų_Sąrašas[UNIKALUS]),Paskaitų_Sąrašas[UNIKALUS],0),2),0)","v":0},{"$f":"IFERROR(INDEX(Paskaitų_Sąrašas[],MATCH(SUMPRODUCT((Paskaitų_Sąrašas[DIENA]=MokymųTvarkaraštis[[#Headers],[ANTRADIENIS]])*(ROUNDDOWN($B17,10)>=ROUNDDOWN(Paskaitų_Sąrašas[PRADŽIOS LAIKAS],10))*($B17<=Paskaitų_Sąrašas[PABAIGOS LAIKAS]),Paskaitų_Sąrašas[UNIKALUS]),Paskaitų_Sąrašas[UNIKALUS],0),2),0)","v":"HPE-295"},{"$f":"IFERROR(INDEX(Paskaitų_Sąrašas[],MATCH(SUMPRODUCT((Paskaitų_Sąrašas[DIENA]=MokymųTvarkaraštis[[#Headers],[TREČIADIENIS]])*(ROUNDDOWN($B17,10)>=ROUNDDOWN(Paskaitų_Sąrašas[PRADŽIOS LAIKAS],10))*($B17<=Paskaitų_Sąrašas[PABAIGOS LAIKAS]),Paskaitų_Sąrašas[UNIKALUS]),Paskaitų_Sąrašas[UNIKALUS],0),2),0)","v":0},{"$f":"IFERROR(INDEX(Paskaitų_Sąrašas[],MATCH(SUMPRODUCT((Paskaitų_Sąrašas[DIENA]=MokymųTvarkaraštis[[#Headers],[KETVIRTADIENIS]])*(ROUNDDOWN($B17,10)>=ROUNDDOWN(Paskaitų_Sąrašas[PRADŽIOS LAIKAS],10))*($B17<=Paskaitų_Sąrašas[PABAIGOS LAIKAS]),Paskaitų_Sąrašas[UNIKALUS]),Paskaitų_Sąrašas[UNIKALUS],0),2),0)","v":"HPE-295"},{"$f":"IFERROR(INDEX(Paskaitų_Sąrašas[],MATCH(SUMPRODUCT((Paskaitų_Sąrašas[DIENA]=MokymųTvarkaraštis[[#Headers],[PENKTADIENIS]])*(ROUNDDOWN($B17,10)>=ROUNDDOWN(Paskaitų_Sąrašas[PRADŽIOS LAIKAS],10))*($B17<=Paskaitų_Sąrašas[PABAIGOS LAIKAS]),Paskaitų_Sąrašas[UNIKALUS]),Paskaitų_Sąrašas[UNIKALUS],0),2),0)","v":0},{"$f":"IFERROR(INDEX(Paskaitų_Sąrašas[],MATCH(SUMPRODUCT((Paskaitų_Sąrašas[DIENA]=MokymųTvarkaraštis[[#Headers],[ŠEŠTADIENIS]])*(ROUNDDOWN($B17,10)>=ROUNDDOWN(Paskaitų_Sąrašas[PRADŽIOS LAIKAS],10))*($B17<=Paskaitų_Sąrašas[PABAIGOS LAIKAS]),Paskaitų_Sąrašas[UNIKALUS]),Paskaitų_Sąrašas[UNIKALUS],0),2),0)","v":0}]
[null,"11:30:00",{"$f":"IFERROR(INDEX(Paskaitų_Sąrašas[],MATCH(SUMPRODUCT((Paskaitų_Sąrašas[DIENA]=MokymųTvarkaraštis[[#Headers],[SEKMADIENIS]])*(ROUNDDOWN($B18,10)>=ROUNDDOWN(Paskaitų_Sąrašas[PRADŽIOS LAIKAS],10))*($B18<=Paskaitų_Sąrašas[PABAIGOS LAIKAS]),Paskaitų_Sąrašas[UNIKALUS]),Paskaitų_Sąrašas[UNIKALUS],0),2),0)","v":0},{"$f":"IFERROR(INDEX(Paskaitų_Sąrašas[],MATCH(SUMPRODUCT((Paskaitų_Sąrašas[DIENA]=MokymųTvarkaraštis[[#Headers],[PIRMADIENIS]])*(ROUNDDOWN($B18,10)>=ROUNDDOWN(Paskaitų_Sąrašas[PRADŽIOS LAIKAS],10))*($B18<=Paskaitų_Sąrašas[PABAIGOS LAIKAS]),Paskaitų_Sąrašas[UNIKALUS]),Paskaitų_Sąrašas[UNIKALUS],0),2),0)","v":0},{"$f":"IFERROR(INDEX(Paskaitų_Sąrašas[],MATCH(SUMPRODUCT((Paskaitų_Sąrašas[DIENA]=MokymųTvarkaraštis[[#Headers],[ANTRADIENIS]])*(ROUNDDOWN($B18,10)>=ROUNDDOWN(Paskaitų_Sąrašas[PRADŽIOS LAIKAS],10))*($B18<=Paskaitų_Sąrašas[PABAIGOS LAIKAS]),Paskaitų_Sąrašas[UNIKALUS]),Paskaitų_Sąrašas[UNIKALUS],0),2),0)","v":"HPE-295"},{"$f":"IFERROR(INDEX(Paskaitų_Sąrašas[],MATCH(SUMPRODUCT((Paskaitų_Sąrašas[DIENA]=MokymųTvarkaraštis[[#Headers],[TREČIADIENIS]])*(ROUNDDOWN($B18,10)>=ROUNDDOWN(Paskaitų_Sąrašas[PRADŽIOS LAIKAS],10))*($B18<=Paskaitų_Sąrašas[PABAIGOS LAIKAS]),Paskaitų_Sąrašas[UNIKALUS]),Paskaitų_Sąrašas[UNIKALUS],0),2),0)","v":0},{"$f":"IFERROR(INDEX(Paskaitų_Sąrašas[],MATCH(SUMPRODUCT((Paskaitų_Sąrašas[DIENA]=MokymųTvarkaraštis[[#Headers],[KETVIRTADIENIS]])*(ROUNDDOWN($B18,10)>=ROUNDDOWN(Paskaitų_Sąrašas[PRADŽIOS LAIKAS],10))*($B18<=Paskaitų_Sąrašas[PABAIGOS LAIKAS]),Paskaitų_Sąrašas[UNIKALUS]),Paskaitų_Sąrašas[UNIKALUS],0),2),0)","v":"HPE-295"},{"$f":"IFERROR(INDEX(Paskaitų_Sąrašas[],MATCH(SUMPRODUCT((Paskaitų_Sąrašas[DIENA]=MokymųTvarkaraštis[[#Headers],[PENKTADIENIS]])*(ROUNDDOWN($B18,10)>=ROUNDDOWN(Paskaitų_Sąrašas[PRADŽIOS LAIKAS],10))*($B18<=Paskaitų_Sąrašas[PABAIGOS LAIKAS]),Paskaitų_Sąrašas[UNIKALUS]),Paskaitų_Sąrašas[UNIKALUS],0),2),0)","v":0},{"$f":"IFERROR(INDEX(Paskaitų_Sąrašas[],MATCH(SUMPRODUCT((Paskaitų_Sąrašas[DIENA]=MokymųTvarkaraštis[[#Headers],[ŠEŠTADIENIS]])*(ROUNDDOWN($B18,10)>=ROUNDDOWN(Paskaitų_Sąrašas[PRADŽIOS LAIKAS],10))*($B18<=Paskaitų_Sąrašas[PABAIGOS LAIKAS]),Paskaitų_Sąrašas[UNIKALUS]),Paskaitų_Sąrašas[UNIKALUS],0),2),0)","v":0}]
[null,"11:45:00",{"$f":"IFERROR(INDEX(Paskaitų_Sąrašas[],MATCH(SUMPRODUCT((Paskaitų_Sąrašas[DIENA]=MokymųTvarkaraštis[[#Headers],[SEKMADIENIS]])*(ROUNDDOWN($B19,10)>=ROUNDDOWN(Paskaitų_Sąrašas[PRADŽIOS LAIKAS],10))*($B19<=Paskaitų_Sąrašas[PABAIGOS LAIKAS]),Paskaitų_Sąrašas[UNIKALUS]),Paskaitų_Sąrašas[UNIKALUS],0),2),0)","v":0},{"$f":"IFERROR(INDEX(Paskaitų_Sąrašas[],MATCH(SUMPRODUCT((Paskaitų_Sąrašas[DIENA]=MokymųTvarkaraštis[[#Headers],[PIRMADIENIS]])*(ROUNDDOWN($B19,10)>=ROUNDDOWN(Paskaitų_Sąrašas[PRADŽIOS LAIKAS],10))*($B19<=Paskaitų_Sąrašas[PABAIGOS LAIKAS]),Paskaitų_Sąrašas[UNIKALUS]),Paskaitų_Sąrašas[UNIKALUS],0),2),0)","v":0},{"$f":"IFERROR(INDEX(Paskaitų_Sąrašas[],MATCH(SUMPRODUCT((Paskaitų_Sąrašas[DIENA]=MokymųTvarkaraštis[[#Headers],[ANTRADIENIS]])*(ROUNDDOWN($B19,10)>=ROUNDDOWN(Paskaitų_Sąrašas[PRADŽIOS LAIKAS],10))*($B19<=Paskaitų_Sąrašas[PABAIGOS LAIKAS]),Paskaitų_Sąrašas[UNIKALUS]),Paskaitų_Sąrašas[UNIKALUS],0),2),0)","v":"HPE-295"},{"$f":"IFERROR(INDEX(Paskaitų_Sąrašas[],MATCH(SUMPRODUCT((Paskaitų_Sąrašas[DIENA]=MokymųTvarkaraštis[[#Headers],[TREČIADIENIS]])*(ROUNDDOWN($B19,10)>=ROUNDDOWN(Paskaitų_Sąrašas[PRADŽIOS LAIKAS],10))*($B19<=Paskaitų_Sąrašas[PABAIGOS LAIKAS]),Paskaitų_Sąrašas[UNIKALUS]),Paskaitų_Sąrašas[UNIKALUS],0),2),0)","v":0},{"$f":"IFERROR(INDEX(Paskaitų_Sąrašas[],MATCH(SUMPRODUCT((Paskaitų_Sąrašas[DIENA]=MokymųTvarkaraštis[[#Headers],[KETVIRTADIENIS]])*(ROUNDDOWN($B19,10)>=ROUNDDOWN(Paskaitų_Sąrašas[PRADŽIOS LAIKAS],10))*($B19<=Paskaitų_Sąrašas[PABAIGOS LAIKAS]),Paskaitų_Sąrašas[UNIKALUS]),Paskaitų_Sąrašas[UNIKALUS],0),2),0)","v":"HPE-295"},{"$f":"IFERROR(INDEX(Paskaitų_Sąrašas[],MATCH(SUMPRODUCT((Paskaitų_Sąrašas[DIENA]=MokymųTvarkaraštis[[#Headers],[PENKTADIENIS]])*(ROUNDDOWN($B19,10)>=ROUNDDOWN(Paskaitų_Sąrašas[PRADŽIOS LAIKAS],10))*($B19<=Paskaitų_Sąrašas[PABAIGOS LAIKAS]),Paskaitų_Sąrašas[UNIKALUS]),Paskaitų_Sąrašas[UNIKALUS],0),2),0)","v":0},{"$f":"IFERROR(INDEX(Paskaitų_Sąrašas[],MATCH(SUMPRODUCT((Paskaitų_Sąrašas[DIENA]=MokymųTvarkaraštis[[#Headers],[ŠEŠTADIENIS]])*(ROUNDDOWN($B19,10)>=ROUNDDOWN(Paskaitų_Sąrašas[PRADŽIOS LAIKAS],10))*($B19<=Paskaitų_Sąrašas[PABAIGOS LAIKAS]),Paskaitų_Sąrašas[UNIKALUS]),Paskaitų_Sąrašas[UNIKALUS],0),2),0)","v":0}]
[null,"12:00:00",{"$f":"IFERROR(INDEX(Paskaitų_Sąrašas[],MATCH(SUMPRODUCT((Paskaitų_Sąrašas[DIENA]=MokymųTvarkaraštis[[#Headers],[SEKMADIENIS]])*(ROUNDDOWN($B20,10)>=ROUNDDOWN(Paskaitų_Sąrašas[PRADŽIOS LAIKAS],10))*($B20<=Paskaitų_Sąrašas[PABAIGOS LAIKAS]),Paskaitų_Sąrašas[UNIKALUS]),Paskaitų_Sąrašas[UNIKALUS],0),2),0)","v":0},{"$f":"IFERROR(INDEX(Paskaitų_Sąrašas[],MATCH(SUMPRODUCT((Paskaitų_Sąrašas[DIENA]=MokymųTvarkaraštis[[#Headers],[PIRMADIENIS]])*(ROUNDDOWN($B20,10)>=ROUNDDOWN(Paskaitų_Sąrašas[PRADŽIOS LAIKAS],10))*($B20<=Paskaitų_Sąrašas[PABAIGOS LAIKAS]),Paskaitų_Sąrašas[UNIKALUS]),Paskaitų_Sąrašas[UNIKALUS],0),2),0)","v":0},{"$f":"IFERROR(INDEX(Paskaitų_Sąrašas[],MATCH(SUMPRODUCT((Paskaitų_Sąrašas[DIENA]=MokymųTvarkaraštis[[#Headers],[ANTRADIENIS]])*(ROUNDDOWN($B20,10)>=ROUNDDOWN(Paskaitų_Sąrašas[PRADŽIOS LAIKAS],10))*($B20<=Paskaitų_Sąrašas[PABAIGOS LAIKAS]),Paskaitų_Sąrašas[UNIKALUS]),Paskaitų_Sąrašas[UNIKALUS],0),2),0)","v":"HPE-295"},{"$f":"IFERROR(INDEX(Paskaitų_Sąrašas[],MATCH(SUMPRODUCT((Paskaitų_Sąrašas[DIENA]=MokymųTvarkaraštis[[#Headers],[TREČIADIENIS]])*(ROUNDDOWN($B20,10)>=ROUNDDOWN(Paskaitų_Sąrašas[PRADŽIOS LAIKAS],10))*($B20<=Paskaitų_Sąrašas[PABAIGOS LAIKAS]),Paskaitų_Sąrašas[UNIKALUS]),Paskaitų_Sąrašas[UNIKALUS],0),2),0)","v":0},{"$f":"IFERROR(INDEX(Paskaitų_Sąrašas[],MATCH(SUMPRODUCT((Paskaitų_Sąrašas[DIENA]=MokymųTvarkaraštis[[#Headers],[KETVIRTADIENIS]])*(ROUNDDOWN($B20,10)>=ROUNDDOWN(Paskaitų_Sąrašas[PRADŽIOS LAIKAS],10))*($B20<=Paskaitų_Sąrašas[PABAIGOS LAIKAS]),Paskaitų_Sąrašas[UNIKALUS]),Paskaitų_Sąrašas[UNIKALUS],0),2),0)","v":"HPE-295"},{"$f":"IFERROR(INDEX(Paskaitų_Sąrašas[],MATCH(SUMPRODUCT((Paskaitų_Sąrašas[DIENA]=MokymųTvarkaraštis[[#Headers],[PENKTADIENIS]])*(ROUNDDOWN($B20,10)>=ROUNDDOWN(Paskaitų_Sąrašas[PRADŽIOS LAIKAS],10))*($B20<=Paskaitų_Sąrašas[PABAIGOS LAIKAS]),Paskaitų_Sąrašas[UNIKALUS]),Paskaitų_Sąrašas[UNIKALUS],0),2),0)","v":0},{"$f":"IFERROR(INDEX(Paskaitų_Sąrašas[],MATCH(SUMPRODUCT((Paskaitų_Sąrašas[DIENA]=MokymųTvarkaraštis[[#Headers],[ŠEŠTADIENIS]])*(ROUNDDOWN($B20,10)>=ROUNDDOWN(Paskaitų_Sąrašas[PRADŽIOS LAIKAS],10))*($B20<=Paskaitų_Sąrašas[PABAIGOS LAIKAS]),Paskaitų_Sąrašas[UNIKALUS]),Paskaitų_Sąrašas[UNIKALUS],0),2),0)","v":0}]
[null,"12:15:00",{"$f":"IFERROR(INDEX(Paskaitų_Sąrašas[],MATCH(SUMPRODUCT((Paskaitų_Sąrašas[DIENA]=MokymųTvarkaraštis[[#Headers],[SEKMADIENIS]])*(ROUNDDOWN($B21,10)>=ROUNDDOWN(Paskaitų_Sąrašas[PRADŽIOS LAIKAS],10))*($B21<=Paskaitų_Sąrašas[PABAIGOS LAIKAS]),Paskaitų_Sąrašas[UNIKALUS]),Paskaitų_Sąrašas[UNIKALUS],0),2),0)","v":0},{"$f":"IFERROR(INDEX(Paskaitų_Sąrašas[],MATCH(SUMPRODUCT((Paskaitų_Sąrašas[DIENA]=MokymųTvarkaraštis[[#Headers],[PIRMADIENIS]])*(ROUNDDOWN($B21,10)>=ROUNDDOWN(Paskaitų_Sąrašas[PRADŽIOS LAIKAS],10))*($B21<=Paskaitų_Sąrašas[PABAIGOS LAIKAS]),Paskaitų_Sąrašas[UNIKALUS]),Paskaitų_Sąrašas[UNIKALUS],0),2),0)","v":0},{"$f":"IFERROR(INDEX(Paskaitų_Sąrašas[],MATCH(SUMPRODUCT((Paskaitų_Sąrašas[DIENA]=MokymųTvarkaraštis[[#Headers],[ANTRADIENIS]])*(ROUNDDOWN($B21,10)>=ROUNDDOWN(Paskaitų_Sąrašas[PRADŽIOS LAIKAS],10))*($B21<=Paskaitų_Sąrašas[PABAIGOS LAIKAS]),Paskaitų_Sąrašas[UNIKALUS]),Paskaitų_Sąrašas[UNIKALUS],0),2),0)","v":0},{"$f":"IFERROR(INDEX(Paskaitų_Sąrašas[],MATCH(SUMPRODUCT((Paskaitų_Sąrašas[DIENA]=MokymųTvarkaraštis[[#Headers],[TREČIADIENIS]])*(ROUNDDOWN($B21,10)>=ROUNDDOWN(Paskaitų_Sąrašas[PRADŽIOS LAIKAS],10))*($B21<=Paskaitų_Sąrašas[PABAIGOS LAIKAS]),Paskaitų_Sąrašas[UNIKALUS]),Paskaitų_Sąrašas[UNIKALUS],0),2),0)","v":0},{"$f":"IFERROR(INDEX(Paskaitų_Sąrašas[],MATCH(SUMPRODUCT((Paskaitų_Sąrašas[DIENA]=MokymųTvarkaraštis[[#Headers],[KETVIRTADIENIS]])*(ROUNDDOWN($B21,10)>=ROUNDDOWN(Paskaitų_Sąrašas[PRADŽIOS LAIKAS],10))*($B21<=Paskaitų_Sąrašas[PABAIGOS LAIKAS]),Paskaitų_Sąrašas[UNIKALUS]),Paskaitų_Sąrašas[UNIKALUS],0),2),0)","v":0},{"$f":"IFERROR(INDEX(Paskaitų_Sąrašas[],MATCH(SUMPRODUCT((Paskaitų_Sąrašas[DIENA]=MokymųTvarkaraštis[[#Headers],[PENKTADIENIS]])*(ROUNDDOWN($B21,10)>=ROUNDDOWN(Paskaitų_Sąrašas[PRADŽIOS LAIKAS],10))*($B21<=Paskaitų_Sąrašas[PABAIGOS LAIKAS]),Paskaitų_Sąrašas[UNIKALUS]),Paskaitų_Sąrašas[UNIKALUS],0),2),0)","v":0},{"$f":"IFERROR(INDEX(Paskaitų_Sąrašas[],MATCH(SUMPRODUCT((Paskaitų_Sąrašas[DIENA]=MokymųTvarkaraštis[[#Headers],[ŠEŠTADIENIS]])*(ROUNDDOWN($B21,10)>=ROUNDDOWN(Paskaitų_Sąrašas[PRADŽIOS LAIKAS],10))*($B21<=Paskaitų_Sąrašas[PABAIGOS LAIKAS]),Paskaitų_Sąrašas[UNIKALUS]),Paskaitų_Sąrašas[UNIKALUS],0),2),0)","v":0}]
[null,"12:30:00",{"$f":"IFERROR(INDEX(Paskaitų_Sąrašas[],MATCH(SUMPRODUCT((Paskaitų_Sąrašas[DIENA]=MokymųTvarkaraštis[[#Headers],[SEKMADIENIS]])*(ROUNDDOWN($B22,10)>=ROUNDDOWN(Paskaitų_Sąrašas[PRADŽIOS LAIKAS],10))*($B22<=Paskaitų_Sąrašas[PABAIGOS LAIKAS]),Paskaitų_Sąrašas[UNIKALUS]),Paskaitų_Sąrašas[UNIKALUS],0),2),0)","v":0},{"$f":"IFERROR(INDEX(Paskaitų_Sąrašas[],MATCH(SUMPRODUCT((Paskaitų_Sąrašas[DIENA]=MokymųTvarkaraštis[[#Headers],[PIRMADIENIS]])*(ROUNDDOWN($B22,10)>=ROUNDDOWN(Paskaitų_Sąrašas[PRADŽIOS LAIKAS],10))*($B22<=Paskaitų_Sąrašas[PABAIGOS LAIKAS]),Paskaitų_Sąrašas[UNIKALUS]),Paskaitų_Sąrašas[UNIKALUS],0),2),0)","v":0},{"$f":"IFERROR(INDEX(Paskaitų_Sąrašas[],MATCH(SUMPRODUCT((Paskaitų_Sąrašas[DIENA]=MokymųTvarkaraštis[[#Headers],[ANTRADIENIS]])*(ROUNDDOWN($B22,10)>=ROUNDDOWN(Paskaitų_Sąrašas[PRADŽIOS LAIKAS],10))*($B22<=Paskaitų_Sąrašas[PABAIGOS LAIKAS]),Paskaitų_Sąrašas[UNIKALUS]),Paskaitų_Sąrašas[UNIKALUS],0),2),0)","v":0},{"$f":"IFERROR(INDEX(Paskaitų_Sąrašas[],MATCH(SUMPRODUCT((Paskaitų_Sąrašas[DIENA]=MokymųTvarkaraštis[[#Headers],[TREČIADIENIS]])*(ROUNDDOWN($B22,10)>=ROUNDDOWN(Paskaitų_Sąrašas[PRADŽIOS LAIKAS],10))*($B22<=Paskaitų_Sąrašas[PABAIGOS LAIKAS]),Paskaitų_Sąrašas[UNIKALUS]),Paskaitų_Sąrašas[UNIKALUS],0),2),0)","v":0},{"$f":"IFERROR(INDEX(Paskaitų_Sąrašas[],MATCH(SUMPRODUCT((Paskaitų_Sąrašas[DIENA]=MokymųTvarkaraštis[[#Headers],[KETVIRTADIENIS]])*(ROUNDDOWN($B22,10)>=ROUNDDOWN(Paskaitų_Sąrašas[PRADŽIOS LAIKAS],10))*($B22<=Paskaitų_Sąrašas[PABAIGOS LAIKAS]),Paskaitų_Sąrašas[UNIKALUS]),Paskaitų_Sąrašas[UNIKALUS],0),2),0)","v":0},{"$f":"IFERROR(INDEX(Paskaitų_Sąrašas[],MATCH(SUMPRODUCT((Paskaitų_Sąrašas[DIENA]=MokymųTvarkaraštis[[#Headers],[PENKTADIENIS]])*(ROUNDDOWN($B22,10)>=ROUNDDOWN(Paskaitų_Sąrašas[PRADŽIOS LAIKAS],10))*($B22<=Paskaitų_Sąrašas[PABAIGOS LAIKAS]),Paskaitų_Sąrašas[UNIKALUS]),Paskaitų_Sąrašas[UNIKALUS],0),2),0)","v":0},{"$f":"IFERROR(INDEX(Paskaitų_Sąrašas[],MATCH(SUMPRODUCT((Paskaitų_Sąrašas[DIENA]=MokymųTvarkaraštis[[#Headers],[ŠEŠTADIENIS]])*(ROUNDDOWN($B22,10)>=ROUNDDOWN(Paskaitų_Sąrašas[PRADŽIOS LAIKAS],10))*($B22<=Paskaitų_Sąrašas[PABAIGOS LAIKAS]),Paskaitų_Sąrašas[UNIKALUS]),Paskaitų_Sąrašas[UNIKALUS],0),2),0)","v":0}]
[null,"12:45:00",{"$f":"IFERROR(INDEX(Paskaitų_Sąrašas[],MATCH(SUMPRODUCT((Paskaitų_Sąrašas[DIENA]=MokymųTvarkaraštis[[#Headers],[SEKMADIENIS]])*(ROUNDDOWN($B23,10)>=ROUNDDOWN(Paskaitų_Sąrašas[PRADŽIOS LAIKAS],10))*($B23<=Paskaitų_Sąrašas[PABAIGOS LAIKAS]),Paskaitų_Sąrašas[UNIKALUS]),Paskaitų_Sąrašas[UNIKALUS],0),2),0)","v":0},{"$f":"IFERROR(INDEX(Paskaitų_Sąrašas[],MATCH(SUMPRODUCT((Paskaitų_Sąrašas[DIENA]=MokymųTvarkaraštis[[#Headers],[PIRMADIENIS]])*(ROUNDDOWN($B23,10)>=ROUNDDOWN(Paskaitų_Sąrašas[PRADŽIOS LAIKAS],10))*($B23<=Paskaitų_Sąrašas[PABAIGOS LAIKAS]),Paskaitų_Sąrašas[UNIKALUS]),Paskaitų_Sąrašas[UNIKALUS],0),2),0)","v":0},{"$f":"IFERROR(INDEX(Paskaitų_Sąrašas[],MATCH(SUMPRODUCT((Paskaitų_Sąrašas[DIENA]=MokymųTvarkaraštis[[#Headers],[ANTRADIENIS]])*(ROUNDDOWN($B23,10)>=ROUNDDOWN(Paskaitų_Sąrašas[PRADŽIOS LAIKAS],10))*($B23<=Paskaitų_Sąrašas[PABAIGOS LAIKAS]),Paskaitų_Sąrašas[UNIKALUS]),Paskaitų_Sąrašas[UNIKALUS],0),2),0)","v":0},{"$f":"IFERROR(INDEX(Paskaitų_Sąrašas[],MATCH(SUMPRODUCT((Paskaitų_Sąrašas[DIENA]=MokymųTvarkaraštis[[#Headers],[TREČIADIENIS]])*(ROUNDDOWN($B23,10)>=ROUNDDOWN(Paskaitų_Sąrašas[PRADŽIOS LAIKAS],10))*($B23<=Paskaitų_Sąrašas[PABAIGOS LAIKAS]),Paskaitų_Sąrašas[UNIKALUS]),Paskaitų_Sąrašas[UNIKALUS],0),2),0)","v":0},{"$f":"IFERROR(INDEX(Paskaitų_Sąrašas[],MATCH(SUMPRODUCT((Paskaitų_Sąrašas[DIENA]=MokymųTvarkaraštis[[#Headers],[KETVIRTADIENIS]])*(ROUNDDOWN($B23,10)>=ROUNDDOWN(Paskaitų_Sąrašas[PRADŽIOS LAIKAS],10))*($B23<=Paskaitų_Sąrašas[PABAIGOS LAIKAS]),Paskaitų_Sąrašas[UNIKALUS]),Paskaitų_Sąrašas[UNIKALUS],0),2),0)","v":0},{"$f":"IFERROR(INDEX(Paskaitų_Sąrašas[],MATCH(SUMPRODUCT((Paskaitų_Sąrašas[DIENA]=MokymųTvarkaraštis[[#Headers],[PENKTADIENIS]])*(ROUNDDOWN($B23,10)>=ROUNDDOWN(Paskaitų_Sąrašas[PRADŽIOS LAIKAS],10))*($B23<=Paskaitų_Sąrašas[PABAIGOS LAIKAS]),Paskaitų_Sąrašas[UNIKALUS]),Paskaitų_Sąrašas[UNIKALUS],0),2),0)","v":0},{"$f":"IFERROR(INDEX(Paskaitų_Sąrašas[],MATCH(SUMPRODUCT((Paskaitų_Sąrašas[DIENA]=MokymųTvarkaraštis[[#Headers],[ŠEŠTADIENIS]])*(ROUNDDOWN($B23,10)>=ROUNDDOWN(Paskaitų_Sąrašas[PRADŽIOS LAIKAS],10))*($B23<=Paskaitų_Sąrašas[PABAIGOS LAIKAS]),Paskaitų_Sąrašas[UNIKALUS]),Paskaitų_Sąrašas[UNIKALUS],0),2),0)","v":0}]
[null,"13:00:00",{"$f":"IFERROR(INDEX(Paskaitų_Sąrašas[],MATCH(SUMPRODUCT((Paskaitų_Sąrašas[DIENA]=MokymųTvarkaraštis[[#Headers],[SEKMADIENIS]])*(ROUNDDOWN($B24,10)>=ROUNDDOWN(Paskaitų_Sąrašas[PRADŽIOS LAIKAS],10))*($B24<=Paskaitų_Sąrašas[PABAIGOS LAIKAS]),Paskaitų_Sąrašas[UNIKALUS]),Paskaitų_Sąrašas[UNIKALUS],0),2),0)","v":0},{"$f":"IFERROR(INDEX(Paskaitų_Sąrašas[],MATCH(SUMPRODUCT((Paskaitų_Sąrašas[DIENA]=MokymųTvarkaraštis[[#Headers],[PIRMADIENIS]])*(ROUNDDOWN($B24,10)>=ROUNDDOWN(Paskaitų_Sąrašas[PRADŽIOS LAIKAS],10))*($B24<=Paskaitų_Sąrašas[PABAIGOS LAIKAS]),Paskaitų_Sąrašas[UNIKALUS]),Paskaitų_Sąrašas[UNIKALUS],0),2),0)","v":"WR-121"},{"$f":"IFERROR(INDEX(Paskaitų_Sąrašas[],MATCH(SUMPRODUCT((Paskaitų_Sąrašas[DIENA]=MokymųTvarkaraštis[[#Headers],[ANTRADIENIS]])*(ROUNDDOWN($B24,10)>=ROUNDDOWN(Paskaitų_Sąrašas[PRADŽIOS LAIKAS],10))*($B24<=Paskaitų_Sąrašas[PABAIGOS LAIKAS]),Paskaitų_Sąrašas[UNIKALUS]),Paskaitų_Sąrašas[UNIKALUS],0),2),0)","v":0},{"$f":"IFERROR(INDEX(Paskaitų_Sąrašas[],MATCH(SUMPRODUCT((Paskaitų_Sąrašas[DIENA]=MokymųTvarkaraštis[[#Headers],[TREČIADIENIS]])*(ROUNDDOWN($B24,10)>=ROUNDDOWN(Paskaitų_Sąrašas[PRADŽIOS LAIKAS],10))*($B24<=Paskaitų_Sąrašas[PABAIGOS LAIKAS]),Paskaitų_Sąrašas[UNIKALUS]),Paskaitų_Sąrašas[UNIKALUS],0),2),0)","v":"WR-121"},{"$f":"IFERROR(INDEX(Paskaitų_Sąrašas[],MATCH(SUMPRODUCT((Paskaitų_Sąrašas[DIENA]=MokymųTvarkaraštis[[#Headers],[KETVIRTADIENIS]])*(ROUNDDOWN($B24,10)>=ROUNDDOWN(Paskaitų_Sąrašas[PRADŽIOS LAIKAS],10))*($B24<=Paskaitų_Sąrašas[PABAIGOS LAIKAS]),Paskaitų_Sąrašas[UNIKALUS]),Paskaitų_Sąrašas[UNIKALUS],0),2),0)","v":0},{"$f":"IFERROR(INDEX(Paskaitų_Sąrašas[],MATCH(SUMPRODUCT((Paskaitų_Sąrašas[DIENA]=MokymųTvarkaraštis[[#Headers],[PENKTADIENIS]])*(ROUNDDOWN($B24,10)>=ROUNDDOWN(Paskaitų_Sąrašas[PRADŽIOS LAIKAS],10))*($B24<=Paskaitų_Sąrašas[PABAIGOS LAIKAS]),Paskaitų_Sąrašas[UNIKALUS]),Paskaitų_Sąrašas[UNIKALUS],0),2),0)","v":0},{"$f":"IFERROR(INDEX(Paskaitų_Sąrašas[],MATCH(SUMPRODUCT((Paskaitų_Sąrašas[DIENA]=MokymųTvarkaraštis[[#Headers],[ŠEŠTADIENIS]])*(ROUNDDOWN($B24,10)>=ROUNDDOWN(Paskaitų_Sąrašas[PRADŽIOS LAIKAS],10))*($B24<=Paskaitų_Sąrašas[PABAIGOS LAIKAS]),Paskaitų_Sąrašas[UNIKALUS]),Paskaitų_Sąrašas[UNIKALUS],0),2),0)","v":0}]
[null,"13:15:00",{"$f":"IFERROR(INDEX(Paskaitų_Sąrašas[],MATCH(SUMPRODUCT((Paskaitų_Sąrašas[DIENA]=MokymųTvarkaraštis[[#Headers],[SEKMADIENIS]])*(ROUNDDOWN($B25,10)>=ROUNDDOWN(Paskaitų_Sąrašas[PRADŽIOS LAIKAS],10))*($B25<=Paskaitų_Sąrašas[PABAIGOS LAIKAS]),Paskaitų_Sąrašas[UNIKALUS]),Paskaitų_Sąrašas[UNIKALUS],0),2),0)","v":0},{"$f":"IFERROR(INDEX(Paskaitų_Sąrašas[],MATCH(SUMPRODUCT((Paskaitų_Sąrašas[DIENA]=MokymųTvarkaraštis[[#Headers],[PIRMADIENIS]])*(ROUNDDOWN($B25,10)>=ROUNDDOWN(Paskaitų_Sąrašas[PRADŽIOS LAIKAS],10))*($B25<=Paskaitų_Sąrašas[PABAIGOS LAIKAS]),Paskaitų_Sąrašas[UNIKALUS]),Paskaitų_Sąrašas[UNIKALUS],0),2),0)","v":"WR-121"},{"$f":"IFERROR(INDEX(Paskaitų_Sąrašas[],MATCH(SUMPRODUCT((Paskaitų_Sąrašas[DIENA]=MokymųTvarkaraštis[[#Headers],[ANTRADIENIS]])*(ROUNDDOWN($B25,10)>=ROUNDDOWN(Paskaitų_Sąrašas[PRADŽIOS LAIKAS],10))*($B25<=Paskaitų_Sąrašas[PABAIGOS LAIKAS]),Paskaitų_Sąrašas[UNIKALUS]),Paskaitų_Sąrašas[UNIKALUS],0),2),0)","v":0},{"$f":"IFERROR(INDEX(Paskaitų_Sąrašas[],MATCH(SUMPRODUCT((Paskaitų_Sąrašas[DIENA]=MokymųTvarkaraštis[[#Headers],[TREČIADIENIS]])*(ROUNDDOWN($B25,10)>=ROUNDDOWN(Paskaitų_Sąrašas[PRADŽIOS LAIKAS],10))*($B25<=Paskaitų_Sąrašas[PABAIGOS LAIKAS]),Paskaitų_Sąrašas[UNIKALUS]),Paskaitų_Sąrašas[UNIKALUS],0),2),0)","v":"WR-121"},{"$f":"IFERROR(INDEX(Paskaitų_Sąrašas[],MATCH(SUMPRODUCT((Paskaitų_Sąrašas[DIENA]=MokymųTvarkaraštis[[#Headers],[KETVIRTADIENIS]])*(ROUNDDOWN($B25,10)>=ROUNDDOWN(Paskaitų_Sąrašas[PRADŽIOS LAIKAS],10))*($B25<=Paskaitų_Sąrašas[PABAIGOS LAIKAS]),Paskaitų_Sąrašas[UNIKALUS]),Paskaitų_Sąrašas[UNIKALUS],0),2),0)","v":0},{"$f":"IFERROR(INDEX(Paskaitų_Sąrašas[],MATCH(SUMPRODUCT((Paskaitų_Sąrašas[DIENA]=MokymųTvarkaraštis[[#Headers],[PENKTADIENIS]])*(ROUNDDOWN($B25,10)>=ROUNDDOWN(Paskaitų_Sąrašas[PRADŽIOS LAIKAS],10))*($B25<=Paskaitų_Sąrašas[PABAIGOS LAIKAS]),Paskaitų_Sąrašas[UNIKALUS]),Paskaitų_Sąrašas[UNIKALUS],0),2),0)","v":0},{"$f":"IFERROR(INDEX(Paskaitų_Sąrašas[],MATCH(SUMPRODUCT((Paskaitų_Sąrašas[DIENA]=MokymųTvarkaraštis[[#Headers],[ŠEŠTADIENIS]])*(ROUNDDOWN($B25,10)>=ROUNDDOWN(Paskaitų_Sąrašas[PRADŽIOS LAIKAS],10))*($B25<=Paskaitų_Sąrašas[PABAIGOS LAIKAS]),Paskaitų_Sąrašas[UNIKALUS]),Paskaitų_Sąrašas[UNIKALUS],0),2),0)","v":0}]
[null,"13:30:00",{"$f":"IFERROR(INDEX(Paskaitų_Sąrašas[],MATCH(SUMPRODUCT((Paskaitų_Sąrašas[DIENA]=MokymųTvarkaraštis[[#Headers],[SEKMADIENIS]])*(ROUNDDOWN($B26,10)>=ROUNDDOWN(Paskaitų_Sąrašas[PRADŽIOS LAIKAS],10))*($B26<=Paskaitų_Sąrašas[PABAIGOS LAIKAS]),Paskaitų_Sąrašas[UNIKALUS]),Paskaitų_Sąrašas[UNIKALUS],0),2),0)","v":0},{"$f":"IFERROR(INDEX(Paskaitų_Sąrašas[],MATCH(SUMPRODUCT((Paskaitų_Sąrašas[DIENA]=MokymųTvarkaraštis[[#Headers],[PIRMADIENIS]])*(ROUNDDOWN($B26,10)>=ROUNDDOWN(Paskaitų_Sąrašas[PRADŽIOS LAIKAS],10))*($B26<=Paskaitų_Sąrašas[PABAIGOS LAIKAS]),Paskaitų_Sąrašas[UNIKALUS]),Paskaitų_Sąrašas[UNIKALUS],0),2),0)","v":"WR-121"},{"$f":"IFERROR(INDEX(Paskaitų_Sąrašas[],MATCH(SUMPRODUCT((Paskaitų_Sąrašas[DIENA]=MokymųTvarkaraštis[[#Headers],[ANTRADIENIS]])*(ROUNDDOWN($B26,10)>=ROUNDDOWN(Paskaitų_Sąrašas[PRADŽIOS LAIKAS],10))*($B26<=Paskaitų_Sąrašas[PABAIGOS LAIKAS]),Paskaitų_Sąrašas[UNIKALUS]),Paskaitų_Sąrašas[UNIKALUS],0),2),0)","v":0},{"$f":"IFERROR(INDEX(Paskaitų_Sąrašas[],MATCH(SUMPRODUCT((Paskaitų_Sąrašas[DIENA]=MokymųTvarkaraštis[[#Headers],[TREČIADIENIS]])*(ROUNDDOWN($B26,10)>=ROUNDDOWN(Paskaitų_Sąrašas[PRADŽIOS LAIKAS],10))*($B26<=Paskaitų_Sąrašas[PABAIGOS LAIKAS]),Paskaitų_Sąrašas[UNIKALUS]),Paskaitų_Sąrašas[UNIKALUS],0),2),0)","v":"WR-121"},{"$f":"IFERROR(INDEX(Paskaitų_Sąrašas[],MATCH(SUMPRODUCT((Paskaitų_Sąrašas[DIENA]=MokymųTvarkaraštis[[#Headers],[KETVIRTADIENIS]])*(ROUNDDOWN($B26,10)>=ROUNDDOWN(Paskaitų_Sąrašas[PRADŽIOS LAIKAS],10))*($B26<=Paskaitų_Sąrašas[PABAIGOS LAIKAS]),Paskaitų_Sąrašas[UNIKALUS]),Paskaitų_Sąrašas[UNIKALUS],0),2),0)","v":0},{"$f":"IFERROR(INDEX(Paskaitų_Sąrašas[],MATCH(SUMPRODUCT((Paskaitų_Sąrašas[DIENA]=MokymųTvarkaraštis[[#Headers],[PENKTADIENIS]])*(ROUNDDOWN($B26,10)>=ROUNDDOWN(Paskaitų_Sąrašas[PRADŽIOS LAIKAS],10))*($B26<=Paskaitų_Sąrašas[PABAIGOS LAIKAS]),Paskaitų_Sąrašas[UNIKALUS]),Paskaitų_Sąrašas[UNIKALUS],0),2),0)","v":0},{"$f":"IFERROR(INDEX(Paskaitų_Sąrašas[],MATCH(SUMPRODUCT((Paskaitų_Sąrašas[DIENA]=MokymųTvarkaraštis[[#Headers],[ŠEŠTADIENIS]])*(ROUNDDOWN($B26,10)>=ROUNDDOWN(Paskaitų_Sąrašas[PRADŽIOS LAIKAS],10))*($B26<=Paskaitų_Sąrašas[PABAIGOS LAIKAS]),Paskaitų_Sąrašas[UNIKALUS]),Paskaitų_Sąrašas[UNIKALUS],0),2),0)","v":0}]
[null,"13:45:00",{"$f":"IFERROR(INDEX(Paskaitų_Sąrašas[],MATCH(SUMPRODUCT((Paskaitų_Sąrašas[DIENA]=MokymųTvarkaraštis[[#Headers],[SEKMADIENIS]])*(ROUNDDOWN($B27,10)>=ROUNDDOWN(Paskaitų_Sąrašas[PRADŽIOS LAIKAS],10))*($B27<=Paskaitų_Sąrašas[PABAIGOS LAIKAS]),Paskaitų_Sąrašas[UNIKALUS]),Paskaitų_Sąrašas[UNIKALUS],0),2),0)","v":0},{"$f":"IFERROR(INDEX(Paskaitų_Sąrašas[],MATCH(SUMPRODUCT((Paskaitų_Sąrašas[DIENA]=MokymųTvarkaraštis[[#Headers],[PIRMADIENIS]])*(ROUNDDOWN($B27,10)>=ROUNDDOWN(Paskaitų_Sąrašas[PRADŽIOS LAIKAS],10))*($B27<=Paskaitų_Sąrašas[PABAIGOS LAIKAS]),Paskaitų_Sąrašas[UNIKALUS]),Paskaitų_Sąrašas[UNIKALUS],0),2),0)","v":"WR-121"},{"$f":"IFERROR(INDEX(Paskaitų_Sąrašas[],MATCH(SUMPRODUCT((Paskaitų_Sąrašas[DIENA]=MokymųTvarkaraštis[[#Headers],[ANTRADIENIS]])*(ROUNDDOWN($B27,10)>=ROUNDDOWN(Paskaitų_Sąrašas[PRADŽIOS LAIKAS],10))*($B27<=Paskaitų_Sąrašas[PABAIGOS LAIKAS]),Paskaitų_Sąrašas[UNIKALUS]),Paskaitų_Sąrašas[UNIKALUS],0),2),0)","v":0},{"$f":"IFERROR(INDEX(Paskaitų_Sąrašas[],MATCH(SUMPRODUCT((Paskaitų_Sąrašas[DIENA]=MokymųTvarkaraštis[[#Headers],[TREČIADIENIS]])*(ROUNDDOWN($B27,10)>=ROUNDDOWN(Paskaitų_Sąrašas[PRADŽIOS LAIKAS],10))*($B27<=Paskaitų_Sąrašas[PABAIGOS LAIKAS]),Paskaitų_Sąrašas[UNIKALUS]),Paskaitų_Sąrašas[UNIKALUS],0),2),0)","v":"WR-121"},{"$f":"IFERROR(INDEX(Paskaitų_Sąrašas[],MATCH(SUMPRODUCT((Paskaitų_Sąrašas[DIENA]=MokymųTvarkaraštis[[#Headers],[KETVIRTADIENIS]])*(ROUNDDOWN($B27,10)>=ROUNDDOWN(Paskaitų_Sąrašas[PRADŽIOS LAIKAS],10))*($B27<=Paskaitų_Sąrašas[PABAIGOS LAIKAS]),Paskaitų_Sąrašas[UNIKALUS]),Paskaitų_Sąrašas[UNIKALUS],0),2),0)","v":0},{"$f":"IFERROR(INDEX(Paskaitų_Sąrašas[],MATCH(SUMPRODUCT((Paskaitų_Sąrašas[DIENA]=MokymųTvarkaraštis[[#Headers],[PENKTADIENIS]])*(ROUNDDOWN($B27,10)>=ROUNDDOWN(Paskaitų_Sąrašas[PRADŽIOS LAIKAS],10))*($B27<=Paskaitų_Sąrašas[PABAIGOS LAIKAS]),Paskaitų_Sąrašas[UNIKALUS]),Paskaitų_Sąrašas[UNIKALUS],0),2),0)","v":0},{"$f":"IFERROR(INDEX(Paskaitų_Sąrašas[],MATCH(SUMPRODUCT((Paskaitų_Sąrašas[DIENA]=MokymųTvarkaraštis[[#Headers],[ŠEŠTADIENIS]])*(ROUNDDOWN($B27,10)>=ROUNDDOWN(Paskaitų_Sąrašas[PRADŽIOS LAIKAS],10))*($B27<=Paskaitų_Sąrašas[PABAIGOS LAIKAS]),Paskaitų_Sąrašas[UNIKALUS]),Paskaitų_Sąrašas[UNIKALUS],0),2),0)","v":0}]
[null,"14:00:00",{"$f":"IFERROR(INDEX(Paskaitų_Sąrašas[],MATCH(SUMPRODUCT((Paskaitų_Sąrašas[DIENA]=MokymųTvarkaraštis[[#Headers],[SEKMADIENIS]])*(ROUNDDOWN($B28,10)>=ROUNDDOWN(Paskaitų_Sąrašas[PRADŽIOS LAIKAS],10))*($B28<=Paskaitų_Sąrašas[PABAIGOS LAIKAS]),Paskaitų_Sąrašas[UNIKALUS]),Paskaitų_Sąrašas[UNIKALUS],0),2),0)","v":0},{"$f":"IFERROR(INDEX(Paskaitų_Sąrašas[],MATCH(SUMPRODUCT((Paskaitų_Sąrašas[DIENA]=MokymųTvarkaraštis[[#Headers],[PIRMADIENIS]])*(ROUNDDOWN($B28,10)>=ROUNDDOWN(Paskaitų_Sąrašas[PRADŽIOS LAIKAS],10))*($B28<=Paskaitų_Sąrašas[PABAIGOS LAIKAS]),Paskaitų_Sąrašas[UNIKALUS]),Paskaitų_Sąrašas[UNIKALUS],0),2),0)","v":"WR-121"},{"$f":"IFERROR(INDEX(Paskaitų_Sąrašas[],MATCH(SUMPRODUCT((Paskaitų_Sąrašas[DIENA]=MokymųTvarkaraštis[[#Headers],[ANTRADIENIS]])*(ROUNDDOWN($B28,10)>=ROUNDDOWN(Paskaitų_Sąrašas[PRADŽIOS LAIKAS],10))*($B28<=Paskaitų_Sąrašas[PABAIGOS LAIKAS]),Paskaitų_Sąrašas[UNIKALUS]),Paskaitų_Sąrašas[UNIKALUS],0),2),0)","v":0},{"$f":"IFERROR(INDEX(Paskaitų_Sąrašas[],MATCH(SUMPRODUCT((Paskaitų_Sąrašas[DIENA]=MokymųTvarkaraštis[[#Headers],[TREČIADIENIS]])*(ROUNDDOWN($B28,10)>=ROUNDDOWN(Paskaitų_Sąrašas[PRADŽIOS LAIKAS],10))*($B28<=Paskaitų_Sąrašas[PABAIGOS LAIKAS]),Paskaitų_Sąrašas[UNIKALUS]),Paskaitų_Sąrašas[UNIKALUS],0),2),0)","v":"WR-121"},{"$f":"IFERROR(INDEX(Paskaitų_Sąrašas[],MATCH(SUMPRODUCT((Paskaitų_Sąrašas[DIENA]=MokymųTvarkaraštis[[#Headers],[KETVIRTADIENIS]])*(ROUNDDOWN($B28,10)>=ROUNDDOWN(Paskaitų_Sąrašas[PRADŽIOS LAIKAS],10))*($B28<=Paskaitų_Sąrašas[PABAIGOS LAIKAS]),Paskaitų_Sąrašas[UNIKALUS]),Paskaitų_Sąrašas[UNIKALUS],0),2),0)","v":0},{"$f":"IFERROR(INDEX(Paskaitų_Sąrašas[],MATCH(SUMPRODUCT((Paskaitų_Sąrašas[DIENA]=MokymųTvarkaraštis[[#Headers],[PENKTADIENIS]])*(ROUNDDOWN($B28,10)>=ROUNDDOWN(Paskaitų_Sąrašas[PRADŽIOS LAIKAS],10))*($B28<=Paskaitų_Sąrašas[PABAIGOS LAIKAS]),Paskaitų_Sąrašas[UNIKALUS]),Paskaitų_Sąrašas[UNIKALUS],0),2),0)","v":0},{"$f":"IFERROR(INDEX(Paskaitų_Sąrašas[],MATCH(SUMPRODUCT((Paskaitų_Sąrašas[DIENA]=MokymųTvarkaraštis[[#Headers],[ŠEŠTADIENIS]])*(ROUNDDOWN($B28,10)>=ROUNDDOWN(Paskaitų_Sąrašas[PRADŽIOS LAIKAS],10))*($B28<=Paskaitų_Sąrašas[PABAIGOS LAIKAS]),Paskaitų_Sąrašas[UNIKALUS]),Paskaitų_Sąrašas[UNIKALUS],0),2),0)","v":0}]
[null,"14:15:00",{"$f":"IFERROR(INDEX(Paskaitų_Sąrašas[],MATCH(SUMPRODUCT((Paskaitų_Sąrašas[DIENA]=MokymųTvarkaraštis[[#Headers],[SEKMADIENIS]])*(ROUNDDOWN($B29,10)>=ROUNDDOWN(Paskaitų_Sąrašas[PRADŽIOS LAIKAS],10))*($B29<=Paskaitų_Sąrašas[PABAIGOS LAIKAS]),Paskaitų_Sąrašas[UNIKALUS]),Paskaitų_Sąrašas[UNIKALUS],0),2),0)","v":0},{"$f":"IFERROR(INDEX(Paskaitų_Sąrašas[],MATCH(SUMPRODUCT((Paskaitų_Sąrašas[DIENA]=MokymųTvarkaraštis[[#Headers],[PIRMADIENIS]])*(ROUNDDOWN($B29,10)>=ROUNDDOWN(Paskaitų_Sąrašas[PRADŽIOS LAIKAS],10))*($B29<=Paskaitų_Sąrašas[PABAIGOS LAIKAS]),Paskaitų_Sąrašas[UNIKALUS]),Paskaitų_Sąrašas[UNIKALUS],0),2),0)","v":0},{"$f":"IFERROR(INDEX(Paskaitų_Sąrašas[],MATCH(SUMPRODUCT((Paskaitų_Sąrašas[DIENA]=MokymųTvarkaraštis[[#Headers],[ANTRADIENIS]])*(ROUNDDOWN($B29,10)>=ROUNDDOWN(Paskaitų_Sąrašas[PRADŽIOS LAIKAS],10))*($B29<=Paskaitų_Sąrašas[PABAIGOS LAIKAS]),Paskaitų_Sąrašas[UNIKALUS]),Paskaitų_Sąrašas[UNIKALUS],0),2),0)","v":0},{"$f":"IFERROR(INDEX(Paskaitų_Sąrašas[],MATCH(SUMPRODUCT((Paskaitų_Sąrašas[DIENA]=MokymųTvarkaraštis[[#Headers],[TREČIADIENIS]])*(ROUNDDOWN($B29,10)>=ROUNDDOWN(Paskaitų_Sąrašas[PRADŽIOS LAIKAS],10))*($B29<=Paskaitų_Sąrašas[PABAIGOS LAIKAS]),Paskaitų_Sąrašas[UNIKALUS]),Paskaitų_Sąrašas[UNIKALUS],0),2),0)","v":0},{"$f":"IFERROR(INDEX(Paskaitų_Sąrašas[],MATCH(SUMPRODUCT((Paskaitų_Sąrašas[DIENA]=MokymųTvarkaraštis[[#Headers],[KETVIRTADIENIS]])*(ROUNDDOWN($B29,10)>=ROUNDDOWN(Paskaitų_Sąrašas[PRADŽIOS LAIKAS],10))*($B29<=Paskaitų_Sąrašas[PABAIGOS LAIKAS]),Paskaitų_Sąrašas[UNIKALUS]),Paskaitų_Sąrašas[UNIKALUS],0),2),0)","v":0},{"$f":"IFERROR(INDEX(Paskaitų_Sąrašas[],MATCH(SUMPRODUCT((Paskaitų_Sąrašas[DIENA]=MokymųTvarkaraštis[[#Headers],[PENKTADIENIS]])*(ROUNDDOWN($B29,10)>=ROUNDDOWN(Paskaitų_Sąrašas[PRADŽIOS LAIKAS],10))*($B29<=Paskaitų_Sąrašas[PABAIGOS LAIKAS]),Paskaitų_Sąrašas[UNIKALUS]),Paskaitų_Sąrašas[UNIKALUS],0),2),0)","v":0},{"$f":"IFERROR(INDEX(Paskaitų_Sąrašas[],MATCH(SUMPRODUCT((Paskaitų_Sąrašas[DIENA]=MokymųTvarkaraštis[[#Headers],[ŠEŠTADIENIS]])*(ROUNDDOWN($B29,10)>=ROUNDDOWN(Paskaitų_Sąrašas[PRADŽIOS LAIKAS],10))*($B29<=Paskaitų_Sąrašas[PABAIGOS LAIKAS]),Paskaitų_Sąrašas[UNIKALUS]),Paskaitų_Sąrašas[UNIKALUS],0),2),0)","v":0}]
[null,"14:30:00",{"$f":"IFERROR(INDEX(Paskaitų_Sąrašas[],MATCH(SUMPRODUCT((Paskaitų_Sąrašas[DIENA]=MokymųTvarkaraštis[[#Headers],[SEKMADIENIS]])*(ROUNDDOWN($B30,10)>=ROUNDDOWN(Paskaitų_Sąrašas[PRADŽIOS LAIKAS],10))*($B30<=Paskaitų_Sąrašas[PABAIGOS LAIKAS]),Paskaitų_Sąrašas[UNIKALUS]),Paskaitų_Sąrašas[UNIKALUS],0),2),0)","v":0},{"$f":"IFERROR(INDEX(Paskaitų_Sąrašas[],MATCH(SUMPRODUCT((Paskaitų_Sąrašas[DIENA]=MokymųTvarkaraštis[[#Headers],[PIRMADIENIS]])*(ROUNDDOWN($B30,10)>=ROUNDDOWN(Paskaitų_Sąrašas[PRADŽIOS LAIKAS],10))*($B30<=Paskaitų_Sąrašas[PABAIGOS LAIKAS]),Paskaitų_Sąrašas[UNIKALUS]),Paskaitų_Sąrašas[UNIKALUS],0),2),0)","v":0},{"$f":"IFERROR(INDEX(Paskaitų_Sąrašas[],MATCH(SUMPRODUCT((Paskaitų_Sąrašas[DIENA]=MokymųTvarkaraštis[[#Headers],[ANTRADIENIS]])*(ROUNDDOWN($B30,10)>=ROUNDDOWN(Paskaitų_Sąrašas[PRADŽIOS LAIKAS],10))*($B30<=Paskaitų_Sąrašas[PABAIGOS LAIKAS]),Paskaitų_Sąrašas[UNIKALUS]),Paskaitų_Sąrašas[UNIKALUS],0),2),0)","v":0},{"$f":"IFERROR(INDEX(Paskaitų_Sąrašas[],MATCH(SUMPRODUCT((Paskaitų_Sąrašas[DIENA]=MokymųTvarkaraštis[[#Headers],[TREČIADIENIS]])*(ROUNDDOWN($B30,10)>=ROUNDDOWN(Paskaitų_Sąrašas[PRADŽIOS LAIKAS],10))*($B30<=Paskaitų_Sąrašas[PABAIGOS LAIKAS]),Paskaitų_Sąrašas[UNIKALUS]),Paskaitų_Sąrašas[UNIKALUS],0),2),0)","v":0},{"$f":"IFERROR(INDEX(Paskaitų_Sąrašas[],MATCH(SUMPRODUCT((Paskaitų_Sąrašas[DIENA]=MokymųTvarkaraštis[[#Headers],[KETVIRTADIENIS]])*(ROUNDDOWN($B30,10)>=ROUNDDOWN(Paskaitų_Sąrašas[PRADŽIOS LAIKAS],10))*($B30<=Paskaitų_Sąrašas[PABAIGOS LAIKAS]),Paskaitų_Sąrašas[UNIKALUS]),Paskaitų_Sąrašas[UNIKALUS],0),2),0)","v":0},{"$f":"IFERROR(INDEX(Paskaitų_Sąrašas[],MATCH(SUMPRODUCT((Paskaitų_Sąrašas[DIENA]=MokymųTvarkaraštis[[#Headers],[PENKTADIENIS]])*(ROUNDDOWN($B30,10)>=ROUNDDOWN(Paskaitų_Sąrašas[PRADŽIOS LAIKAS],10))*($B30<=Paskaitų_Sąrašas[PABAIGOS LAIKAS]),Paskaitų_Sąrašas[UNIKALUS]),Paskaitų_Sąrašas[UNIKALUS],0),2),0)","v":0},{"$f":"IFERROR(INDEX(Paskaitų_Sąrašas[],MATCH(SUMPRODUCT((Paskaitų_Sąrašas[DIENA]=MokymųTvarkaraštis[[#Headers],[ŠEŠTADIENIS]])*(ROUNDDOWN($B30,10)>=ROUNDDOWN(Paskaitų_Sąrašas[PRADŽIOS LAIKAS],10))*($B30<=Paskaitų_Sąrašas[PABAIGOS LAIKAS]),Paskaitų_Sąrašas[UNIKALUS]),Paskaitų_Sąrašas[UNIKALUS],0),2),0)","v":0}]
[null,"14:45:00",{"$f":"IFERROR(INDEX(Paskaitų_Sąrašas[],MATCH(SUMPRODUCT((Paskaitų_Sąrašas[DIENA]=MokymųTvarkaraštis[[#Headers],[SEKMADIENIS]])*(ROUNDDOWN($B31,10)>=ROUNDDOWN(Paskaitų_Sąrašas[PRADŽIOS LAIKAS],10))*($B31<=Paskaitų_Sąrašas[PABAIGOS LAIKAS]),Paskaitų_Sąrašas[UNIKALUS]),Paskaitų_Sąrašas[UNIKALUS],0),2),0)","v":0},{"$f":"IFERROR(INDEX(Paskaitų_Sąrašas[],MATCH(SUMPRODUCT((Paskaitų_Sąrašas[DIENA]=MokymųTvarkaraštis[[#Headers],[PIRMADIENIS]])*(ROUNDDOWN($B31,10)>=ROUNDDOWN(Paskaitų_Sąrašas[PRADŽIOS LAIKAS],10))*($B31<=Paskaitų_Sąrašas[PABAIGOS LAIKAS]),Paskaitų_Sąrašas[UNIKALUS]),Paskaitų_Sąrašas[UNIKALUS],0),2),0)","v":0},{"$f":"IFERROR(INDEX(Paskaitų_Sąrašas[],MATCH(SUMPRODUCT((Paskaitų_Sąrašas[DIENA]=MokymųTvarkaraštis[[#Headers],[ANTRADIENIS]])*(ROUNDDOWN($B31,10)>=ROUNDDOWN(Paskaitų_Sąrašas[PRADŽIOS LAIKAS],10))*($B31<=Paskaitų_Sąrašas[PABAIGOS LAIKAS]),Paskaitų_Sąrašas[UNIKALUS]),Paskaitų_Sąrašas[UNIKALUS],0),2),0)","v":0},{"$f":"IFERROR(INDEX(Paskaitų_Sąrašas[],MATCH(SUMPRODUCT((Paskaitų_Sąrašas[DIENA]=MokymųTvarkaraštis[[#Headers],[TREČIADIENIS]])*(ROUNDDOWN($B31,10)>=ROUNDDOWN(Paskaitų_Sąrašas[PRADŽIOS LAIKAS],10))*($B31<=Paskaitų_Sąrašas[PABAIGOS LAIKAS]),Paskaitų_Sąrašas[UNIKALUS]),Paskaitų_Sąrašas[UNIKALUS],0),2),0)","v":0},{"$f":"IFERROR(INDEX(Paskaitų_Sąrašas[],MATCH(SUMPRODUCT((Paskaitų_Sąrašas[DIENA]=MokymųTvarkaraštis[[#Headers],[KETVIRTADIENIS]])*(ROUNDDOWN($B31,10)>=ROUNDDOWN(Paskaitų_Sąrašas[PRADŽIOS LAIKAS],10))*($B31<=Paskaitų_Sąrašas[PABAIGOS LAIKAS]),Paskaitų_Sąrašas[UNIKALUS]),Paskaitų_Sąrašas[UNIKALUS],0),2),0)","v":0},{"$f":"IFERROR(INDEX(Paskaitų_Sąrašas[],MATCH(SUMPRODUCT((Paskaitų_Sąrašas[DIENA]=MokymųTvarkaraštis[[#Headers],[PENKTADIENIS]])*(ROUNDDOWN($B31,10)>=ROUNDDOWN(Paskaitų_Sąrašas[PRADŽIOS LAIKAS],10))*($B31<=Paskaitų_Sąrašas[PABAIGOS LAIKAS]),Paskaitų_Sąrašas[UNIKALUS]),Paskaitų_Sąrašas[UNIKALUS],0),2),0)","v":0},{"$f":"IFERROR(INDEX(Paskaitų_Sąrašas[],MATCH(SUMPRODUCT((Paskaitų_Sąrašas[DIENA]=MokymųTvarkaraštis[[#Headers],[ŠEŠTADIENIS]])*(ROUNDDOWN($B31,10)>=ROUNDDOWN(Paskaitų_Sąrašas[PRADŽIOS LAIKAS],10))*($B31<=Paskaitų_Sąrašas[PABAIGOS LAIKAS]),Paskaitų_Sąrašas[UNIKALUS]),Paskaitų_Sąrašas[UNIKALUS],0),2),0)","v":0}]
[null,"15:00:00",{"$f":"IFERROR(INDEX(Paskaitų_Sąrašas[],MATCH(SUMPRODUCT((Paskaitų_Sąrašas[DIENA]=MokymųTvarkaraštis[[#Headers],[SEKMADIENIS]])*(ROUNDDOWN($B32,10)>=ROUNDDOWN(Paskaitų_Sąrašas[PRADŽIOS LAIKAS],10))*($B32<=Paskaitų_Sąrašas[PABAIGOS LAIKAS]),Paskaitų_Sąrašas[UNIKALUS]),Paskaitų_Sąrašas[UNIKALUS],0),2),0)","v":0},{"$f":"IFERROR(INDEX(Paskaitų_Sąrašas[],MATCH(SUMPRODUCT((Paskaitų_Sąrašas[DIENA]=MokymųTvarkaraštis[[#Headers],[PIRMADIENIS]])*(ROUNDDOWN($B32,10)>=ROUNDDOWN(Paskaitų_Sąrašas[PRADŽIOS LAIKAS],10))*($B32<=Paskaitų_Sąrašas[PABAIGOS LAIKAS]),Paskaitų_Sąrašas[UNIKALUS]),Paskaitų_Sąrašas[UNIKALUS],0),2),0)","v":0},{"$f":"IFERROR(INDEX(Paskaitų_Sąrašas[],MATCH(SUMPRODUCT((Paskaitų_Sąrašas[DIENA]=MokymųTvarkaraštis[[#Headers],[ANTRADIENIS]])*(ROUNDDOWN($B32,10)>=ROUNDDOWN(Paskaitų_Sąrašas[PRADŽIOS LAIKAS],10))*($B32<=Paskaitų_Sąrašas[PABAIGOS LAIKAS]),Paskaitų_Sąrašas[UNIKALUS]),Paskaitų_Sąrašas[UNIKALUS],0),2),0)","v":0},{"$f":"IFERROR(INDEX(Paskaitų_Sąrašas[],MATCH(SUMPRODUCT((Paskaitų_Sąrašas[DIENA]=MokymųTvarkaraštis[[#Headers],[TREČIADIENIS]])*(ROUNDDOWN($B32,10)>=ROUNDDOWN(Paskaitų_Sąrašas[PRADŽIOS LAIKAS],10))*($B32<=Paskaitų_Sąrašas[PABAIGOS LAIKAS]),Paskaitų_Sąrašas[UNIKALUS]),Paskaitų_Sąrašas[UNIKALUS],0),2),0)","v":0},{"$f":"IFERROR(INDEX(Paskaitų_Sąrašas[],MATCH(SUMPRODUCT((Paskaitų_Sąrašas[DIENA]=MokymųTvarkaraštis[[#Headers],[KETVIRTADIENIS]])*(ROUNDDOWN($B32,10)>=ROUNDDOWN(Paskaitų_Sąrašas[PRADŽIOS LAIKAS],10))*($B32<=Paskaitų_Sąrašas[PABAIGOS LAIKAS]),Paskaitų_Sąrašas[UNIKALUS]),Paskaitų_Sąrašas[UNIKALUS],0),2),0)","v":0},{"$f":"IFERROR(INDEX(Paskaitų_Sąrašas[],MATCH(SUMPRODUCT((Paskaitų_Sąrašas[DIENA]=MokymųTvarkaraštis[[#Headers],[PENKTADIENIS]])*(ROUNDDOWN($B32,10)>=ROUNDDOWN(Paskaitų_Sąrašas[PRADŽIOS LAIKAS],10))*($B32<=Paskaitų_Sąrašas[PABAIGOS LAIKAS]),Paskaitų_Sąrašas[UNIKALUS]),Paskaitų_Sąrašas[UNIKALUS],0),2),0)","v":0},{"$f":"IFERROR(INDEX(Paskaitų_Sąrašas[],MATCH(SUMPRODUCT((Paskaitų_Sąrašas[DIENA]=MokymųTvarkaraštis[[#Headers],[ŠEŠTADIENIS]])*(ROUNDDOWN($B32,10)>=ROUNDDOWN(Paskaitų_Sąrašas[PRADŽIOS LAIKAS],10))*($B32<=Paskaitų_Sąrašas[PABAIGOS LAIKAS]),Paskaitų_Sąrašas[UNIKALUS]),Paskaitų_Sąrašas[UNIKALUS],0),2),0)","v":0}]
[null,"15:15:00",{"$f":"IFERROR(INDEX(Paskaitų_Sąrašas[],MATCH(SUMPRODUCT((Paskaitų_Sąrašas[DIENA]=MokymųTvarkaraštis[[#Headers],[SEKMADIENIS]])*(ROUNDDOWN($B33,10)>=ROUNDDOWN(Paskaitų_Sąrašas[PRADŽIOS LAIKAS],10))*($B33<=Paskaitų_Sąrašas[PABAIGOS LAIKAS]),Paskaitų_Sąrašas[UNIKALUS]),Paskaitų_Sąrašas[UNIKALUS],0),2),0)","v":0},{"$f":"IFERROR(INDEX(Paskaitų_Sąrašas[],MATCH(SUMPRODUCT((Paskaitų_Sąrašas[DIENA]=MokymųTvarkaraštis[[#Headers],[PIRMADIENIS]])*(ROUNDDOWN($B33,10)>=ROUNDDOWN(Paskaitų_Sąrašas[PRADŽIOS LAIKAS],10))*($B33<=Paskaitų_Sąrašas[PABAIGOS LAIKAS]),Paskaitų_Sąrašas[UNIKALUS]),Paskaitų_Sąrašas[UNIKALUS],0),2),0)","v":0},{"$f":"IFERROR(INDEX(Paskaitų_Sąrašas[],MATCH(SUMPRODUCT((Paskaitų_Sąrašas[DIENA]=MokymųTvarkaraštis[[#Headers],[ANTRADIENIS]])*(ROUNDDOWN($B33,10)>=ROUNDDOWN(Paskaitų_Sąrašas[PRADŽIOS LAIKAS],10))*($B33<=Paskaitų_Sąrašas[PABAIGOS LAIKAS]),Paskaitų_Sąrašas[UNIKALUS]),Paskaitų_Sąrašas[UNIKALUS],0),2),0)","v":0},{"$f":"IFERROR(INDEX(Paskaitų_Sąrašas[],MATCH(SUMPRODUCT((Paskaitų_Sąrašas[DIENA]=MokymųTvarkaraštis[[#Headers],[TREČIADIENIS]])*(ROUNDDOWN($B33,10)>=ROUNDDOWN(Paskaitų_Sąrašas[PRADŽIOS LAIKAS],10))*($B33<=Paskaitų_Sąrašas[PABAIGOS LAIKAS]),Paskaitų_Sąrašas[UNIKALUS]),Paskaitų_Sąrašas[UNIKALUS],0),2),0)","v":0},{"$f":"IFERROR(INDEX(Paskaitų_Sąrašas[],MATCH(SUMPRODUCT((Paskaitų_Sąrašas[DIENA]=MokymųTvarkaraštis[[#Headers],[KETVIRTADIENIS]])*(ROUNDDOWN($B33,10)>=ROUNDDOWN(Paskaitų_Sąrašas[PRADŽIOS LAIKAS],10))*($B33<=Paskaitų_Sąrašas[PABAIGOS LAIKAS]),Paskaitų_Sąrašas[UNIKALUS]),Paskaitų_Sąrašas[UNIKALUS],0),2),0)","v":0},{"$f":"IFERROR(INDEX(Paskaitų_Sąrašas[],MATCH(SUMPRODUCT((Paskaitų_Sąrašas[DIENA]=MokymųTvarkaraštis[[#Headers],[PENKTADIENIS]])*(ROUNDDOWN($B33,10)>=ROUNDDOWN(Paskaitų_Sąrašas[PRADŽIOS LAIKAS],10))*($B33<=Paskaitų_Sąrašas[PABAIGOS LAIKAS]),Paskaitų_Sąrašas[UNIKALUS]),Paskaitų_Sąrašas[UNIKALUS],0),2),0)","v":0},{"$f":"IFERROR(INDEX(Paskaitų_Sąrašas[],MATCH(SUMPRODUCT((Paskaitų_Sąrašas[DIENA]=MokymųTvarkaraštis[[#Headers],[ŠEŠTADIENIS]])*(ROUNDDOWN($B33,10)>=ROUNDDOWN(Paskaitų_Sąrašas[PRADŽIOS LAIKAS],10))*($B33<=Paskaitų_Sąrašas[PABAIGOS LAIKAS]),Paskaitų_Sąrašas[UNIKALUS]),Paskaitų_Sąrašas[UNIKALUS],0),2),0)","v":0}]
[null,"15:30:00",{"$f":"IFERROR(INDEX(Paskaitų_Sąrašas[],MATCH(SUMPRODUCT((Paskaitų_Sąrašas[DIENA]=MokymųTvarkaraštis[[#Headers],[SEKMADIENIS]])*(ROUNDDOWN($B34,10)>=ROUNDDOWN(Paskaitų_Sąrašas[PRADŽIOS LAIKAS],10))*($B34<=Paskaitų_Sąrašas[PABAIGOS LAIKAS]),Paskaitų_Sąrašas[UNIKALUS]),Paskaitų_Sąrašas[UNIKALUS],0),2),0)","v":0},{"$f":"IFERROR(INDEX(Paskaitų_Sąrašas[],MATCH(SUMPRODUCT((Paskaitų_Sąrašas[DIENA]=MokymųTvarkaraštis[[#Headers],[PIRMADIENIS]])*(ROUNDDOWN($B34,10)>=ROUNDDOWN(Paskaitų_Sąrašas[PRADŽIOS LAIKAS],10))*($B34<=Paskaitų_Sąrašas[PABAIGOS LAIKAS]),Paskaitų_Sąrašas[UNIKALUS]),Paskaitų_Sąrašas[UNIKALUS],0),2),0)","v":0},{"$f":"IFERROR(INDEX(Paskaitų_Sąrašas[],MATCH(SUMPRODUCT((Paskaitų_Sąrašas[DIENA]=MokymųTvarkaraštis[[#Headers],[ANTRADIENIS]])*(ROUNDDOWN($B34,10)>=ROUNDDOWN(Paskaitų_Sąrašas[PRADŽIOS LAIKAS],10))*($B34<=Paskaitų_Sąrašas[PABAIGOS LAIKAS]),Paskaitų_Sąrašas[UNIKALUS]),Paskaitų_Sąrašas[UNIKALUS],0),2),0)","v":0},{"$f":"IFERROR(INDEX(Paskaitų_Sąrašas[],MATCH(SUMPRODUCT((Paskaitų_Sąrašas[DIENA]=MokymųTvarkaraštis[[#Headers],[TREČIADIENIS]])*(ROUNDDOWN($B34,10)>=ROUNDDOWN(Paskaitų_Sąrašas[PRADŽIOS LAIKAS],10))*($B34<=Paskaitų_Sąrašas[PABAIGOS LAIKAS]),Paskaitų_Sąrašas[UNIKALUS]),Paskaitų_Sąrašas[UNIKALUS],0),2),0)","v":0},{"$f":"IFERROR(INDEX(Paskaitų_Sąrašas[],MATCH(SUMPRODUCT((Paskaitų_Sąrašas[DIENA]=MokymųTvarkaraštis[[#Headers],[KETVIRTADIENIS]])*(ROUNDDOWN($B34,10)>=ROUNDDOWN(Paskaitų_Sąrašas[PRADŽIOS LAIKAS],10))*($B34<=Paskaitų_Sąrašas[PABAIGOS LAIKAS]),Paskaitų_Sąrašas[UNIKALUS]),Paskaitų_Sąrašas[UNIKALUS],0),2),0)","v":0},{"$f":"IFERROR(INDEX(Paskaitų_Sąrašas[],MATCH(SUMPRODUCT((Paskaitų_Sąrašas[DIENA]=MokymųTvarkaraštis[[#Headers],[PENKTADIENIS]])*(ROUNDDOWN($B34,10)>=ROUNDDOWN(Paskaitų_Sąrašas[PRADŽIOS LAIKAS],10))*($B34<=Paskaitų_Sąrašas[PABAIGOS LAIKAS]),Paskaitų_Sąrašas[UNIKALUS]),Paskaitų_Sąrašas[UNIKALUS],0),2),0)","v":0},{"$f":"IFERROR(INDEX(Paskaitų_Sąrašas[],MATCH(SUMPRODUCT((Paskaitų_Sąrašas[DIENA]=MokymųTvarkaraštis[[#Headers],[ŠEŠTADIENIS]])*(ROUNDDOWN($B34,10)>=ROUNDDOWN(Paskaitų_Sąrašas[PRADŽIOS LAIKAS],10))*($B34<=Paskaitų_Sąrašas[PABAIGOS LAIKAS]),Paskaitų_Sąrašas[UNIKALUS]),Paskaitų_Sąrašas[UNIKALUS],0),2),0)","v":0}]
[null,"15:45:00",{"$f":"IFERROR(INDEX(Paskaitų_Sąrašas[],MATCH(SUMPRODUCT((Paskaitų_Sąrašas[DIENA]=MokymųTvarkaraštis[[#Headers],[SEKMADIENIS]])*(ROUNDDOWN($B35,10)>=ROUNDDOWN(Paskaitų_Sąrašas[PRADŽIOS LAIKAS],10))*($B35<=Paskaitų_Sąrašas[PABAIGOS LAIKAS]),Paskaitų_Sąrašas[UNIKALUS]),Paskaitų_Sąrašas[UNIKALUS],0),2),0)","v":0},{"$f":"IFERROR(INDEX(Paskaitų_Sąrašas[],MATCH(SUMPRODUCT((Paskaitų_Sąrašas[DIENA]=MokymųTvarkaraštis[[#Headers],[PIRMADIENIS]])*(ROUNDDOWN($B35,10)>=ROUNDDOWN(Paskaitų_Sąrašas[PRADŽIOS LAIKAS],10))*($B35<=Paskaitų_Sąrašas[PABAIGOS LAIKAS]),Paskaitų_Sąrašas[UNIKALUS]),Paskaitų_Sąrašas[UNIKALUS],0),2),0)","v":0},{"$f":"IFERROR(INDEX(Paskaitų_Sąrašas[],MATCH(SUMPRODUCT((Paskaitų_Sąrašas[DIENA]=MokymųTvarkaraštis[[#Headers],[ANTRADIENIS]])*(ROUNDDOWN($B35,10)>=ROUNDDOWN(Paskaitų_Sąrašas[PRADŽIOS LAIKAS],10))*($B35<=Paskaitų_Sąrašas[PABAIGOS LAIKAS]),Paskaitų_Sąrašas[UNIKALUS]),Paskaitų_Sąrašas[UNIKALUS],0),2),0)","v":0},{"$f":"IFERROR(INDEX(Paskaitų_Sąrašas[],MATCH(SUMPRODUCT((Paskaitų_Sąrašas[DIENA]=MokymųTvarkaraštis[[#Headers],[TREČIADIENIS]])*(ROUNDDOWN($B35,10)>=ROUNDDOWN(Paskaitų_Sąrašas[PRADŽIOS LAIKAS],10))*($B35<=Paskaitų_Sąrašas[PABAIGOS LAIKAS]),Paskaitų_Sąrašas[UNIKALUS]),Paskaitų_Sąrašas[UNIKALUS],0),2),0)","v":0},{"$f":"IFERROR(INDEX(Paskaitų_Sąrašas[],MATCH(SUMPRODUCT((Paskaitų_Sąrašas[DIENA]=MokymųTvarkaraštis[[#Headers],[KETVIRTADIENIS]])*(ROUNDDOWN($B35,10)>=ROUNDDOWN(Paskaitų_Sąrašas[PRADŽIOS LAIKAS],10))*($B35<=Paskaitų_Sąrašas[PABAIGOS LAIKAS]),Paskaitų_Sąrašas[UNIKALUS]),Paskaitų_Sąrašas[UNIKALUS],0),2),0)","v":0},{"$f":"IFERROR(INDEX(Paskaitų_Sąrašas[],MATCH(SUMPRODUCT((Paskaitų_Sąrašas[DIENA]=MokymųTvarkaraštis[[#Headers],[PENKTADIENIS]])*(ROUNDDOWN($B35,10)>=ROUNDDOWN(Paskaitų_Sąrašas[PRADŽIOS LAIKAS],10))*($B35<=Paskaitų_Sąrašas[PABAIGOS LAIKAS]),Paskaitų_Sąrašas[UNIKALUS]),Paskaitų_Sąrašas[UNIKALUS],0),2),0)","v":0},{"$f":"IFERROR(INDEX(Paskaitų_Sąrašas[],MATCH(SUMPRODUCT((Paskaitų_Sąrašas[DIENA]=MokymųTvarkaraštis[[#Headers],[ŠEŠTADIENIS]])*(ROUNDDOWN($B35,10)>=ROUNDDOWN(Paskaitų_Sąrašas[PRADŽIOS LAIKAS],10))*($B35<=Paskaitų_Sąrašas[PABAIGOS LAIKAS]),Paskaitų_Sąrašas[UNIKALUS]),Paskaitų_Sąrašas[UNIKALUS],0),2),0)","v":0}]
[null,"16:00:00",{"$f":"IFERROR(INDEX(Paskaitų_Sąrašas[],MATCH(SUMPRODUCT((Paskaitų_Sąrašas[DIENA]=MokymųTvarkaraštis[[#Headers],[SEKMADIENIS]])*(ROUNDDOWN($B36,10)>=ROUNDDOWN(Paskaitų_Sąrašas[PRADŽIOS LAIKAS],10))*($B36<=Paskaitų_Sąrašas[PABAIGOS LAIKAS]),Paskaitų_Sąrašas[UNIKALUS]),Paskaitų_Sąrašas[UNIKALUS],0),2),0)","v":0},{"$f":"IFERROR(INDEX(Paskaitų_Sąrašas[],MATCH(SUMPRODUCT((Paskaitų_Sąrašas[DIENA]=MokymųTvarkaraštis[[#Headers],[PIRMADIENIS]])*(ROUNDDOWN($B36,10)>=ROUNDDOWN(Paskaitų_Sąrašas[PRADŽIOS LAIKAS],10))*($B36<=Paskaitų_Sąrašas[PABAIGOS LAIKAS]),Paskaitų_Sąrašas[UNIKALUS]),Paskaitų_Sąrašas[UNIKALUS],0),2),0)","v":"SP-111"},{"$f":"IFERROR(INDEX(Paskaitų_Sąrašas[],MATCH(SUMPRODUCT((Paskaitų_Sąrašas[DIENA]=MokymųTvarkaraštis[[#Headers],[ANTRADIENIS]])*(ROUNDDOWN($B36,10)>=ROUNDDOWN(Paskaitų_Sąrašas[PRADŽIOS LAIKAS],10))*($B36<=Paskaitų_Sąrašas[PABAIGOS LAIKAS]),Paskaitų_Sąrašas[UNIKALUS]),Paskaitų_Sąrašas[UNIKALUS],0),2),0)","v":0},{"$f":"IFERROR(INDEX(Paskaitų_Sąrašas[],MATCH(SUMPRODUCT((Paskaitų_Sąrašas[DIENA]=MokymųTvarkaraštis[[#Headers],[TREČIADIENIS]])*(ROUNDDOWN($B36,10)>=ROUNDDOWN(Paskaitų_Sąrašas[PRADŽIOS LAIKAS],10))*($B36<=Paskaitų_Sąrašas[PABAIGOS LAIKAS]),Paskaitų_Sąrašas[UNIKALUS]),Paskaitų_Sąrašas[UNIKALUS],0),2),0)","v":0},{"$f":"IFERROR(INDEX(Paskaitų_Sąrašas[],MATCH(SUMPRODUCT((Paskaitų_Sąrašas[DIENA]=MokymųTvarkaraštis[[#Headers],[KETVIRTADIENIS]])*(ROUNDDOWN($B36,10)>=ROUNDDOWN(Paskaitų_Sąrašas[PRADŽIOS LAIKAS],10))*($B36<=Paskaitų_Sąrašas[PABAIGOS LAIKAS]),Paskaitų_Sąrašas[UNIKALUS]),Paskaitų_Sąrašas[UNIKALUS],0),2),0)","v":0},{"$f":"IFERROR(INDEX(Paskaitų_Sąrašas[],MATCH(SUMPRODUCT((Paskaitų_Sąrašas[DIENA]=MokymųTvarkaraštis[[#Headers],[PENKTADIENIS]])*(ROUNDDOWN($B36,10)>=ROUNDDOWN(Paskaitų_Sąrašas[PRADŽIOS LAIKAS],10))*($B36<=Paskaitų_Sąrašas[PABAIGOS LAIKAS]),Paskaitų_Sąrašas[UNIKALUS]),Paskaitų_Sąrašas[UNIKALUS],0),2),0)","v":0},{"$f":"IFERROR(INDEX(Paskaitų_Sąrašas[],MATCH(SUMPRODUCT((Paskaitų_Sąrašas[DIENA]=MokymųTvarkaraštis[[#Headers],[ŠEŠTADIENIS]])*(ROUNDDOWN($B36,10)>=ROUNDDOWN(Paskaitų_Sąrašas[PRADŽIOS LAIKAS],10))*($B36<=Paskaitų_Sąrašas[PABAIGOS LAIKAS]),Paskaitų_Sąrašas[UNIKALUS]),Paskaitų_Sąrašas[UNIKALUS],0),2),0)","v":0}]
[null,{"$f":"B36+Pokytis","v":"16:15:00"},{"$f":"IFERROR(INDEX(Paskaitų_Sąrašas[],MATCH(SUMPRODUCT((Paskaitų_Sąrašas[DIENA]=MokymųTvarkaraštis[[#Headers],[SEKMADIENIS]])*(ROUNDDOWN($B37,10)>=ROUNDDOWN(Paskaitų_Sąrašas[PRADŽIOS LAIKAS],10))*($B37<=Paskaitų_Sąrašas[PABAIGOS LAIKAS]),Paskaitų_Sąrašas[UNIKALUS]),Paskaitų_Sąrašas[UNIKALUS],0),2),0)","v":0},{"$f":"IFERROR(INDEX(Paskaitų_Sąrašas[],MATCH(SUMPRODUCT((Paskaitų_Sąrašas[DIENA]=MokymųTvarkaraštis[[#Headers],[PIRMADIENIS]])*(ROUNDDOWN($B37,10)>=ROUNDDOWN(Paskaitų_Sąrašas[PRADŽIOS LAIKAS],10))*($B37<=Paskaitų_Sąrašas[PABAIGOS LAIKAS]),Paskaitų_Sąrašas[UNIKALUS]),Paskaitų_Sąrašas[UNIKALUS],0),2),0)","v":"SP-111"},{"$f":"IFERROR(INDEX(Paskaitų_Sąrašas[],MATCH(SUMPRODUCT((Paskaitų_Sąrašas[DIENA]=MokymųTvarkaraštis[[#Headers],[ANTRADIENIS]])*(ROUNDDOWN($B37,10)>=ROUNDDOWN(Paskaitų_Sąrašas[PRADŽIOS LAIKAS],10))*($B37<=Paskaitų_Sąrašas[PABAIGOS LAIKAS]),Paskaitų_Sąrašas[UNIKALUS]),Paskaitų_Sąrašas[UNIKALUS],0),2),0)","v":0},{"$f":"IFERROR(INDEX(Paskaitų_Sąrašas[],MATCH(SUMPRODUCT((Paskaitų_Sąrašas[DIENA]=MokymųTvarkaraštis[[#Headers],[TREČIADIENIS]])*(ROUNDDOWN($B37,10)>=ROUNDDOWN(Paskaitų_Sąrašas[PRADŽIOS LAIKAS],10))*($B37<=Paskaitų_Sąrašas[PABAIGOS LAIKAS]),Paskaitų_Sąrašas[UNIKALUS]),Paskaitų_Sąrašas[UNIKALUS],0),2),0)","v":0},{"$f":"IFERROR(INDEX(Paskaitų_Sąrašas[],MATCH(SUMPRODUCT((Paskaitų_Sąrašas[DIENA]=MokymųTvarkaraštis[[#Headers],[KETVIRTADIENIS]])*(ROUNDDOWN($B37,10)>=ROUNDDOWN(Paskaitų_Sąrašas[PRADŽIOS LAIKAS],10))*($B37<=Paskaitų_Sąrašas[PABAIGOS LAIKAS]),Paskaitų_Sąrašas[UNIKALUS]),Paskaitų_Sąrašas[UNIKALUS],0),2),0)","v":0},{"$f":"IFERROR(INDEX(Paskaitų_Sąrašas[],MATCH(SUMPRODUCT((Paskaitų_Sąrašas[DIENA]=MokymųTvarkaraštis[[#Headers],[PENKTADIENIS]])*(ROUNDDOWN($B37,10)>=ROUNDDOWN(Paskaitų_Sąrašas[PRADŽIOS LAIKAS],10))*($B37<=Paskaitų_Sąrašas[PABAIGOS LAIKAS]),Paskaitų_Sąrašas[UNIKALUS]),Paskaitų_Sąrašas[UNIKALUS],0),2),0)","v":0},{"$f":"IFERROR(INDEX(Paskaitų_Sąrašas[],MATCH(SUMPRODUCT((Paskaitų_Sąrašas[DIENA]=MokymųTvarkaraštis[[#Headers],[ŠEŠTADIENIS]])*(ROUNDDOWN($B37,10)>=ROUNDDOWN(Paskaitų_Sąrašas[PRADŽIOS LAIKAS],10))*($B37<=Paskaitų_Sąrašas[PABAIGOS LAIKAS]),Paskaitų_Sąrašas[UNIKALUS]),Paskaitų_Sąrašas[UNIKALUS],0),2),0)","v":0}]
[null,"16:30:00",{"$f":"IFERROR(INDEX(Paskaitų_Sąrašas[],MATCH(SUMPRODUCT((Paskaitų_Sąrašas[DIENA]=MokymųTvarkaraštis[[#Headers],[SEKMADIENIS]])*(ROUNDDOWN($B38,10)>=ROUNDDOWN(Paskaitų_Sąrašas[PRADŽIOS LAIKAS],10))*($B38<=Paskaitų_Sąrašas[PABAIGOS LAIKAS]),Paskaitų_Sąrašas[UNIKALUS]),Paskaitų_Sąrašas[UNIKALUS],0),2),0)","v":0},{"$f":"IFERROR(INDEX(Paskaitų_Sąrašas[],MATCH(SUMPRODUCT((Paskaitų_Sąrašas[DIENA]=MokymųTvarkaraštis[[#Headers],[PIRMADIENIS]])*(ROUNDDOWN($B38,10)>=ROUNDDOWN(Paskaitų_Sąrašas[PRADŽIOS LAIKAS],10))*($B38<=Paskaitų_Sąrašas[PABAIGOS LAIKAS]),Paskaitų_Sąrašas[UNIKALUS]),Paskaitų_Sąrašas[UNIKALUS],0),2),0)","v":"SP-111"},{"$f":"IFERROR(INDEX(Paskaitų_Sąrašas[],MATCH(SUMPRODUCT((Paskaitų_Sąrašas[DIENA]=MokymųTvarkaraštis[[#Headers],[ANTRADIENIS]])*(ROUNDDOWN($B38,10)>=ROUNDDOWN(Paskaitų_Sąrašas[PRADŽIOS LAIKAS],10))*($B38<=Paskaitų_Sąrašas[PABAIGOS LAIKAS]),Paskaitų_Sąrašas[UNIKALUS]),Paskaitų_Sąrašas[UNIKALUS],0),2),0)","v":0},{"$f":"IFERROR(INDEX(Paskaitų_Sąrašas[],MATCH(SUMPRODUCT((Paskaitų_Sąrašas[DIENA]=MokymųTvarkaraštis[[#Headers],[TREČIADIENIS]])*(ROUNDDOWN($B38,10)>=ROUNDDOWN(Paskaitų_Sąrašas[PRADŽIOS LAIKAS],10))*($B38<=Paskaitų_Sąrašas[PABAIGOS LAIKAS]),Paskaitų_Sąrašas[UNIKALUS]),Paskaitų_Sąrašas[UNIKALUS],0),2),0)","v":0},{"$f":"IFERROR(INDEX(Paskaitų_Sąrašas[],MATCH(SUMPRODUCT((Paskaitų_Sąrašas[DIENA]=MokymųTvarkaraštis[[#Headers],[KETVIRTADIENIS]])*(ROUNDDOWN($B38,10)>=ROUNDDOWN(Paskaitų_Sąrašas[PRADŽIOS LAIKAS],10))*($B38<=Paskaitų_Sąrašas[PABAIGOS LAIKAS]),Paskaitų_Sąrašas[UNIKALUS]),Paskaitų_Sąrašas[UNIKALUS],0),2),0)","v":0},{"$f":"IFERROR(INDEX(Paskaitų_Sąrašas[],MATCH(SUMPRODUCT((Paskaitų_Sąrašas[DIENA]=MokymųTvarkaraštis[[#Headers],[PENKTADIENIS]])*(ROUNDDOWN($B38,10)>=ROUNDDOWN(Paskaitų_Sąrašas[PRADŽIOS LAIKAS],10))*($B38<=Paskaitų_Sąrašas[PABAIGOS LAIKAS]),Paskaitų_Sąrašas[UNIKALUS]),Paskaitų_Sąrašas[UNIKALUS],0),2),0)","v":0},{"$f":"IFERROR(INDEX(Paskaitų_Sąrašas[],MATCH(SUMPRODUCT((Paskaitų_Sąrašas[DIENA]=MokymųTvarkaraštis[[#Headers],[ŠEŠTADIENIS]])*(ROUNDDOWN($B38,10)>=ROUNDDOWN(Paskaitų_Sąrašas[PRADŽIOS LAIKAS],10))*($B38<=Paskaitų_Sąrašas[PABAIGOS LAIKAS]),Paskaitų_Sąrašas[UNIKALUS]),Paskaitų_Sąrašas[UNIKALUS],0),2),0)","v":0}]
[null,"16:45:00",{"$f":"IFERROR(INDEX(Paskaitų_Sąrašas[],MATCH(SUMPRODUCT((Paskaitų_Sąrašas[DIENA]=MokymųTvarkaraštis[[#Headers],[SEKMADIENIS]])*(ROUNDDOWN($B39,10)>=ROUNDDOWN(Paskaitų_Sąrašas[PRADŽIOS LAIKAS],10))*($B39<=Paskaitų_Sąrašas[PABAIGOS LAIKAS]),Paskaitų_Sąrašas[UNIKALUS]),Paskaitų_Sąrašas[UNIKALUS],0),2),0)","v":0},{"$f":"IFERROR(INDEX(Paskaitų_Sąrašas[],MATCH(SUMPRODUCT((Paskaitų_Sąrašas[DIENA]=MokymųTvarkaraštis[[#Headers],[PIRMADIENIS]])*(ROUNDDOWN($B39,10)>=ROUNDDOWN(Paskaitų_Sąrašas[PRADŽIOS LAIKAS],10))*($B39<=Paskaitų_Sąrašas[PABAIGOS LAIKAS]),Paskaitų_Sąrašas[UNIKALUS]),Paskaitų_Sąrašas[UNIKALUS],0),2),0)","v":"SP-111"},{"$f":"IFERROR(INDEX(Paskaitų_Sąrašas[],MATCH(SUMPRODUCT((Paskaitų_Sąrašas[DIENA]=MokymųTvarkaraštis[[#Headers],[ANTRADIENIS]])*(ROUNDDOWN($B39,10)>=ROUNDDOWN(Paskaitų_Sąrašas[PRADŽIOS LAIKAS],10))*($B39<=Paskaitų_Sąrašas[PABAIGOS LAIKAS]),Paskaitų_Sąrašas[UNIKALUS]),Paskaitų_Sąrašas[UNIKALUS],0),2),0)","v":0},{"$f":"IFERROR(INDEX(Paskaitų_Sąrašas[],MATCH(SUMPRODUCT((Paskaitų_Sąrašas[DIENA]=MokymųTvarkaraštis[[#Headers],[TREČIADIENIS]])*(ROUNDDOWN($B39,10)>=ROUNDDOWN(Paskaitų_Sąrašas[PRADŽIOS LAIKAS],10))*($B39<=Paskaitų_Sąrašas[PABAIGOS LAIKAS]),Paskaitų_Sąrašas[UNIKALUS]),Paskaitų_Sąrašas[UNIKALUS],0),2),0)","v":0},{"$f":"IFERROR(INDEX(Paskaitų_Sąrašas[],MATCH(SUMPRODUCT((Paskaitų_Sąrašas[DIENA]=MokymųTvarkaraštis[[#Headers],[KETVIRTADIENIS]])*(ROUNDDOWN($B39,10)>=ROUNDDOWN(Paskaitų_Sąrašas[PRADŽIOS LAIKAS],10))*($B39<=Paskaitų_Sąrašas[PABAIGOS LAIKAS]),Paskaitų_Sąrašas[UNIKALUS]),Paskaitų_Sąrašas[UNIKALUS],0),2),0)","v":0},{"$f":"IFERROR(INDEX(Paskaitų_Sąrašas[],MATCH(SUMPRODUCT((Paskaitų_Sąrašas[DIENA]=MokymųTvarkaraštis[[#Headers],[PENKTADIENIS]])*(ROUNDDOWN($B39,10)>=ROUNDDOWN(Paskaitų_Sąrašas[PRADŽIOS LAIKAS],10))*($B39<=Paskaitų_Sąrašas[PABAIGOS LAIKAS]),Paskaitų_Sąrašas[UNIKALUS]),Paskaitų_Sąrašas[UNIKALUS],0),2),0)","v":0},{"$f":"IFERROR(INDEX(Paskaitų_Sąrašas[],MATCH(SUMPRODUCT((Paskaitų_Sąrašas[DIENA]=MokymųTvarkaraštis[[#Headers],[ŠEŠTADIENIS]])*(ROUNDDOWN($B39,10)>=ROUNDDOWN(Paskaitų_Sąrašas[PRADŽIOS LAIKAS],10))*($B39<=Paskaitų_Sąrašas[PABAIGOS LAIKAS]),Paskaitų_Sąrašas[UNIKALUS]),Paskaitų_Sąrašas[UNIKALUS],0),2),0)","v":0}]
[null,"17:00:00",{"$f":"IFERROR(INDEX(Paskaitų_Sąrašas[],MATCH(SUMPRODUCT((Paskaitų_Sąrašas[DIENA]=MokymųTvarkaraštis[[#Headers],[SEKMADIENIS]])*(ROUNDDOWN($B40,10)>=ROUNDDOWN(Paskaitų_Sąrašas[PRADŽIOS LAIKAS],10))*($B40<=Paskaitų_Sąrašas[PABAIGOS LAIKAS]),Paskaitų_Sąrašas[UNIKALUS]),Paskaitų_Sąrašas[UNIKALUS],0),2),0)","v":0},{"$f":"IFERROR(INDEX(Paskaitų_Sąrašas[],MATCH(SUMPRODUCT((Paskaitų_Sąrašas[DIENA]=MokymųTvarkaraštis[[#Headers],[PIRMADIENIS]])*(ROUNDDOWN($B40,10)>=ROUNDDOWN(Paskaitų_Sąrašas[PRADŽIOS LAIKAS],10))*($B40<=Paskaitų_Sąrašas[PABAIGOS LAIKAS]),Paskaitų_Sąrašas[UNIKALUS]),Paskaitų_Sąrašas[UNIKALUS],0),2),0)","v":"SP-111"},{"$f":"IFERROR(INDEX(Paskaitų_Sąrašas[],MATCH(SUMPRODUCT((Paskaitų_Sąrašas[DIENA]=MokymųTvarkaraštis[[#Headers],[ANTRADIENIS]])*(ROUNDDOWN($B40,10)>=ROUNDDOWN(Paskaitų_Sąrašas[PRADŽIOS LAIKAS],10))*($B40<=Paskaitų_Sąrašas[PABAIGOS LAIKAS]),Paskaitų_Sąrašas[UNIKALUS]),Paskaitų_Sąrašas[UNIKALUS],0),2),0)","v":0},{"$f":"IFERROR(INDEX(Paskaitų_Sąrašas[],MATCH(SUMPRODUCT((Paskaitų_Sąrašas[DIENA]=MokymųTvarkaraštis[[#Headers],[TREČIADIENIS]])*(ROUNDDOWN($B40,10)>=ROUNDDOWN(Paskaitų_Sąrašas[PRADŽIOS LAIKAS],10))*($B40<=Paskaitų_Sąrašas[PABAIGOS LAIKAS]),Paskaitų_Sąrašas[UNIKALUS]),Paskaitų_Sąrašas[UNIKALUS],0),2),0)","v":0},{"$f":"IFERROR(INDEX(Paskaitų_Sąrašas[],MATCH(SUMPRODUCT((Paskaitų_Sąrašas[DIENA]=MokymųTvarkaraštis[[#Headers],[KETVIRTADIENIS]])*(ROUNDDOWN($B40,10)>=ROUNDDOWN(Paskaitų_Sąrašas[PRADŽIOS LAIKAS],10))*($B40<=Paskaitų_Sąrašas[PABAIGOS LAIKAS]),Paskaitų_Sąrašas[UNIKALUS]),Paskaitų_Sąrašas[UNIKALUS],0),2),0)","v":0},{"$f":"IFERROR(INDEX(Paskaitų_Sąrašas[],MATCH(SUMPRODUCT((Paskaitų_Sąrašas[DIENA]=MokymųTvarkaraštis[[#Headers],[PENKTADIENIS]])*(ROUNDDOWN($B40,10)>=ROUNDDOWN(Paskaitų_Sąrašas[PRADŽIOS LAIKAS],10))*($B40<=Paskaitų_Sąrašas[PABAIGOS LAIKAS]),Paskaitų_Sąrašas[UNIKALUS]),Paskaitų_Sąrašas[UNIKALUS],0),2),0)","v":0},{"$f":"IFERROR(INDEX(Paskaitų_Sąrašas[],MATCH(SUMPRODUCT((Paskaitų_Sąrašas[DIENA]=MokymųTvarkaraštis[[#Headers],[ŠEŠTADIENIS]])*(ROUNDDOWN($B40,10)>=ROUNDDOWN(Paskaitų_Sąrašas[PRADŽIOS LAIKAS],10))*($B40<=Paskaitų_Sąrašas[PABAIGOS LAIKAS]),Paskaitų_Sąrašas[UNIKALUS]),Paskaitų_Sąrašas[UNIKALUS],0),2),0)","v":0}]
[null,"17:15:00",{"$f":"IFERROR(INDEX(Paskaitų_Sąrašas[],MATCH(SUMPRODUCT((Paskaitų_Sąrašas[DIENA]=MokymųTvarkaraštis[[#Headers],[SEKMADIENIS]])*(ROUNDDOWN($B41,10)>=ROUNDDOWN(Paskaitų_Sąrašas[PRADŽIOS LAIKAS],10))*($B41<=Paskaitų_Sąrašas[PABAIGOS LAIKAS]),Paskaitų_Sąrašas[UNIKALUS]),Paskaitų_Sąrašas[UNIKALUS],0),2),0)","v":0},{"$f":"IFERROR(INDEX(Paskaitų_Sąrašas[],MATCH(SUMPRODUCT((Paskaitų_Sąrašas[DIENA]=MokymųTvarkaraštis[[#Headers],[PIRMADIENIS]])*(ROUNDDOWN($B41,10)>=ROUNDDOWN(Paskaitų_Sąrašas[PRADŽIOS LAIKAS],10))*($B41<=Paskaitų_Sąrašas[PABAIGOS LAIKAS]),Paskaitų_Sąrašas[UNIKALUS]),Paskaitų_Sąrašas[UNIKALUS],0),2),0)","v":0},{"$f":"IFERROR(INDEX(Paskaitų_Sąrašas[],MATCH(SUMPRODUCT((Paskaitų_Sąrašas[DIENA]=MokymųTvarkaraštis[[#Headers],[ANTRADIENIS]])*(ROUNDDOWN($B41,10)>=ROUNDDOWN(Paskaitų_Sąrašas[PRADŽIOS LAIKAS],10))*($B41<=Paskaitų_Sąrašas[PABAIGOS LAIKAS]),Paskaitų_Sąrašas[UNIKALUS]),Paskaitų_Sąrašas[UNIKALUS],0),2),0)","v":0},{"$f":"IFERROR(INDEX(Paskaitų_Sąrašas[],MATCH(SUMPRODUCT((Paskaitų_Sąrašas[DIENA]=MokymųTvarkaraštis[[#Headers],[TREČIADIENIS]])*(ROUNDDOWN($B41,10)>=ROUNDDOWN(Paskaitų_Sąrašas[PRADŽIOS LAIKAS],10))*($B41<=Paskaitų_Sąrašas[PABAIGOS LAIKAS]),Paskaitų_Sąrašas[UNIKALUS]),Paskaitų_Sąrašas[UNIKALUS],0),2),0)","v":0},{"$f":"IFERROR(INDEX(Paskaitų_Sąrašas[],MATCH(SUMPRODUCT((Paskaitų_Sąrašas[DIENA]=MokymųTvarkaraštis[[#Headers],[KETVIRTADIENIS]])*(ROUNDDOWN($B41,10)>=ROUNDDOWN(Paskaitų_Sąrašas[PRADŽIOS LAIKAS],10))*($B41<=Paskaitų_Sąrašas[PABAIGOS LAIKAS]),Paskaitų_Sąrašas[UNIKALUS]),Paskaitų_Sąrašas[UNIKALUS],0),2),0)","v":0},{"$f":"IFERROR(INDEX(Paskaitų_Sąrašas[],MATCH(SUMPRODUCT((Paskaitų_Sąrašas[DIENA]=MokymųTvarkaraštis[[#Headers],[PENKTADIENIS]])*(ROUNDDOWN($B41,10)>=ROUNDDOWN(Paskaitų_Sąrašas[PRADŽIOS LAIKAS],10))*($B41<=Paskaitų_Sąrašas[PABAIGOS LAIKAS]),Paskaitų_Sąrašas[UNIKALUS]),Paskaitų_Sąrašas[UNIKALUS],0),2),0)","v":0},{"$f":"IFERROR(INDEX(Paskaitų_Sąrašas[],MATCH(SUMPRODUCT((Paskaitų_Sąrašas[DIENA]=MokymųTvarkaraštis[[#Headers],[ŠEŠTADIENIS]])*(ROUNDDOWN($B41,10)>=ROUNDDOWN(Paskaitų_Sąrašas[PRADŽIOS LAIKAS],10))*($B41<=Paskaitų_Sąrašas[PABAIGOS LAIKAS]),Paskaitų_Sąrašas[UNIKALUS]),Paskaitų_Sąrašas[UNIKALUS],0),2),0)","v":0}]
[null,"17:30:00",{"$f":"IFERROR(INDEX(Paskaitų_Sąrašas[],MATCH(SUMPRODUCT((Paskaitų_Sąrašas[DIENA]=MokymųTvarkaraštis[[#Headers],[SEKMADIENIS]])*(ROUNDDOWN($B42,10)>=ROUNDDOWN(Paskaitų_Sąrašas[PRADŽIOS LAIKAS],10))*($B42<=Paskaitų_Sąrašas[PABAIGOS LAIKAS]),Paskaitų_Sąrašas[UNIKALUS]),Paskaitų_Sąrašas[UNIKALUS],0),2),0)","v":0},{"$f":"IFERROR(INDEX(Paskaitų_Sąrašas[],MATCH(SUMPRODUCT((Paskaitų_Sąrašas[DIENA]=MokymųTvarkaraštis[[#Headers],[PIRMADIENIS]])*(ROUNDDOWN($B42,10)>=ROUNDDOWN(Paskaitų_Sąrašas[PRADŽIOS LAIKAS],10))*($B42<=Paskaitų_Sąrašas[PABAIGOS LAIKAS]),Paskaitų_Sąrašas[UNIKALUS]),Paskaitų_Sąrašas[UNIKALUS],0),2),0)","v":0},{"$f":"IFERROR(INDEX(Paskaitų_Sąrašas[],MATCH(SUMPRODUCT((Paskaitų_Sąrašas[DIENA]=MokymųTvarkaraštis[[#Headers],[ANTRADIENIS]])*(ROUNDDOWN($B42,10)>=ROUNDDOWN(Paskaitų_Sąrašas[PRADŽIOS LAIKAS],10))*($B42<=Paskaitų_Sąrašas[PABAIGOS LAIKAS]),Paskaitų_Sąrašas[UNIKALUS]),Paskaitų_Sąrašas[UNIKALUS],0),2),0)","v":0},{"$f":"IFERROR(INDEX(Paskaitų_Sąrašas[],MATCH(SUMPRODUCT((Paskaitų_Sąrašas[DIENA]=MokymųTvarkaraštis[[#Headers],[TREČIADIENIS]])*(ROUNDDOWN($B42,10)>=ROUNDDOWN(Paskaitų_Sąrašas[PRADŽIOS LAIKAS],10))*($B42<=Paskaitų_Sąrašas[PABAIGOS LAIKAS]),Paskaitų_Sąrašas[UNIKALUS]),Paskaitų_Sąrašas[UNIKALUS],0),2),0)","v":0},{"$f":"IFERROR(INDEX(Paskaitų_Sąrašas[],MATCH(SUMPRODUCT((Paskaitų_Sąrašas[DIENA]=MokymųTvarkaraštis[[#Headers],[KETVIRTADIENIS]])*(ROUNDDOWN($B42,10)>=ROUNDDOWN(Paskaitų_Sąrašas[PRADŽIOS LAIKAS],10))*($B42<=Paskaitų_Sąrašas[PABAIGOS LAIKAS]),Paskaitų_Sąrašas[UNIKALUS]),Paskaitų_Sąrašas[UNIKALUS],0),2),0)","v":0},{"$f":"IFERROR(INDEX(Paskaitų_Sąrašas[],MATCH(SUMPRODUCT((Paskaitų_Sąrašas[DIENA]=MokymųTvarkaraštis[[#Headers],[PENKTADIENIS]])*(ROUNDDOWN($B42,10)>=ROUNDDOWN(Paskaitų_Sąrašas[PRADŽIOS LAIKAS],10))*($B42<=Paskaitų_Sąrašas[PABAIGOS LAIKAS]),Paskaitų_Sąrašas[UNIKALUS]),Paskaitų_Sąrašas[UNIKALUS],0),2),0)","v":0},{"$f":"IFERROR(INDEX(Paskaitų_Sąrašas[],MATCH(SUMPRODUCT((Paskaitų_Sąrašas[DIENA]=MokymųTvarkaraštis[[#Headers],[ŠEŠTADIENIS]])*(ROUNDDOWN($B42,10)>=ROUNDDOWN(Paskaitų_Sąrašas[PRADŽIOS LAIKAS],10))*($B42<=Paskaitų_Sąrašas[PABAIGOS LAIKAS]),Paskaitų_Sąrašas[UNIKALUS]),Paskaitų_Sąrašas[UNIKALUS],0),2),0)","v":0}]
[null,"17:45:00",{"$f":"IFERROR(INDEX(Paskaitų_Sąrašas[],MATCH(SUMPRODUCT((Paskaitų_Sąrašas[DIENA]=MokymųTvarkaraštis[[#Headers],[SEKMADIENIS]])*(ROUNDDOWN($B43,10)>=ROUNDDOWN(Paskaitų_Sąrašas[PRADŽIOS LAIKAS],10))*($B43<=Paskaitų_Sąrašas[PABAIGOS LAIKAS]),Paskaitų_Sąrašas[UNIKALUS]),Paskaitų_Sąrašas[UNIKALUS],0),2),0)","v":0},{"$f":"IFERROR(INDEX(Paskaitų_Sąrašas[],MATCH(SUMPRODUCT((Paskaitų_Sąrašas[DIENA]=MokymųTvarkaraštis[[#Headers],[PIRMADIENIS]])*(ROUNDDOWN($B43,10)>=ROUNDDOWN(Paskaitų_Sąrašas[PRADŽIOS LAIKAS],10))*($B43<=Paskaitų_Sąrašas[PABAIGOS LAIKAS]),Paskaitų_Sąrašas[UNIKALUS]),Paskaitų_Sąrašas[UNIKALUS],0),2),0)","v":0},{"$f":"IFERROR(INDEX(Paskaitų_Sąrašas[],MATCH(SUMPRODUCT((Paskaitų_Sąrašas[DIENA]=MokymųTvarkaraštis[[#Headers],[ANTRADIENIS]])*(ROUNDDOWN($B43,10)>=ROUNDDOWN(Paskaitų_Sąrašas[PRADŽIOS LAIKAS],10))*($B43<=Paskaitų_Sąrašas[PABAIGOS LAIKAS]),Paskaitų_Sąrašas[UNIKALUS]),Paskaitų_Sąrašas[UNIKALUS],0),2),0)","v":0},{"$f":"IFERROR(INDEX(Paskaitų_Sąrašas[],MATCH(SUMPRODUCT((Paskaitų_Sąrašas[DIENA]=MokymųTvarkaraštis[[#Headers],[TREČIADIENIS]])*(ROUNDDOWN($B43,10)>=ROUNDDOWN(Paskaitų_Sąrašas[PRADŽIOS LAIKAS],10))*($B43<=Paskaitų_Sąrašas[PABAIGOS LAIKAS]),Paskaitų_Sąrašas[UNIKALUS]),Paskaitų_Sąrašas[UNIKALUS],0),2),0)","v":0},{"$f":"IFERROR(INDEX(Paskaitų_Sąrašas[],MATCH(SUMPRODUCT((Paskaitų_Sąrašas[DIENA]=MokymųTvarkaraštis[[#Headers],[KETVIRTADIENIS]])*(ROUNDDOWN($B43,10)>=ROUNDDOWN(Paskaitų_Sąrašas[PRADŽIOS LAIKAS],10))*($B43<=Paskaitų_Sąrašas[PABAIGOS LAIKAS]),Paskaitų_Sąrašas[UNIKALUS]),Paskaitų_Sąrašas[UNIKALUS],0),2),0)","v":0},{"$f":"IFERROR(INDEX(Paskaitų_Sąrašas[],MATCH(SUMPRODUCT((Paskaitų_Sąrašas[DIENA]=MokymųTvarkaraštis[[#Headers],[PENKTADIENIS]])*(ROUNDDOWN($B43,10)>=ROUNDDOWN(Paskaitų_Sąrašas[PRADŽIOS LAIKAS],10))*($B43<=Paskaitų_Sąrašas[PABAIGOS LAIKAS]),Paskaitų_Sąrašas[UNIKALUS]),Paskaitų_Sąrašas[UNIKALUS],0),2),0)","v":0},{"$f":"IFERROR(INDEX(Paskaitų_Sąrašas[],MATCH(SUMPRODUCT((Paskaitų_Sąrašas[DIENA]=MokymųTvarkaraštis[[#Headers],[ŠEŠTADIENIS]])*(ROUNDDOWN($B43,10)>=ROUNDDOWN(Paskaitų_Sąrašas[PRADŽIOS LAIKAS],10))*($B43<=Paskaitų_Sąrašas[PABAIGOS LAIKAS]),Paskaitų_Sąrašas[UNIKALUS]),Paskaitų_Sąrašas[UNIKALUS],0),2),0)","v":0}]
[null,"18:00:00",{"$f":"IFERROR(INDEX(Paskaitų_Sąrašas[],MATCH(SUMPRODUCT((Paskaitų_Sąrašas[DIENA]=MokymųTvarkaraštis[[#Headers],[SEKMADIENIS]])*(ROUNDDOWN($B44,10)>=ROUNDDOWN(Paskaitų_Sąrašas[PRADŽIOS LAIKAS],10))*($B44<=Paskaitų_Sąrašas[PABAIGOS LAIKAS]),Paskaitų_Sąrašas[UNIKALUS]),Paskaitų_Sąrašas[UNIKALUS],0),2),0)","v":0},{"$f":"IFERROR(INDEX(Paskaitų_Sąrašas[],MATCH(SUMPRODUCT((Paskaitų_Sąrašas[DIENA]=MokymųTvarkaraštis[[#Headers],[PIRMADIENIS]])*(ROUNDDOWN($B44,10)>=ROUNDDOWN(Paskaitų_Sąrašas[PRADŽIOS LAIKAS],10))*($B44<=Paskaitų_Sąrašas[PABAIGOS LAIKAS]),Paskaitų_Sąrašas[UNIKALUS]),Paskaitų_Sąrašas[UNIKALUS],0),2),0)","v":0},{"$f":"IFERROR(INDEX(Paskaitų_Sąrašas[],MATCH(SUMPRODUCT((Paskaitų_Sąrašas[DIENA]=MokymųTvarkaraštis[[#Headers],[ANTRADIENIS]])*(ROUNDDOWN($B44,10)>=ROUNDDOWN(Paskaitų_Sąrašas[PRADŽIOS LAIKAS],10))*($B44<=Paskaitų_Sąrašas[PABAIGOS LAIKAS]),Paskaitų_Sąrašas[UNIKALUS]),Paskaitų_Sąrašas[UNIKALUS],0),2),0)","v":0},{"$f":"IFERROR(INDEX(Paskaitų_Sąrašas[],MATCH(SUMPRODUCT((Paskaitų_Sąrašas[DIENA]=MokymųTvarkaraštis[[#Headers],[TREČIADIENIS]])*(ROUNDDOWN($B44,10)>=ROUNDDOWN(Paskaitų_Sąrašas[PRADŽIOS LAIKAS],10))*($B44<=Paskaitų_Sąrašas[PABAIGOS LAIKAS]),Paskaitų_Sąrašas[UNIKALUS]),Paskaitų_Sąrašas[UNIKALUS],0),2),0)","v":0},{"$f":"IFERROR(INDEX(Paskaitų_Sąrašas[],MATCH(SUMPRODUCT((Paskaitų_Sąrašas[DIENA]=MokymųTvarkaraštis[[#Headers],[KETVIRTADIENIS]])*(ROUNDDOWN($B44,10)>=ROUNDDOWN(Paskaitų_Sąrašas[PRADŽIOS LAIKAS],10))*($B44<=Paskaitų_Sąrašas[PABAIGOS LAIKAS]),Paskaitų_Sąrašas[UNIKALUS]),Paskaitų_Sąrašas[UNIKALUS],0),2),0)","v":0},{"$f":"IFERROR(INDEX(Paskaitų_Sąrašas[],MATCH(SUMPRODUCT((Paskaitų_Sąrašas[DIENA]=MokymųTvarkaraštis[[#Headers],[PENKTADIENIS]])*(ROUNDDOWN($B44,10)>=ROUNDDOWN(Paskaitų_Sąrašas[PRADŽIOS LAIKAS],10))*($B44<=Paskaitų_Sąrašas[PABAIGOS LAIKAS]),Paskaitų_Sąrašas[UNIKALUS]),Paskaitų_Sąrašas[UNIKALUS],0),2),0)","v":0},{"$f":"IFERROR(INDEX(Paskaitų_Sąrašas[],MATCH(SUMPRODUCT((Paskaitų_Sąrašas[DIENA]=MokymųTvarkaraštis[[#Headers],[ŠEŠTADIENIS]])*(ROUNDDOWN($B44,10)>=ROUNDDOWN(Paskaitų_Sąrašas[PRADŽIOS LAIKAS],10))*($B44<=Paskaitų_Sąrašas[PABAIGOS LAIKAS]),Paskaitų_Sąrašas[UNIKALUS]),Paskaitų_Sąrašas[UNIKALUS],0),2),0)","v":0}]
[null,"18:15:00",{"$f":"IFERROR(INDEX(Paskaitų_Sąrašas[],MATCH(SUMPRODUCT((Paskaitų_Sąrašas[DIENA]=MokymųTvarkaraštis[[#Headers],[SEKMADIENIS]])*(ROUNDDOWN($B45,10)>=ROUNDDOWN(Paskaitų_Sąrašas[PRADŽIOS LAIKAS],10))*($B45<=Paskaitų_Sąrašas[PABAIGOS LAIKAS]),Paskaitų_Sąrašas[UNIKALUS]),Paskaitų_Sąrašas[UNIKALUS],0),2),0)","v":0},{"$f":"IFERROR(INDEX(Paskaitų_Sąrašas[],MATCH(SUMPRODUCT((Paskaitų_Sąrašas[DIENA]=MokymųTvarkaraštis[[#Headers],[PIRMADIENIS]])*(ROUNDDOWN($B45,10)>=ROUNDDOWN(Paskaitų_Sąrašas[PRADŽIOS LAIKAS],10))*($B45<=Paskaitų_Sąrašas[PABAIGOS LAIKAS]),Paskaitų_Sąrašas[UNIKALUS]),Paskaitų_Sąrašas[UNIKALUS],0),2),0)","v":0},{"$f":"IFERROR(INDEX(Paskaitų_Sąrašas[],MATCH(SUMPRODUCT((Paskaitų_Sąrašas[DIENA]=MokymųTvarkaraštis[[#Headers],[ANTRADIENIS]])*(ROUNDDOWN($B45,10)>=ROUNDDOWN(Paskaitų_Sąrašas[PRADŽIOS LAIKAS],10))*($B45<=Paskaitų_Sąrašas[PABAIGOS LAIKAS]),Paskaitų_Sąrašas[UNIKALUS]),Paskaitų_Sąrašas[UNIKALUS],0),2),0)","v":0},{"$f":"IFERROR(INDEX(Paskaitų_Sąrašas[],MATCH(SUMPRODUCT((Paskaitų_Sąrašas[DIENA]=MokymųTvarkaraštis[[#Headers],[TREČIADIENIS]])*(ROUNDDOWN($B45,10)>=ROUNDDOWN(Paskaitų_Sąrašas[PRADŽIOS LAIKAS],10))*($B45<=Paskaitų_Sąrašas[PABAIGOS LAIKAS]),Paskaitų_Sąrašas[UNIKALUS]),Paskaitų_Sąrašas[UNIKALUS],0),2),0)","v":0},{"$f":"IFERROR(INDEX(Paskaitų_Sąrašas[],MATCH(SUMPRODUCT((Paskaitų_Sąrašas[DIENA]=MokymųTvarkaraštis[[#Headers],[KETVIRTADIENIS]])*(ROUNDDOWN($B45,10)>=ROUNDDOWN(Paskaitų_Sąrašas[PRADŽIOS LAIKAS],10))*($B45<=Paskaitų_Sąrašas[PABAIGOS LAIKAS]),Paskaitų_Sąrašas[UNIKALUS]),Paskaitų_Sąrašas[UNIKALUS],0),2),0)","v":0},{"$f":"IFERROR(INDEX(Paskaitų_Sąrašas[],MATCH(SUMPRODUCT((Paskaitų_Sąrašas[DIENA]=MokymųTvarkaraštis[[#Headers],[PENKTADIENIS]])*(ROUNDDOWN($B45,10)>=ROUNDDOWN(Paskaitų_Sąrašas[PRADŽIOS LAIKAS],10))*($B45<=Paskaitų_Sąrašas[PABAIGOS LAIKAS]),Paskaitų_Sąrašas[UNIKALUS]),Paskaitų_Sąrašas[UNIKALUS],0),2),0)","v":0},{"$f":"IFERROR(INDEX(Paskaitų_Sąrašas[],MATCH(SUMPRODUCT((Paskaitų_Sąrašas[DIENA]=MokymųTvarkaraštis[[#Headers],[ŠEŠTADIENIS]])*(ROUNDDOWN($B45,10)>=ROUNDDOWN(Paskaitų_Sąrašas[PRADŽIOS LAIKAS],10))*($B45<=Paskaitų_Sąrašas[PABAIGOS LAIKAS]),Paskaitų_Sąrašas[UNIKALUS]),Paskaitų_Sąrašas[UNIKALUS],0),2),0)","v":0}]
[null,"18:30:00",{"$f":"IFERROR(INDEX(Paskaitų_Sąrašas[],MATCH(SUMPRODUCT((Paskaitų_Sąrašas[DIENA]=MokymųTvarkaraštis[[#Headers],[SEKMADIENIS]])*(ROUNDDOWN($B46,10)>=ROUNDDOWN(Paskaitų_Sąrašas[PRADŽIOS LAIKAS],10))*($B46<=Paskaitų_Sąrašas[PABAIGOS LAIKAS]),Paskaitų_Sąrašas[UNIKALUS]),Paskaitų_Sąrašas[UNIKALUS],0),2),0)","v":0},{"$f":"IFERROR(INDEX(Paskaitų_Sąrašas[],MATCH(SUMPRODUCT((Paskaitų_Sąrašas[DIENA]=MokymųTvarkaraštis[[#Headers],[PIRMADIENIS]])*(ROUNDDOWN($B46,10)>=ROUNDDOWN(Paskaitų_Sąrašas[PRADŽIOS LAIKAS],10))*($B46<=Paskaitų_Sąrašas[PABAIGOS LAIKAS]),Paskaitų_Sąrašas[UNIKALUS]),Paskaitų_Sąrašas[UNIKALUS],0),2),0)","v":0},{"$f":"IFERROR(INDEX(Paskaitų_Sąrašas[],MATCH(SUMPRODUCT((Paskaitų_Sąrašas[DIENA]=MokymųTvarkaraštis[[#Headers],[ANTRADIENIS]])*(ROUNDDOWN($B46,10)>=ROUNDDOWN(Paskaitų_Sąrašas[PRADŽIOS LAIKAS],10))*($B46<=Paskaitų_Sąrašas[PABAIGOS LAIKAS]),Paskaitų_Sąrašas[UNIKALUS]),Paskaitų_Sąrašas[UNIKALUS],0),2),0)","v":0},{"$f":"IFERROR(INDEX(Paskaitų_Sąrašas[],MATCH(SUMPRODUCT((Paskaitų_Sąrašas[DIENA]=MokymųTvarkaraštis[[#Headers],[TREČIADIENIS]])*(ROUNDDOWN($B46,10)>=ROUNDDOWN(Paskaitų_Sąrašas[PRADŽIOS LAIKAS],10))*($B46<=Paskaitų_Sąrašas[PABAIGOS LAIKAS]),Paskaitų_Sąrašas[UNIKALUS]),Paskaitų_Sąrašas[UNIKALUS],0),2),0)","v":0},{"$f":"IFERROR(INDEX(Paskaitų_Sąrašas[],MATCH(SUMPRODUCT((Paskaitų_Sąrašas[DIENA]=MokymųTvarkaraštis[[#Headers],[KETVIRTADIENIS]])*(ROUNDDOWN($B46,10)>=ROUNDDOWN(Paskaitų_Sąrašas[PRADŽIOS LAIKAS],10))*($B46<=Paskaitų_Sąrašas[PABAIGOS LAIKAS]),Paskaitų_Sąrašas[UNIKALUS]),Paskaitų_Sąrašas[UNIKALUS],0),2),0)","v":0},{"$f":"IFERROR(INDEX(Paskaitų_Sąrašas[],MATCH(SUMPRODUCT((Paskaitų_Sąrašas[DIENA]=MokymųTvarkaraštis[[#Headers],[PENKTADIENIS]])*(ROUNDDOWN($B46,10)>=ROUNDDOWN(Paskaitų_Sąrašas[PRADŽIOS LAIKAS],10))*($B46<=Paskaitų_Sąrašas[PABAIGOS LAIKAS]),Paskaitų_Sąrašas[UNIKALUS]),Paskaitų_Sąrašas[UNIKALUS],0),2),0)","v":0},{"$f":"IFERROR(INDEX(Paskaitų_Sąrašas[],MATCH(SUMPRODUCT((Paskaitų_Sąrašas[DIENA]=MokymųTvarkaraštis[[#Headers],[ŠEŠTADIENIS]])*(ROUNDDOWN($B46,10)>=ROUNDDOWN(Paskaitų_Sąrašas[PRADŽIOS LAIKAS],10))*($B46<=Paskaitų_Sąrašas[PABAIGOS LAIKAS]),Paskaitų_Sąrašas[UNIKALUS]),Paskaitų_Sąrašas[UNIKALUS],0),2),0)","v":0}]
[null,"18:45:00",{"$f":"IFERROR(INDEX(Paskaitų_Sąrašas[],MATCH(SUMPRODUCT((Paskaitų_Sąrašas[DIENA]=MokymųTvarkaraštis[[#Headers],[SEKMADIENIS]])*(ROUNDDOWN($B47,10)>=ROUNDDOWN(Paskaitų_Sąrašas[PRADŽIOS LAIKAS],10))*($B47<=Paskaitų_Sąrašas[PABAIGOS LAIKAS]),Paskaitų_Sąrašas[UNIKALUS]),Paskaitų_Sąrašas[UNIKALUS],0),2),0)","v":0},{"$f":"IFERROR(INDEX(Paskaitų_Sąrašas[],MATCH(SUMPRODUCT((Paskaitų_Sąrašas[DIENA]=MokymųTvarkaraštis[[#Headers],[PIRMADIENIS]])*(ROUNDDOWN($B47,10)>=ROUNDDOWN(Paskaitų_Sąrašas[PRADŽIOS LAIKAS],10))*($B47<=Paskaitų_Sąrašas[PABAIGOS LAIKAS]),Paskaitų_Sąrašas[UNIKALUS]),Paskaitų_Sąrašas[UNIKALUS],0),2),0)","v":0},{"$f":"IFERROR(INDEX(Paskaitų_Sąrašas[],MATCH(SUMPRODUCT((Paskaitų_Sąrašas[DIENA]=MokymųTvarkaraštis[[#Headers],[ANTRADIENIS]])*(ROUNDDOWN($B47,10)>=ROUNDDOWN(Paskaitų_Sąrašas[PRADŽIOS LAIKAS],10))*($B47<=Paskaitų_Sąrašas[PABAIGOS LAIKAS]),Paskaitų_Sąrašas[UNIKALUS]),Paskaitų_Sąrašas[UNIKALUS],0),2),0)","v":0},{"$f":"IFERROR(INDEX(Paskaitų_Sąrašas[],MATCH(SUMPRODUCT((Paskaitų_Sąrašas[DIENA]=MokymųTvarkaraštis[[#Headers],[TREČIADIENIS]])*(ROUNDDOWN($B47,10)>=ROUNDDOWN(Paskaitų_Sąrašas[PRADŽIOS LAIKAS],10))*($B47<=Paskaitų_Sąrašas[PABAIGOS LAIKAS]),Paskaitų_Sąrašas[UNIKALUS]),Paskaitų_Sąrašas[UNIKALUS],0),2),0)","v":0},{"$f":"IFERROR(INDEX(Paskaitų_Sąrašas[],MATCH(SUMPRODUCT((Paskaitų_Sąrašas[DIENA]=MokymųTvarkaraštis[[#Headers],[KETVIRTADIENIS]])*(ROUNDDOWN($B47,10)>=ROUNDDOWN(Paskaitų_Sąrašas[PRADŽIOS LAIKAS],10))*($B47<=Paskaitų_Sąrašas[PABAIGOS LAIKAS]),Paskaitų_Sąrašas[UNIKALUS]),Paskaitų_Sąrašas[UNIKALUS],0),2),0)","v":0},{"$f":"IFERROR(INDEX(Paskaitų_Sąrašas[],MATCH(SUMPRODUCT((Paskaitų_Sąrašas[DIENA]=MokymųTvarkaraštis[[#Headers],[PENKTADIENIS]])*(ROUNDDOWN($B47,10)>=ROUNDDOWN(Paskaitų_Sąrašas[PRADŽIOS LAIKAS],10))*($B47<=Paskaitų_Sąrašas[PABAIGOS LAIKAS]),Paskaitų_Sąrašas[UNIKALUS]),Paskaitų_Sąrašas[UNIKALUS],0),2),0)","v":0},{"$f":"IFERROR(INDEX(Paskaitų_Sąrašas[],MATCH(SUMPRODUCT((Paskaitų_Sąrašas[DIENA]=MokymųTvarkaraštis[[#Headers],[ŠEŠTADIENIS]])*(ROUNDDOWN($B47,10)>=ROUNDDOWN(Paskaitų_Sąrašas[PRADŽIOS LAIKAS],10))*($B47<=Paskaitų_Sąrašas[PABAIGOS LAIKAS]),Paskaitų_Sąrašas[UNIKALUS]),Paskaitų_Sąrašas[UNIKALUS],0),2),0)","v":0}]
[null,"19:00:00",{"$f":"IFERROR(INDEX(Paskaitų_Sąrašas[],MATCH(SUMPRODUCT((Paskaitų_Sąrašas[DIENA]=MokymųTvarkaraštis[[#Headers],[SEKMADIENIS]])*(ROUNDDOWN($B48,10)>=ROUNDDOWN(Paskaitų_Sąrašas[PRADŽIOS LAIKAS],10))*($B48<=Paskaitų_Sąrašas[PABAIGOS LAIKAS]),Paskaitų_Sąrašas[UNIKALUS]),Paskaitų_Sąrašas[UNIKALUS],0),2),0)","v":0},{"$f":"IFERROR(INDEX(Paskaitų_Sąrašas[],MATCH(SUMPRODUCT((Paskaitų_Sąrašas[DIENA]=MokymųTvarkaraštis[[#Headers],[PIRMADIENIS]])*(ROUNDDOWN($B48,10)>=ROUNDDOWN(Paskaitų_Sąrašas[PRADŽIOS LAIKAS],10))*($B48<=Paskaitų_Sąrašas[PABAIGOS LAIKAS]),Paskaitų_Sąrašas[UNIKALUS]),Paskaitų_Sąrašas[UNIKALUS],0),2),0)","v":0},{"$f":"IFERROR(INDEX(Paskaitų_Sąrašas[],MATCH(SUMPRODUCT((Paskaitų_Sąrašas[DIENA]=MokymųTvarkaraštis[[#Headers],[ANTRADIENIS]])*(ROUNDDOWN($B48,10)>=ROUNDDOWN(Paskaitų_Sąrašas[PRADŽIOS LAIKAS],10))*($B48<=Paskaitų_Sąrašas[PABAIGOS LAIKAS]),Paskaitų_Sąrašas[UNIKALUS]),Paskaitų_Sąrašas[UNIKALUS],0),2),0)","v":0},{"$f":"IFERROR(INDEX(Paskaitų_Sąrašas[],MATCH(SUMPRODUCT((Paskaitų_Sąrašas[DIENA]=MokymųTvarkaraštis[[#Headers],[TREČIADIENIS]])*(ROUNDDOWN($B48,10)>=ROUNDDOWN(Paskaitų_Sąrašas[PRADŽIOS LAIKAS],10))*($B48<=Paskaitų_Sąrašas[PABAIGOS LAIKAS]),Paskaitų_Sąrašas[UNIKALUS]),Paskaitų_Sąrašas[UNIKALUS],0),2),0)","v":0},{"$f":"IFERROR(INDEX(Paskaitų_Sąrašas[],MATCH(SUMPRODUCT((Paskaitų_Sąrašas[DIENA]=MokymųTvarkaraštis[[#Headers],[KETVIRTADIENIS]])*(ROUNDDOWN($B48,10)>=ROUNDDOWN(Paskaitų_Sąrašas[PRADŽIOS LAIKAS],10))*($B48<=Paskaitų_Sąrašas[PABAIGOS LAIKAS]),Paskaitų_Sąrašas[UNIKALUS]),Paskaitų_Sąrašas[UNIKALUS],0),2),0)","v":0},{"$f":"IFERROR(INDEX(Paskaitų_Sąrašas[],MATCH(SUMPRODUCT((Paskaitų_Sąrašas[DIENA]=MokymųTvarkaraštis[[#Headers],[PENKTADIENIS]])*(ROUNDDOWN($B48,10)>=ROUNDDOWN(Paskaitų_Sąrašas[PRADŽIOS LAIKAS],10))*($B48<=Paskaitų_Sąrašas[PABAIGOS LAIKAS]),Paskaitų_Sąrašas[UNIKALUS]),Paskaitų_Sąrašas[UNIKALUS],0),2),0)","v":0},{"$f":"IFERROR(INDEX(Paskaitų_Sąrašas[],MATCH(SUMPRODUCT((Paskaitų_Sąrašas[DIENA]=MokymųTvarkaraštis[[#Headers],[ŠEŠTADIENIS]])*(ROUNDDOWN($B48,10)>=ROUNDDOWN(Paskaitų_Sąrašas[PRADŽIOS LAIKAS],10))*($B48<=Paskaitų_Sąrašas[PABAIGOS LAIKAS]),Paskaitų_Sąrašas[UNIKALUS]),Paskaitų_Sąrašas[UNIKALUS],0),2),0)","v":0}]
[null,"19:15:00",{"$f":"IFERROR(INDEX(Paskaitų_Sąrašas[],MATCH(SUMPRODUCT((Paskaitų_Sąrašas[DIENA]=MokymųTvarkaraštis[[#Headers],[SEKMADIENIS]])*(ROUNDDOWN($B49,10)>=ROUNDDOWN(Paskaitų_Sąrašas[PRADŽIOS LAIKAS],10))*($B49<=Paskaitų_Sąrašas[PABAIGOS LAIKAS]),Paskaitų_Sąrašas[UNIKALUS]),Paskaitų_Sąrašas[UNIKALUS],0),2),0)","v":0},{"$f":"IFERROR(INDEX(Paskaitų_Sąrašas[],MATCH(SUMPRODUCT((Paskaitų_Sąrašas[DIENA]=MokymųTvarkaraštis[[#Headers],[PIRMADIENIS]])*(ROUNDDOWN($B49,10)>=ROUNDDOWN(Paskaitų_Sąrašas[PRADŽIOS LAIKAS],10))*($B49<=Paskaitų_Sąrašas[PABAIGOS LAIKAS]),Paskaitų_Sąrašas[UNIKALUS]),Paskaitų_Sąrašas[UNIKALUS],0),2),0)","v":0},{"$f":"IFERROR(INDEX(Paskaitų_Sąrašas[],MATCH(SUMPRODUCT((Paskaitų_Sąrašas[DIENA]=MokymųTvarkaraštis[[#Headers],[ANTRADIENIS]])*(ROUNDDOWN($B49,10)>=ROUNDDOWN(Paskaitų_Sąrašas[PRADŽIOS LAIKAS],10))*($B49<=Paskaitų_Sąrašas[PABAIGOS LAIKAS]),Paskaitų_Sąrašas[UNIKALUS]),Paskaitų_Sąrašas[UNIKALUS],0),2),0)","v":0},{"$f":"IFERROR(INDEX(Paskaitų_Sąrašas[],MATCH(SUMPRODUCT((Paskaitų_Sąrašas[DIENA]=MokymųTvarkaraštis[[#Headers],[TREČIADIENIS]])*(ROUNDDOWN($B49,10)>=ROUNDDOWN(Paskaitų_Sąrašas[PRADŽIOS LAIKAS],10))*($B49<=Paskaitų_Sąrašas[PABAIGOS LAIKAS]),Paskaitų_Sąrašas[UNIKALUS]),Paskaitų_Sąrašas[UNIKALUS],0),2),0)","v":0},{"$f":"IFERROR(INDEX(Paskaitų_Sąrašas[],MATCH(SUMPRODUCT((Paskaitų_Sąrašas[DIENA]=MokymųTvarkaraštis[[#Headers],[KETVIRTADIENIS]])*(ROUNDDOWN($B49,10)>=ROUNDDOWN(Paskaitų_Sąrašas[PRADŽIOS LAIKAS],10))*($B49<=Paskaitų_Sąrašas[PABAIGOS LAIKAS]),Paskaitų_Sąrašas[UNIKALUS]),Paskaitų_Sąrašas[UNIKALUS],0),2),0)","v":0},{"$f":"IFERROR(INDEX(Paskaitų_Sąrašas[],MATCH(SUMPRODUCT((Paskaitų_Sąrašas[DIENA]=MokymųTvarkaraštis[[#Headers],[PENKTADIENIS]])*(ROUNDDOWN($B49,10)>=ROUNDDOWN(Paskaitų_Sąrašas[PRADŽIOS LAIKAS],10))*($B49<=Paskaitų_Sąrašas[PABAIGOS LAIKAS]),Paskaitų_Sąrašas[UNIKALUS]),Paskaitų_Sąrašas[UNIKALUS],0),2),0)","v":0},{"$f":"IFERROR(INDEX(Paskaitų_Sąrašas[],MATCH(SUMPRODUCT((Paskaitų_Sąrašas[DIENA]=MokymųTvarkaraštis[[#Headers],[ŠEŠTADIENIS]])*(ROUNDDOWN($B49,10)>=ROUNDDOWN(Paskaitų_Sąrašas[PRADŽIOS LAIKAS],10))*($B49<=Paskaitų_Sąrašas[PABAIGOS LAIKAS]),Paskaitų_Sąrašas[UNIKALUS]),Paskaitų_Sąrašas[UNIKALUS],0),2),0)","v":0}]
[null,"19:30:00",{"$f":"IFERROR(INDEX(Paskaitų_Sąrašas[],MATCH(SUMPRODUCT((Paskaitų_Sąrašas[DIENA]=MokymųTvarkaraštis[[#Headers],[SEKMADIENIS]])*(ROUNDDOWN($B50,10)>=ROUNDDOWN(Paskaitų_Sąrašas[PRADŽIOS LAIKAS],10))*($B50<=Paskaitų_Sąrašas[PABAIGOS LAIKAS]),Paskaitų_Sąrašas[UNIKALUS]),Paskaitų_Sąrašas[UNIKALUS],0),2),0)","v":0},{"$f":"IFERROR(INDEX(Paskaitų_Sąrašas[],MATCH(SUMPRODUCT((Paskaitų_Sąrašas[DIENA]=MokymųTvarkaraštis[[#Headers],[PIRMADIENIS]])*(ROUNDDOWN($B50,10)>=ROUNDDOWN(Paskaitų_Sąrašas[PRADŽIOS LAIKAS],10))*($B50<=Paskaitų_Sąrašas[PABAIGOS LAIKAS]),Paskaitų_Sąrašas[UNIKALUS]),Paskaitų_Sąrašas[UNIKALUS],0),2),0)","v":0},{"$f":"IFERROR(INDEX(Paskaitų_Sąrašas[],MATCH(SUMPRODUCT((Paskaitų_Sąrašas[DIENA]=MokymųTvarkaraštis[[#Headers],[ANTRADIENIS]])*(ROUNDDOWN($B50,10)>=ROUNDDOWN(Paskaitų_Sąrašas[PRADŽIOS LAIKAS],10))*($B50<=Paskaitų_Sąrašas[PABAIGOS LAIKAS]),Paskaitų_Sąrašas[UNIKALUS]),Paskaitų_Sąrašas[UNIKALUS],0),2),0)","v":0},{"$f":"IFERROR(INDEX(Paskaitų_Sąrašas[],MATCH(SUMPRODUCT((Paskaitų_Sąrašas[DIENA]=MokymųTvarkaraštis[[#Headers],[TREČIADIENIS]])*(ROUNDDOWN($B50,10)>=ROUNDDOWN(Paskaitų_Sąrašas[PRADŽIOS LAIKAS],10))*($B50<=Paskaitų_Sąrašas[PABAIGOS LAIKAS]),Paskaitų_Sąrašas[UNIKALUS]),Paskaitų_Sąrašas[UNIKALUS],0),2),0)","v":0},{"$f":"IFERROR(INDEX(Paskaitų_Sąrašas[],MATCH(SUMPRODUCT((Paskaitų_Sąrašas[DIENA]=MokymųTvarkaraštis[[#Headers],[KETVIRTADIENIS]])*(ROUNDDOWN($B50,10)>=ROUNDDOWN(Paskaitų_Sąrašas[PRADŽIOS LAIKAS],10))*($B50<=Paskaitų_Sąrašas[PABAIGOS LAIKAS]),Paskaitų_Sąrašas[UNIKALUS]),Paskaitų_Sąrašas[UNIKALUS],0),2),0)","v":0},{"$f":"IFERROR(INDEX(Paskaitų_Sąrašas[],MATCH(SUMPRODUCT((Paskaitų_Sąrašas[DIENA]=MokymųTvarkaraštis[[#Headers],[PENKTADIENIS]])*(ROUNDDOWN($B50,10)>=ROUNDDOWN(Paskaitų_Sąrašas[PRADŽIOS LAIKAS],10))*($B50<=Paskaitų_Sąrašas[PABAIGOS LAIKAS]),Paskaitų_Sąrašas[UNIKALUS]),Paskaitų_Sąrašas[UNIKALUS],0),2),0)","v":0},{"$f":"IFERROR(INDEX(Paskaitų_Sąrašas[],MATCH(SUMPRODUCT((Paskaitų_Sąrašas[DIENA]=MokymųTvarkaraštis[[#Headers],[ŠEŠTADIENIS]])*(ROUNDDOWN($B50,10)>=ROUNDDOWN(Paskaitų_Sąrašas[PRADŽIOS LAIKAS],10))*($B50<=Paskaitų_Sąrašas[PABAIGOS LAIKAS]),Paskaitų_Sąrašas[UNIKALUS]),Paskaitų_Sąrašas[UNIKALUS],0),2),0)","v":0}]
[null,"19:45:00",{"$f":"IFERROR(INDEX(Paskaitų_Sąrašas[],MATCH(SUMPRODUCT((Paskaitų_Sąrašas[DIENA]=MokymųTvarkaraštis[[#Headers],[SEKMADIENIS]])*(ROUNDDOWN($B51,10)>=ROUNDDOWN(Paskaitų_Sąrašas[PRADŽIOS LAIKAS],10))*($B51<=Paskaitų_Sąrašas[PABAIGOS LAIKAS]),Paskaitų_Sąrašas[UNIKALUS]),Paskaitų_Sąrašas[UNIKALUS],0),2),0)","v":0},{"$f":"IFERROR(INDEX(Paskaitų_Sąrašas[],MATCH(SUMPRODUCT((Paskaitų_Sąrašas[DIENA]=MokymųTvarkaraštis[[#Headers],[PIRMADIENIS]])*(ROUNDDOWN($B51,10)>=ROUNDDOWN(Paskaitų_Sąrašas[PRADŽIOS LAIKAS],10))*($B51<=Paskaitų_Sąrašas[PABAIGOS LAIKAS]),Paskaitų_Sąrašas[UNIKALUS]),Paskaitų_Sąrašas[UNIKALUS],0),2),0)","v":0},{"$f":"IFERROR(INDEX(Paskaitų_Sąrašas[],MATCH(SUMPRODUCT((Paskaitų_Sąrašas[DIENA]=MokymųTvarkaraštis[[#Headers],[ANTRADIENIS]])*(ROUNDDOWN($B51,10)>=ROUNDDOWN(Paskaitų_Sąrašas[PRADŽIOS LAIKAS],10))*($B51<=Paskaitų_Sąrašas[PABAIGOS LAIKAS]),Paskaitų_Sąrašas[UNIKALUS]),Paskaitų_Sąrašas[UNIKALUS],0),2),0)","v":0},{"$f":"IFERROR(INDEX(Paskaitų_Sąrašas[],MATCH(SUMPRODUCT((Paskaitų_Sąrašas[DIENA]=MokymųTvarkaraštis[[#Headers],[TREČIADIENIS]])*(ROUNDDOWN($B51,10)>=ROUNDDOWN(Paskaitų_Sąrašas[PRADŽIOS LAIKAS],10))*($B51<=Paskaitų_Sąrašas[PABAIGOS LAIKAS]),Paskaitų_Sąrašas[UNIKALUS]),Paskaitų_Sąrašas[UNIKALUS],0),2),0)","v":0},{"$f":"IFERROR(INDEX(Paskaitų_Sąrašas[],MATCH(SUMPRODUCT((Paskaitų_Sąrašas[DIENA]=MokymųTvarkaraštis[[#Headers],[KETVIRTADIENIS]])*(ROUNDDOWN($B51,10)>=ROUNDDOWN(Paskaitų_Sąrašas[PRADŽIOS LAIKAS],10))*($B51<=Paskaitų_Sąrašas[PABAIGOS LAIKAS]),Paskaitų_Sąrašas[UNIKALUS]),Paskaitų_Sąrašas[UNIKALUS],0),2),0)","v":0},{"$f":"IFERROR(INDEX(Paskaitų_Sąrašas[],MATCH(SUMPRODUCT((Paskaitų_Sąrašas[DIENA]=MokymųTvarkaraštis[[#Headers],[PENKTADIENIS]])*(ROUNDDOWN($B51,10)>=ROUNDDOWN(Paskaitų_Sąrašas[PRADŽIOS LAIKAS],10))*($B51<=Paskaitų_Sąrašas[PABAIGOS LAIKAS]),Paskaitų_Sąrašas[UNIKALUS]),Paskaitų_Sąrašas[UNIKALUS],0),2),0)","v":0},{"$f":"IFERROR(INDEX(Paskaitų_Sąrašas[],MATCH(SUMPRODUCT((Paskaitų_Sąrašas[DIENA]=MokymųTvarkaraštis[[#Headers],[ŠEŠTADIENIS]])*(ROUNDDOWN($B51,10)>=ROUNDDOWN(Paskaitų_Sąrašas[PRADŽIOS LAIKAS],10))*($B51<=Paskaitų_Sąrašas[PABAIGOS LAIKAS]),Paskaitų_Sąrašas[UNIKALUS]),Paskaitų_Sąrašas[UNIKALUS],0),2),0)","v":0}]
[null,"20:00:00",{"$f":"IFERROR(INDEX(Paskaitų_Sąrašas[],MATCH(SUMPRODUCT((Paskaitų_Sąrašas[DIENA]=MokymųTvarkaraštis[[#Headers],[SEKMADIENIS]])*(ROUNDDOWN($B52,10)>=ROUNDDOWN(Paskaitų_Sąrašas[PRADŽIOS LAIKAS],10))*($B52<=Paskaitų_Sąrašas[PABAIGOS LAIKAS]),Paskaitų_Sąrašas[UNIKALUS]),Paskaitų_Sąrašas[UNIKALUS],0),2),0)","v":0},{"$f":"IFERROR(INDEX(Paskaitų_Sąrašas[],MATCH(SUMPRODUCT((Paskaitų_Sąrašas[DIENA]=MokymųTvarkaraštis[[#Headers],[PIRMADIENIS]])*(ROUNDDOWN($B52,10)>=ROUNDDOWN(Paskaitų_Sąrašas[PRADŽIOS LAIKAS],10))*($B52<=Paskaitų_Sąrašas[PABAIGOS LAIKAS]),Paskaitų_Sąrašas[UNIKALUS]),Paskaitų_Sąrašas[UNIKALUS],0),2),0)","v":0},{"$f":"IFERROR(INDEX(Paskaitų_Sąrašas[],MATCH(SUMPRODUCT((Paskaitų_Sąrašas[DIENA]=MokymųTvarkaraštis[[#Headers],[ANTRADIENIS]])*(ROUNDDOWN($B52,10)>=ROUNDDOWN(Paskaitų_Sąrašas[PRADŽIOS LAIKAS],10))*($B52<=Paskaitų_Sąrašas[PABAIGOS LAIKAS]),Paskaitų_Sąrašas[UNIKALUS]),Paskaitų_Sąrašas[UNIKALUS],0),2),0)","v":0},{"$f":"IFERROR(INDEX(Paskaitų_Sąrašas[],MATCH(SUMPRODUCT((Paskaitų_Sąrašas[DIENA]=MokymųTvarkaraštis[[#Headers],[TREČIADIENIS]])*(ROUNDDOWN($B52,10)>=ROUNDDOWN(Paskaitų_Sąrašas[PRADŽIOS LAIKAS],10))*($B52<=Paskaitų_Sąrašas[PABAIGOS LAIKAS]),Paskaitų_Sąrašas[UNIKALUS]),Paskaitų_Sąrašas[UNIKALUS],0),2),0)","v":0},{"$f":"IFERROR(INDEX(Paskaitų_Sąrašas[],MATCH(SUMPRODUCT((Paskaitų_Sąrašas[DIENA]=MokymųTvarkaraštis[[#Headers],[KETVIRTADIENIS]])*(ROUNDDOWN($B52,10)>=ROUNDDOWN(Paskaitų_Sąrašas[PRADŽIOS LAIKAS],10))*($B52<=Paskaitų_Sąrašas[PABAIGOS LAIKAS]),Paskaitų_Sąrašas[UNIKALUS]),Paskaitų_Sąrašas[UNIKALUS],0),2),0)","v":0},{"$f":"IFERROR(INDEX(Paskaitų_Sąrašas[],MATCH(SUMPRODUCT((Paskaitų_Sąrašas[DIENA]=MokymųTvarkaraštis[[#Headers],[PENKTADIENIS]])*(ROUNDDOWN($B52,10)>=ROUNDDOWN(Paskaitų_Sąrašas[PRADŽIOS LAIKAS],10))*($B52<=Paskaitų_Sąrašas[PABAIGOS LAIKAS]),Paskaitų_Sąrašas[UNIKALUS]),Paskaitų_Sąrašas[UNIKALUS],0),2),0)","v":0},{"$f":"IFERROR(INDEX(Paskaitų_Sąrašas[],MATCH(SUMPRODUCT((Paskaitų_Sąrašas[DIENA]=MokymųTvarkaraštis[[#Headers],[ŠEŠTADIENIS]])*(ROUNDDOWN($B52,10)>=ROUNDDOWN(Paskaitų_Sąrašas[PRADŽIOS LAIKAS],10))*($B52<=Paskaitų_Sąrašas[PABAIGOS LAIKAS]),Paskaitų_Sąrašas[UNIKALUS]),Paskaitų_Sąrašas[UNIKALUS],0),2),0)","v":0}]
[null,"20:15:00",{"$f":"IFERROR(INDEX(Paskaitų_Sąrašas[],MATCH(SUMPRODUCT((Paskaitų_Sąrašas[DIENA]=MokymųTvarkaraštis[[#Headers],[SEKMADIENIS]])*(ROUNDDOWN($B53,10)>=ROUNDDOWN(Paskaitų_Sąrašas[PRADŽIOS LAIKAS],10))*($B53<=Paskaitų_Sąrašas[PABAIGOS LAIKAS]),Paskaitų_Sąrašas[UNIKALUS]),Paskaitų_Sąrašas[UNIKALUS],0),2),0)","v":0},{"$f":"IFERROR(INDEX(Paskaitų_Sąrašas[],MATCH(SUMPRODUCT((Paskaitų_Sąrašas[DIENA]=MokymųTvarkaraštis[[#Headers],[PIRMADIENIS]])*(ROUNDDOWN($B53,10)>=ROUNDDOWN(Paskaitų_Sąrašas[PRADŽIOS LAIKAS],10))*($B53<=Paskaitų_Sąrašas[PABAIGOS LAIKAS]),Paskaitų_Sąrašas[UNIKALUS]),Paskaitų_Sąrašas[UNIKALUS],0),2),0)","v":0},{"$f":"IFERROR(INDEX(Paskaitų_Sąrašas[],MATCH(SUMPRODUCT((Paskaitų_Sąrašas[DIENA]=MokymųTvarkaraštis[[#Headers],[ANTRADIENIS]])*(ROUNDDOWN($B53,10)>=ROUNDDOWN(Paskaitų_Sąrašas[PRADŽIOS LAIKAS],10))*($B53<=Paskaitų_Sąrašas[PABAIGOS LAIKAS]),Paskaitų_Sąrašas[UNIKALUS]),Paskaitų_Sąrašas[UNIKALUS],0),2),0)","v":0},{"$f":"IFERROR(INDEX(Paskaitų_Sąrašas[],MATCH(SUMPRODUCT((Paskaitų_Sąrašas[DIENA]=MokymųTvarkaraštis[[#Headers],[TREČIADIENIS]])*(ROUNDDOWN($B53,10)>=ROUNDDOWN(Paskaitų_Sąrašas[PRADŽIOS LAIKAS],10))*($B53<=Paskaitų_Sąrašas[PABAIGOS LAIKAS]),Paskaitų_Sąrašas[UNIKALUS]),Paskaitų_Sąrašas[UNIKALUS],0),2),0)","v":0},{"$f":"IFERROR(INDEX(Paskaitų_Sąrašas[],MATCH(SUMPRODUCT((Paskaitų_Sąrašas[DIENA]=MokymųTvarkaraštis[[#Headers],[KETVIRTADIENIS]])*(ROUNDDOWN($B53,10)>=ROUNDDOWN(Paskaitų_Sąrašas[PRADŽIOS LAIKAS],10))*($B53<=Paskaitų_Sąrašas[PABAIGOS LAIKAS]),Paskaitų_Sąrašas[UNIKALUS]),Paskaitų_Sąrašas[UNIKALUS],0),2),0)","v":0},{"$f":"IFERROR(INDEX(Paskaitų_Sąrašas[],MATCH(SUMPRODUCT((Paskaitų_Sąrašas[DIENA]=MokymųTvarkaraštis[[#Headers],[PENKTADIENIS]])*(ROUNDDOWN($B53,10)>=ROUNDDOWN(Paskaitų_Sąrašas[PRADŽIOS LAIKAS],10))*($B53<=Paskaitų_Sąrašas[PABAIGOS LAIKAS]),Paskaitų_Sąrašas[UNIKALUS]),Paskaitų_Sąrašas[UNIKALUS],0),2),0)","v":0},{"$f":"IFERROR(INDEX(Paskaitų_Sąrašas[],MATCH(SUMPRODUCT((Paskaitų_Sąrašas[DIENA]=MokymųTvarkaraštis[[#Headers],[ŠEŠTADIENIS]])*(ROUNDDOWN($B53,10)>=ROUNDDOWN(Paskaitų_Sąrašas[PRADŽIOS LAIKAS],10))*($B53<=Paskaitų_Sąrašas[PABAIGOS LAIKAS]),Paskaitų_Sąrašas[UNIKALUS]),Paskaitų_Sąrašas[UNIKALUS],0),2),0)","v":0}]
[null,"20:30:00",{"$f":"IFERROR(INDEX(Paskaitų_Sąrašas[],MATCH(SUMPRODUCT((Paskaitų_Sąrašas[DIENA]=MokymųTvarkaraštis[[#Headers],[SEKMADIENIS]])*(ROUNDDOWN($B54,10)>=ROUNDDOWN(Paskaitų_Sąrašas[PRADŽIOS LAIKAS],10))*($B54<=Paskaitų_Sąrašas[PABAIGOS LAIKAS]),Paskaitų_Sąrašas[UNIKALUS]),Paskaitų_Sąrašas[UNIKALUS],0),2),0)","v":0},{"$f":"IFERROR(INDEX(Paskaitų_Sąrašas[],MATCH(SUMPRODUCT((Paskaitų_Sąrašas[DIENA]=MokymųTvarkaraštis[[#Headers],[PIRMADIENIS]])*(ROUNDDOWN($B54,10)>=ROUNDDOWN(Paskaitų_Sąrašas[PRADŽIOS LAIKAS],10))*($B54<=Paskaitų_Sąrašas[PABAIGOS LAIKAS]),Paskaitų_Sąrašas[UNIKALUS]),Paskaitų_Sąrašas[UNIKALUS],0),2),0)","v":0},{"$f":"IFERROR(INDEX(Paskaitų_Sąrašas[],MATCH(SUMPRODUCT((Paskaitų_Sąrašas[DIENA]=MokymųTvarkaraštis[[#Headers],[ANTRADIENIS]])*(ROUNDDOWN($B54,10)>=ROUNDDOWN(Paskaitų_Sąrašas[PRADŽIOS LAIKAS],10))*($B54<=Paskaitų_Sąrašas[PABAIGOS LAIKAS]),Paskaitų_Sąrašas[UNIKALUS]),Paskaitų_Sąrašas[UNIKALUS],0),2),0)","v":0},{"$f":"IFERROR(INDEX(Paskaitų_Sąrašas[],MATCH(SUMPRODUCT((Paskaitų_Sąrašas[DIENA]=MokymųTvarkaraštis[[#Headers],[TREČIADIENIS]])*(ROUNDDOWN($B54,10)>=ROUNDDOWN(Paskaitų_Sąrašas[PRADŽIOS LAIKAS],10))*($B54<=Paskaitų_Sąrašas[PABAIGOS LAIKAS]),Paskaitų_Sąrašas[UNIKALUS]),Paskaitų_Sąrašas[UNIKALUS],0),2),0)","v":0},{"$f":"IFERROR(INDEX(Paskaitų_Sąrašas[],MATCH(SUMPRODUCT((Paskaitų_Sąrašas[DIENA]=MokymųTvarkaraštis[[#Headers],[KETVIRTADIENIS]])*(ROUNDDOWN($B54,10)>=ROUNDDOWN(Paskaitų_Sąrašas[PRADŽIOS LAIKAS],10))*($B54<=Paskaitų_Sąrašas[PABAIGOS LAIKAS]),Paskaitų_Sąrašas[UNIKALUS]),Paskaitų_Sąrašas[UNIKALUS],0),2),0)","v":0},{"$f":"IFERROR(INDEX(Paskaitų_Sąrašas[],MATCH(SUMPRODUCT((Paskaitų_Sąrašas[DIENA]=MokymųTvarkaraštis[[#Headers],[PENKTADIENIS]])*(ROUNDDOWN($B54,10)>=ROUNDDOWN(Paskaitų_Sąrašas[PRADŽIOS LAIKAS],10))*($B54<=Paskaitų_Sąrašas[PABAIGOS LAIKAS]),Paskaitų_Sąrašas[UNIKALUS]),Paskaitų_Sąrašas[UNIKALUS],0),2),0)","v":0},{"$f":"IFERROR(INDEX(Paskaitų_Sąrašas[],MATCH(SUMPRODUCT((Paskaitų_Sąrašas[DIENA]=MokymųTvarkaraštis[[#Headers],[ŠEŠTADIENIS]])*(ROUNDDOWN($B54,10)>=ROUNDDOWN(Paskaitų_Sąrašas[PRADŽIOS LAIKAS],10))*($B54<=Paskaitų_Sąrašas[PABAIGOS LAIKAS]),Paskaitų_Sąrašas[UNIKALUS]),Paskaitų_Sąrašas[UNIKALUS],0),2),0)","v":0}]
[null,"20:45:00",{"$f":"IFERROR(INDEX(Paskaitų_Sąrašas[],MATCH(SUMPRODUCT((Paskaitų_Sąrašas[DIENA]=MokymųTvarkaraštis[[#Headers],[SEKMADIENIS]])*(ROUNDDOWN($B55,10)>=ROUNDDOWN(Paskaitų_Sąrašas[PRADŽIOS LAIKAS],10))*($B55<=Paskaitų_Sąrašas[PABAIGOS LAIKAS]),Paskaitų_Sąrašas[UNIKALUS]),Paskaitų_Sąrašas[UNIKALUS],0),2),0)","v":0},{"$f":"IFERROR(INDEX(Paskaitų_Sąrašas[],MATCH(SUMPRODUCT((Paskaitų_Sąrašas[DIENA]=MokymųTvarkaraštis[[#Headers],[PIRMADIENIS]])*(ROUNDDOWN($B55,10)>=ROUNDDOWN(Paskaitų_Sąrašas[PRADŽIOS LAIKAS],10))*($B55<=Paskaitų_Sąrašas[PABAIGOS LAIKAS]),Paskaitų_Sąrašas[UNIKALUS]),Paskaitų_Sąrašas[UNIKALUS],0),2),0)","v":0},{"$f":"IFERROR(INDEX(Paskaitų_Sąrašas[],MATCH(SUMPRODUCT((Paskaitų_Sąrašas[DIENA]=MokymųTvarkaraštis[[#Headers],[ANTRADIENIS]])*(ROUNDDOWN($B55,10)>=ROUNDDOWN(Paskaitų_Sąrašas[PRADŽIOS LAIKAS],10))*($B55<=Paskaitų_Sąrašas[PABAIGOS LAIKAS]),Paskaitų_Sąrašas[UNIKALUS]),Paskaitų_Sąrašas[UNIKALUS],0),2),0)","v":0},{"$f":"IFERROR(INDEX(Paskaitų_Sąrašas[],MATCH(SUMPRODUCT((Paskaitų_Sąrašas[DIENA]=MokymųTvarkaraštis[[#Headers],[TREČIADIENIS]])*(ROUNDDOWN($B55,10)>=ROUNDDOWN(Paskaitų_Sąrašas[PRADŽIOS LAIKAS],10))*($B55<=Paskaitų_Sąrašas[PABAIGOS LAIKAS]),Paskaitų_Sąrašas[UNIKALUS]),Paskaitų_Sąrašas[UNIKALUS],0),2),0)","v":0},{"$f":"IFERROR(INDEX(Paskaitų_Sąrašas[],MATCH(SUMPRODUCT((Paskaitų_Sąrašas[DIENA]=MokymųTvarkaraštis[[#Headers],[KETVIRTADIENIS]])*(ROUNDDOWN($B55,10)>=ROUNDDOWN(Paskaitų_Sąrašas[PRADŽIOS LAIKAS],10))*($B55<=Paskaitų_Sąrašas[PABAIGOS LAIKAS]),Paskaitų_Sąrašas[UNIKALUS]),Paskaitų_Sąrašas[UNIKALUS],0),2),0)","v":0},{"$f":"IFERROR(INDEX(Paskaitų_Sąrašas[],MATCH(SUMPRODUCT((Paskaitų_Sąrašas[DIENA]=MokymųTvarkaraštis[[#Headers],[PENKTADIENIS]])*(ROUNDDOWN($B55,10)>=ROUNDDOWN(Paskaitų_Sąrašas[PRADŽIOS LAIKAS],10))*($B55<=Paskaitų_Sąrašas[PABAIGOS LAIKAS]),Paskaitų_Sąrašas[UNIKALUS]),Paskaitų_Sąrašas[UNIKALUS],0),2),0)","v":0},{"$f":"IFERROR(INDEX(Paskaitų_Sąrašas[],MATCH(SUMPRODUCT((Paskaitų_Sąrašas[DIENA]=MokymųTvarkaraštis[[#Headers],[ŠEŠTADIENIS]])*(ROUNDDOWN($B55,10)>=ROUNDDOWN(Paskaitų_Sąrašas[PRADŽIOS LAIKAS],10))*($B55<=Paskaitų_Sąrašas[PABAIGOS LAIKAS]),Paskaitų_Sąrašas[UNIKALUS]),Paskaitų_Sąrašas[UNIKALUS],0),2),0)","v":0}]
[null,"21:00:00",{"$f":"IFERROR(INDEX(Paskaitų_Sąrašas[],MATCH(SUMPRODUCT((Paskaitų_Sąrašas[DIENA]=MokymųTvarkaraštis[[#Headers],[SEKMADIENIS]])*(ROUNDDOWN($B56,10)>=ROUNDDOWN(Paskaitų_Sąrašas[PRADŽIOS LAIKAS],10))*($B56<=Paskaitų_Sąrašas[PABAIGOS LAIKAS]),Paskaitų_Sąrašas[UNIKALUS]),Paskaitų_Sąrašas[UNIKALUS],0),2),0)","v":0},{"$f":"IFERROR(INDEX(Paskaitų_Sąrašas[],MATCH(SUMPRODUCT((Paskaitų_Sąrašas[DIENA]=MokymųTvarkaraštis[[#Headers],[PIRMADIENIS]])*(ROUNDDOWN($B56,10)>=ROUNDDOWN(Paskaitų_Sąrašas[PRADŽIOS LAIKAS],10))*($B56<=Paskaitų_Sąrašas[PABAIGOS LAIKAS]),Paskaitų_Sąrašas[UNIKALUS]),Paskaitų_Sąrašas[UNIKALUS],0),2),0)","v":0},{"$f":"IFERROR(INDEX(Paskaitų_Sąrašas[],MATCH(SUMPRODUCT((Paskaitų_Sąrašas[DIENA]=MokymųTvarkaraštis[[#Headers],[ANTRADIENIS]])*(ROUNDDOWN($B56,10)>=ROUNDDOWN(Paskaitų_Sąrašas[PRADŽIOS LAIKAS],10))*($B56<=Paskaitų_Sąrašas[PABAIGOS LAIKAS]),Paskaitų_Sąrašas[UNIKALUS]),Paskaitų_Sąrašas[UNIKALUS],0),2),0)","v":0},{"$f":"IFERROR(INDEX(Paskaitų_Sąrašas[],MATCH(SUMPRODUCT((Paskaitų_Sąrašas[DIENA]=MokymųTvarkaraštis[[#Headers],[TREČIADIENIS]])*(ROUNDDOWN($B56,10)>=ROUNDDOWN(Paskaitų_Sąrašas[PRADŽIOS LAIKAS],10))*($B56<=Paskaitų_Sąrašas[PABAIGOS LAIKAS]),Paskaitų_Sąrašas[UNIKALUS]),Paskaitų_Sąrašas[UNIKALUS],0),2),0)","v":0},{"$f":"IFERROR(INDEX(Paskaitų_Sąrašas[],MATCH(SUMPRODUCT((Paskaitų_Sąrašas[DIENA]=MokymųTvarkaraštis[[#Headers],[KETVIRTADIENIS]])*(ROUNDDOWN($B56,10)>=ROUNDDOWN(Paskaitų_Sąrašas[PRADŽIOS LAIKAS],10))*($B56<=Paskaitų_Sąrašas[PABAIGOS LAIKAS]),Paskaitų_Sąrašas[UNIKALUS]),Paskaitų_Sąrašas[UNIKALUS],0),2),0)","v":0},{"$f":"IFERROR(INDEX(Paskaitų_Sąrašas[],MATCH(SUMPRODUCT((Paskaitų_Sąrašas[DIENA]=MokymųTvarkaraštis[[#Headers],[PENKTADIENIS]])*(ROUNDDOWN($B56,10)>=ROUNDDOWN(Paskaitų_Sąrašas[PRADŽIOS LAIKAS],10))*($B56<=Paskaitų_Sąrašas[PABAIGOS LAIKAS]),Paskaitų_Sąrašas[UNIKALUS]),Paskaitų_Sąrašas[UNIKALUS],0),2),0)","v":0},{"$f":"IFERROR(INDEX(Paskaitų_Sąrašas[],MATCH(SUMPRODUCT((Paskaitų_Sąrašas[DIENA]=MokymųTvarkaraštis[[#Headers],[ŠEŠTADIENIS]])*(ROUNDDOWN($B56,10)>=ROUNDDOWN(Paskaitų_Sąrašas[PRADŽIOS LAIKAS],10))*($B56<=Paskaitų_Sąrašas[PABAIGOS LAIKAS]),Paskaitų_Sąrašas[UNIKALUS]),Paskaitų_Sąrašas[UNIKALUS],0),2),0)","v":0}]

{"sheet":"Paskaitų sąrašas","index":1,"n_rows":10,"n_cols":8,"rows_kept":10,"merged":[[0,1,0,5],[0,6,0,7]]}
[null,"PASKAITŲ SĄRAŠAS",{"$nulls":4},"Paskaitų tvarkaraštis"]
[null,"PASKAITA","ID","DIENA","VIETA","PRADŽIOS LAIKAS","PABAIGOS LAIKAS","UNIKALUS"]
[null,"Techninis rašymas","WR-121","PIRMADIENIS","A pastatas","13:00:00","14:00:00",{"$f":"ROW()-ROW(Paskaitų_Sąrašas[[#Headers],[UNIKALUS]])","v":1}]
[null,"Techninis rašymas","WR-121","TREČIADIENIS","A pastatas","13:00:00","14:00:00",{"$f":"ROW()-ROW(Paskaitų_Sąrašas[[#Headers],[UNIKALUS]])","v":2}]
[null,"Viešasis kalbėjimas","SP-111","PIRMADIENIS","B pastatas","16:00:00","17:00:00",{"$f":"ROW()-ROW(Paskaitų_Sąrašas[[#Headers],[UNIKALUS]])","v":3}]
[null,"Sveikata ir fizinis pasirengimas","HPE-295","ANTRADIENIS","B pastatas","11:00:00","12:00:00",{"$f":"ROW()-ROW(Paskaitų_Sąrašas[[#Headers],[UNIKALUS]])","v":4}]
[null,"Sveikata ir fizinis pasirengimas","HPE-295","KETVIRTADIENIS","B pastatas","11:00:00","12:00:00",{"$f":"ROW()-ROW(Paskaitų_Sąrašas[[#Headers],[UNIKALUS]])","v":5}]
[null,"Algebra","MTH-113","PIRMADIENIS","C pastatas","08:10:00","09:15:00",{"$f":"ROW()-ROW(Paskaitų_Sąrašas[[#Headers],[UNIKALUS]])","v":6}]
[null,"Algebra","MTH-113","TREČIADIENIS","C pastatas","08:10:00","09:15:00",{"$f":"ROW()-ROW(Paskaitų_Sąrašas[[#Headers],[UNIKALUS]])","v":7}]
[null,"Algebra","MTH-113","PENKTADIENIS","C pastatas","08:10:00","09:15:00",{"$f":"ROW()-ROW(Paskaitų_Sąrašas[[#Headers],[UNIKALUS]])","v":8}]